﻿organisation_name,service_responsible,supplier_code,supplier_name,payment_date,transaction_ref,net_amount_by_line_item,irrecoverable_vat,purpose_of_spend,procurement_category_name,transaction_type,payment_type,card_transaction,invoice_date,financial_year,financial_period,supplier_invoice_reference,cost_centre_code,cost_centre_desc,account_code,account_desc,SeRCOP_subdivision_code,SeRCOP_Subdivision_description,SeRCOP_division_codee,SeRCOP_division_description,SeRCOP_service_code,SeRCOP_service_description,SeRCOP_major_service_code,SeRCOP_major_service_description
GUILDFORD BOROUGH COUNCIL,Other Employee Costs,1000005,HM Revenue and Customs - Ref 663PV00100537,12/07/2022,30074356,15400.39,0,NI,,Invoice,BACS,No,01/07/2022 00:00,2022,4,HMRC Class 1A NIC ref 663PV001005372213,F7530,Misc Employee Expenses,A1103,NI,DBX35,Finance (including Internal Audit),DBX,Support Service and Management Costs,DB,Children's Social Care,E,Childrens and Education Services
GUILDFORD BOROUGH COUNCIL,Other Employee Costs,1000005,HM Revenue and Customs - Ref 663PV00100537,12/07/2022,30074356,6866.19,0,Staff Costs,,Invoice,BACS,No,01/07/2022 00:00,2022,4,HMRC Class 1A NIC ref 663PV001005372213,G1121,Organisation Development,A7100,Staff Costs,DBX70,Other Management Costs,DBX,Support Service and Management Costs,DB,Children's Social Care,E,Childrens and Education Services
GUILDFORD BOROUGH COUNCIL,Other Employee Costs,1000005,HM Revenue and Customs - Ref 663PV00100537,12/07/2022,30074356,413.17,0,NI,,Invoice,BACS,No,01/07/2022 00:00,2022,4,HMRC Class 1A NIC ref 663PV001005372213,G1121,Organisation Development,A1103,NI,DBX70,Other Management Costs,DBX,Support Service and Management Costs,DB,Children's Social Care,E,Childrens and Education Services
GUILDFORD BOROUGH COUNCIL,Lead Specialist - Finance,1000009,Lpfg Ltd,18/08/2022,30076631,3072,0,Consultancy,,Invoice,BACS,No,25/07/2022 00:00,2022,4,72122/0081,G3565,Finance Specialists,D6001,Consultancy,DBX35,Finance (including Internal Audit),DBX,Support Service and Management Costs,DB,Children's Social Care,E,Childrens and Education Services
GUILDFORD BOROUGH COUNCIL,Day Services,1000015,Surrey First Aid Training,28/07/2022,30074556,415.1,0,Staff Costs,,Invoice,BACS,No,04/07/2022 00:00,2022,4,22062022,C8100,Community Hubs,A7100,Staff Costs,KGU00,Supporting People - Strategy,KGU,Supporting People,KG,Housing General Fund,K,Housing Services
GUILDFORD BOROUGH COUNCIL,Lead Specialist - HR,1000017,Steve Vale,23/08/2022,30077666,500,0,Staff Costs,,Invoice,BACS,No,29/07/2022 00:00,2022,4,263,G2555,HR Services,A7100,Staff Costs,DBX70,Other Management Costs,DBX,Support Service and Management Costs,DB,Children's Social Care,E,Childrens and Education Services
GUILDFORD BOROUGH COUNCIL,Development Control,1000021,Portal Planquest Ltd.,18/08/2022,30079212,359,0,Planning Fees,,Invoice,BACS,No,19/07/2022 00:00,2022,5,PP 11412224,D5100,Development Control - Fee Earn,K4006,Planning Fees,CPC00,Development Control Advice,CPC,Development Control,CP,Planning and Development Services,C,"Cultural, Environmental & Planning Services"
GUILDFORD BOROUGH COUNCIL,Development Control,1000021,Portal Planquest Ltd.,01/09/2022,30080378,256,0,Planning Fees,,Invoice,BACS,No,26/08/2022 00:00,2022,5,PP-11439965,D5100,Development Control - Fee Earn,K4006,Planning Fees,CPC00,Development Control Advice,CPC,Development Control,CP,Planning and Development Services,C,"Cultural, Environmental & Planning Services"
GUILDFORD BOROUGH COUNCIL,Development Control,1000021,Portal Planquest Ltd.,27/09/2022,30082581,462,0,Planning Fees,,Invoice,BACS,No,23/09/2022 00:00,2022,6,PP09901801v1MHR,D5100,Development Control - Fee Earn,K4006,Planning Fees,CPC00,Development Control Advice,CPC,Development Control,CP,Planning and Development Services,C,"Cultural, Environmental & Planning Services"
GUILDFORD BOROUGH COUNCIL,Homelessness Support,1000033,London Hounslow Ltd,16/08/2022,30078648,360,0,Emergency Accomodation,,Invoice,BACS,No,07/07/2022 00:00,2022,5,H20955,C3311,Homelessness,D8009,Emergency Accomodation,KGU00,Supporting People - Strategy,KGU,Supporting People,KG,Housing General Fund,K,Housing Services
GUILDFORD BOROUGH COUNCIL,Homelessness Support,1000033,London Hounslow Ltd,14/07/2022,30074541,1800,0,Emergency Accomodation,,Invoice,BACS,No,13/05/2022 00:00,2022,4,H20933,C3311,Homelessness,D8009,Emergency Accomodation,KGU00,Supporting People - Strategy,KGU,Supporting People,KG,Housing General Fund,K,Housing Services
GUILDFORD BOROUGH COUNCIL,IT Renewals,1000035,Gravitas Recruitment Group,23/08/2022,30079186,3025,0,Agency Staff,,Invoice,BACS,No,15/08/2022 00:00,2022,5,INV184019,P81002,IT Renewals Reserve Funded General,1222,Agency Staff,XXX99,*** UNASSIGNED ***,WCC,CEC Recharges,WC,CEC Recharges,A,Central Services
GUILDFORD BOROUGH COUNCIL,IT Renewals,1000035,Gravitas Recruitment Group,20/09/2022,30081730,3025,0,Agency Staff,,Invoice,BACS,No,12/09/2022 00:00,2022,6,INV185124,P81002,IT Renewals Reserve Funded General,1222,Agency Staff,XXX99,*** UNASSIGNED ***,WCC,CEC Recharges,WC,CEC Recharges,A,Central Services
GUILDFORD BOROUGH COUNCIL,IT Renewals,1000035,Gravitas Recruitment Group,04/08/2022,30077130,9075,0,Miscellaneous Expenses,,Invoice,BACS,No,26/07/2022 00:00,2022,4,INV183231,P81002,IT Renewals Reserve Funded General,1444,Miscellaneous Expenses,XXX99,*** UNASSIGNED ***,WCC,CEC Recharges,WC,CEC Recharges,A,Central Services
GUILDFORD BOROUGH COUNCIL,IT Renewals,1000035,Gravitas Recruitment Group,29/09/2022,30082124,3025,0,Agency Staff,,Invoice,BACS,No,20/09/2022 00:00,2022,6,INV185508,P81002,IT Renewals Reserve Funded General,1222,Agency Staff,XXX99,*** UNASSIGNED ***,WCC,CEC Recharges,WC,CEC Recharges,A,Central Services
GUILDFORD BOROUGH COUNCIL,IT Renewals,1000035,Gravitas Recruitment Group,15/09/2022,30081736,3025,0,Agency Staff,,Invoice,BACS,No,08/08/2022 00:00,2022,6,INV183788,P81002,IT Renewals Reserve Funded General,1222,Agency Staff,XXX99,*** UNASSIGNED ***,WCC,CEC Recharges,WC,CEC Recharges,A,Central Services
GUILDFORD BOROUGH COUNCIL,IT Renewals,1000035,Gravitas Recruitment Group,15/09/2022,30081756,3025,0,Agency Staff,,Invoice,BACS,No,07/09/2022 00:00,2022,6,INV184957,P81002,IT Renewals Reserve Funded General,1222,Agency Staff,XXX99,*** UNASSIGNED ***,WCC,CEC Recharges,WC,CEC Recharges,A,Central Services
GUILDFORD BOROUGH COUNCIL,IT Renewals,1000035,Gravitas Recruitment Group,15/09/2022,30081758,3025,0,Agency Staff,,Invoice,BACS,No,22/08/2022 00:00,2022,6,INV184240,P81002,IT Renewals Reserve Funded General,1222,Agency Staff,XXX99,*** UNASSIGNED ***,WCC,CEC Recharges,WC,CEC Recharges,A,Central Services
GUILDFORD BOROUGH COUNCIL,IT Renewals,1000035,Gravitas Recruitment Group,15/09/2022,30081763,3025,0,Agency Staff,,Invoice,BACS,No,01/08/2022 00:00,2022,6,INV183521,P81002,IT Renewals Reserve Funded General,1222,Agency Staff,XXX99,*** UNASSIGNED ***,WCC,CEC Recharges,WC,CEC Recharges,A,Central Services
GUILDFORD BOROUGH COUNCIL,New Build,1000038,Design South East,27/09/2022,30080973,3450,0,Miscellaneous Expenses,,Invoice,BACS,No,31/08/2022 00:00,2022,6,INV-3308,N30011,Guildford Park,1444,Miscellaneous Expenses,XXX99,*** UNASSIGNED ***,WCC,CEC Recharges,WC,CEC Recharges,A,Central Services
GUILDFORD BOROUGH COUNCIL,Vehicle Maintenance,1000039,Maziak Compressor Services Ltd,25/08/2022,30079043,825.59,0,Services,,Invoice,BACS,No,11/08/2022 00:00,2022,5,24321,K5551,Fleet Workshops,D6004,Services,W3A48,Current Service Costs - Fleet Management,W3A,Current Service Costs adjustment,W3,Current Service Costs,W,Other Operating Income and Expenditure
GUILDFORD BOROUGH COUNCIL,Vehicle Maintenance,1000043,NCH Lubricants,27/09/2022,30080916,349.6,0,Equipment,,Invoice,BACS,No,31/08/2022 00:00,2022,6,1200041606,K5551,Fleet Workshops,D2001,Equipment,W3A48,Current Service Costs - Fleet Management,W3A,Current Service Costs adjustment,W3,Current Service Costs,W,Other Operating Income and Expenditure
GUILDFORD BOROUGH COUNCIL,Vehicle Maintenance,1000043,NCH Lubricants,16/08/2022,30079155,265,0,Equipment,,Invoice,BACS,No,28/01/2021 00:00,2022,5,1200029889,K5551,Fleet Workshops,D2001,Equipment,W3A48,Current Service Costs - Fleet Management,W3A,Current Service Costs adjustment,W3,Current Service Costs,W,Other Operating Income and Expenditure
GUILDFORD BOROUGH COUNCIL,Vehicle Maintenance,1000043,NCH Lubricants,09/08/2022,30076236,349.6,0,Equipment,,Invoice,BACS,No,15/07/2022 00:00,2022,4,1200040786,K5551,Fleet Workshops,D2001,Equipment,W3A48,Current Service Costs - Fleet Management,W3A,Current Service Costs adjustment,W3,Current Service Costs,W,Other Operating Income and Expenditure
GUILDFORD BOROUGH COUNCIL,Public Relations,1000046,Vuelio,21/07/2022,30074243,4800,0,ICT Software,,Invoice,BACS,No,28/06/2022 00:00,2022,4,INV42353,F5551,Public Relations & Marketing,D7002,ICT Software,W3A35,Current Service Costs - Media & Publications,W3A,Current Service Costs adjustment,W3,Current Service Costs,W,Other Operating Income and Expenditure
GUILDFORD BOROUGH COUNCIL,Public Relations,1000046,Vuelio,21/07/2022,30074257,1552.5,0,ICT Software,,Invoice,BACS,No,27/06/2022 00:00,2022,4,INV42196,F5551,Public Relations & Marketing,D7002,ICT Software,W3A35,Current Service Costs - Media & Publications,W3A,Current Service Costs adjustment,W3,Current Service Costs,W,Other Operating Income and Expenditure
GUILDFORD BOROUGH COUNCIL,Park and Ride Service,1000050,Stevens and Bolton,04/08/2022,30076221,1750,0,Services,,Invoice,BACS,No,11/07/2022 00:00,2022,4,DSRJYCUN06020440,B5206,Onslow Park And Ride,D6004,Services,HTT11,Support to Public Transport Operators - Bus Services,HTT,Public Transport,HT,"Highways, Roads and Transport Services",H,"Highways, Roads and Transport Services"
GUILDFORD BOROUGH COUNCIL,Refuse and Recycling,1000057,Hotline Group Ltd,25/08/2022,30077955,269,0,Equipment,,Invoice,BACS,No,01/08/2022 00:00,2022,5,AGN47830,K3551,Refuse - Domestic,D2001,Equipment,CEW40,Disposal of Waste,CEW,Waste Disposal,CE,Environmental & Regulatory Services,C,"Cultural, Environmental & Planning Services"
GUILDFORD BOROUGH COUNCIL,Executive - Miscellaneous,1000064,Motion Consultants Ltd,27/09/2022,30082704,4000,0,Consultants Fees,,Invoice,BACS,No,31/08/2022 00:00,2022,6,INV14980,P79023,Guild Town Centre Regeneration,1221,Consultants Fees,XXX99,*** UNASSIGNED ***,WCC,CEC Recharges,WC,CEC Recharges,A,Central Services
GUILDFORD BOROUGH COUNCIL,Major Projects,1000077,3R Finance Ltd,25/08/2022,30077980,1237.5,0,Agency,,Invoice,BACS,No,01/08/2022 00:00,2022,5,INV-69712,F5530,Major Projects,A5191,Agency,DBX70,Other Management Costs,DBX,Support Service and Management Costs,DB,Children's Social Care,E,Childrens and Education Services
GUILDFORD BOROUGH COUNCIL,Major Projects,1000077,3R Finance Ltd,25/08/2022,30078684,990,0,Agency,,Invoice,BACS,No,08/08/2022 00:00,2022,5,INV-70211,F5530,Major Projects,A5191,Agency,DBX70,Other Management Costs,DBX,Support Service and Management Costs,DB,Children's Social Care,E,Childrens and Education Services
GUILDFORD BOROUGH COUNCIL,Major Projects,1000077,3R Finance Ltd,25/08/2022,30079389,1237.5,0,Agency,,Invoice,BACS,No,16/08/2022 00:00,2022,5,INV-70777,F5530,Major Projects,A5191,Agency,DBX70,Other Management Costs,DBX,Support Service and Management Costs,DB,Children's Social Care,E,Childrens and Education Services
GUILDFORD BOROUGH COUNCIL,Major Projects,1000077,3R Finance Ltd,25/08/2022,30080065,1237.5,0,Agency,,Invoice,BACS,No,23/08/2022 00:00,2022,5,INV-71196,F5530,Major Projects,A5191,Agency,DBX70,Other Management Costs,DBX,Support Service and Management Costs,DB,Children's Social Care,E,Childrens and Education Services
GUILDFORD BOROUGH COUNCIL,Major Projects,1000077,3R Finance Ltd,02/08/2022,30076187,1237.5,0,Agency,,Invoice,BACS,No,09/07/2022 00:00,2022,4,INV-68821,F5530,Major Projects,A5191,Agency,DBX70,Other Management Costs,DBX,Support Service and Management Costs,DB,Children's Social Care,E,Childrens and Education Services
GUILDFORD BOROUGH COUNCIL,Major Projects,1000077,3R Finance Ltd,04/08/2022,30075721,1237.5,0,Agency,,Invoice,BACS,No,12/07/2022 00:00,2022,4,INV-68368,F5530,Major Projects,A5191,Agency,DBX70,Other Management Costs,DBX,Support Service and Management Costs,DB,Children's Social Care,E,Childrens and Education Services
GUILDFORD BOROUGH COUNCIL,Major Projects,1000077,3R Finance Ltd,21/07/2022,30073436,1237.5,0,Agency,,Invoice,BACS,No,28/06/2022 00:00,2022,4,INV-67340,F5530,Major Projects,A5191,Agency,DBX70,Other Management Costs,DBX,Support Service and Management Costs,DB,Children's Social Care,E,Childrens and Education Services
GUILDFORD BOROUGH COUNCIL,Major Projects,1000077,3R Finance Ltd,29/09/2022,30081210,990,0,Agency,,Invoice,BACS,No,05/09/2022 00:00,2022,6,INV-72018,F5530,Major Projects,A5191,Agency,DBX70,Other Management Costs,DBX,Support Service and Management Costs,DB,Children's Social Care,E,Childrens and Education Services
GUILDFORD BOROUGH COUNCIL,Major Projects,1000077,3R Finance Ltd,18/08/2022,30076656,990,0,Agency,,Invoice,BACS,No,25/07/2022 00:00,2022,4,INV-69154,F5530,Major Projects,A5191,Agency,DBX70,Other Management Costs,DBX,Support Service and Management Costs,DB,Children's Social Care,E,Childrens and Education Services
GUILDFORD BOROUGH COUNCIL,Major Projects,1000077,3R Finance Ltd,22/09/2022,30080592,1188,0,Agency,,Invoice,BACS,No,29/08/2022 00:00,2022,6,INV-71472,F5530,Major Projects,A5191,Agency,DBX70,Other Management Costs,DBX,Support Service and Management Costs,DB,Children's Social Care,E,Childrens and Education Services
GUILDFORD BOROUGH COUNCIL,Executive - Miscellaneous,1000081,Openreach Ltd,16/08/2022,30079166,1853.4,0,Contractor Payments,,Invoice,BACS,No,10/06/2022 00:00,2022,5,A226483,P79027,Walnut Tree Bridge Replacement,1233,Contractor Payments,XXX99,*** UNASSIGNED ***,WCC,CEC Recharges,WC,CEC Recharges,A,Central Services
GUILDFORD BOROUGH COUNCIL,Industrial Estates,1000098,Amiri Construction Limited,27/09/2022,30082520,4361.09,0,Contractor Payments,,Invoice,BACS,No,09/09/2022 00:00,2022,6,1179/20,P72037,Midleton Ind Est Redevelop,1233,Contractor Payments,XXX99,*** UNASSIGNED ***,WCC,CEC Recharges,WC,CEC Recharges,A,Central Services
GUILDFORD BOROUGH COUNCIL,Corporate Health and Safety,1000101,Ideagen Gael Ltd,23/08/2022,30077714,5012.12,0,Staff Costs,,Invoice,BACS,No,29/07/2022 00:00,2022,5,SIEK17077,G2525,Health And Safety,A7100,Staff Costs,CEE30,Health and Safety,CEE,Environmental Health (Regulatory Services),CE,Environmental & Regulatory Services,C,"Cultural, Environmental & Planning Services"
GUILDFORD BOROUGH COUNCIL,Major Projects,1000127,Leonard Design Architects,23/08/2022,30078371,8800,0,Consultancy,,Invoice,BACS,No,31/07/2022 00:00,2022,5,12745,F5530,Major Projects,D6001,Consultancy,DBX70,Other Management Costs,DBX,Support Service and Management Costs,DB,Children's Social Care,E,Childrens and Education Services
GUILDFORD BOROUGH COUNCIL,Major Projects,1000127,Leonard Design Architects,26/07/2022,30075293,4400,0,Consultancy,,Invoice,BACS,No,30/06/2022 00:00,2022,4,12716,F5530,Major Projects,D6001,Consultancy,DBX70,Other Management Costs,DBX,Support Service and Management Costs,DB,Children's Social Care,E,Childrens and Education Services
GUILDFORD BOROUGH COUNCIL,Major Projects,1000127,Leonard Design Architects,27/09/2022,30081495,8800,0,Consultancy,,Invoice,BACS,No,31/08/2022 00:00,2022,6,12804,F5530,Major Projects,D6001,Consultancy,DBX70,Other Management Costs,DBX,Support Service and Management Costs,DB,Children's Social Care,E,Childrens and Education Services
GUILDFORD BOROUGH COUNCIL,Millmead House,1000133,RIDI Lighting Limited,20/09/2022,30080410,420,0,Equipment,,Invoice,BACS,No,25/08/2022 00:00,2022,5,22700773,G7511,Millmead House,D2001,Equipment,DBX70,Other Management Costs,DBX,Support Service and Management Costs,DB,Children's Social Care,E,Childrens and Education Services
GUILDFORD BOROUGH COUNCIL,Sheltered Housing,1000136,Town and Country Cleaning Limited,26/07/2022,30076434,354,0,Cleaning Contractors,,Invoice,BACS,No,21/07/2022 00:00,2022,4,25532,M1515,Sheltered Accomodation,D6006,Cleaning Contractors,XXX99,*** UNASSIGNED ***,WCC,CEC Recharges,WC,CEC Recharges,A,Central Services
GUILDFORD BOROUGH COUNCIL,Homelessness Support,1000154,Acacia Villas Guest House,26/07/2022,30074379,350,0,Emergency Accomodation,,Invoice,BACS,No,03/07/2022 00:00,2022,4,AVGH-WE03,C3311,Homelessness,D8009,Emergency Accomodation,KGU00,Supporting People - Strategy,KGU,Supporting People,KG,Housing General Fund,K,Housing Services
GUILDFORD BOROUGH COUNCIL,Homelessness Support,1000154,Acacia Villas Guest House,12/07/2022,30074389,350,0,Emergency Accomodation,,Invoice,BACS,No,19/06/2022 00:00,2022,4,AVGH-WE01,C3311,Homelessness,D8009,Emergency Accomodation,KGU00,Supporting People - Strategy,KGU,Supporting People,KG,Housing General Fund,K,Housing Services
GUILDFORD BOROUGH COUNCIL,Homelessness Support,1000154,Acacia Villas Guest House,11/08/2022,30078005,350,0,Emergency Accomodation,,Invoice,BACS,No,17/07/2022 00:00,2022,5,AVGH-WE06,C3311,Homelessness,D8009,Emergency Accomodation,KGU00,Supporting People - Strategy,KGU,Supporting People,KG,Housing General Fund,K,Housing Services
GUILDFORD BOROUGH COUNCIL,Homelessness Support,1000154,Acacia Villas Guest House,11/08/2022,30078025,350,0,Emergency Accomodation,,Invoice,BACS,No,10/07/2022 00:00,2022,5,AVGH-WE04,C3311,Homelessness,D8009,Emergency Accomodation,KGU00,Supporting People - Strategy,KGU,Supporting People,KG,Housing General Fund,K,Housing Services
GUILDFORD BOROUGH COUNCIL,Homelessness Support,1000154,Acacia Villas Guest House,23/08/2022,30078004,350,0,Emergency Accomodation,,Invoice,BACS,No,31/07/2022 00:00,2022,5,AVGH-WE07,C3311,Homelessness,D8009,Emergency Accomodation,KGU00,Supporting People - Strategy,KGU,Supporting People,KG,Housing General Fund,K,Housing Services
GUILDFORD BOROUGH COUNCIL,Homelessness Support,1000154,Acacia Villas Guest House,07/07/2022,30074360,350,0,Emergency Accomodation,,Invoice,BACS,No,06/06/2022 00:00,2022,4,AVGH-IO12,C3311,Homelessness,D8009,Emergency Accomodation,KGU00,Supporting People - Strategy,KGU,Supporting People,KG,Housing General Fund,K,Housing Services
GUILDFORD BOROUGH COUNCIL,Homelessness Support,1000154,Acacia Villas Guest House,07/07/2022,30074363,350,0,Emergency Accomodation,,Invoice,BACS,No,22/05/2022 00:00,2022,4,AVGH-IO10,C3311,Homelessness,D8009,Emergency Accomodation,KGU00,Supporting People - Strategy,KGU,Supporting People,KG,Housing General Fund,K,Housing Services
GUILDFORD BOROUGH COUNCIL,Homelessness Support,1000154,Acacia Villas Guest House,07/07/2022,30074370,350,0,Emergency Accomodation,,Invoice,BACS,No,29/05/2022 00:00,2022,4,AVGH-IO11,C3311,Homelessness,D8009,Emergency Accomodation,KGU00,Supporting People - Strategy,KGU,Supporting People,KG,Housing General Fund,K,Housing Services
GUILDFORD BOROUGH COUNCIL,Homelessness Support,1000154,Acacia Villas Guest House,07/07/2022,30074371,630,0,Emergency Accomodation,,Invoice,BACS,No,22/05/2022 00:00,2022,4,AVGH-NH19,C3311,Homelessness,D8009,Emergency Accomodation,KGU00,Supporting People - Strategy,KGU,Supporting People,KG,Housing General Fund,K,Housing Services
GUILDFORD BOROUGH COUNCIL,Homelessness Support,1000154,Acacia Villas Guest House,07/07/2022,30074419,270,0,Emergency Accomodation,,Invoice,BACS,No,25/05/2022 00:00,2022,4,AVGH-NH20,C3311,Homelessness,D8009,Emergency Accomodation,KGU00,Supporting People - Strategy,KGU,Supporting People,KG,Housing General Fund,K,Housing Services
GUILDFORD BOROUGH COUNCIL,Homelessness Support,1000154,Acacia Villas Guest House,19/07/2022,30074381,350,0,Emergency Accomodation,,Invoice,BACS,No,26/06/2022 00:00,2022,4,AVGH-WE02,C3311,Homelessness,D8009,Emergency Accomodation,KGU00,Supporting People - Strategy,KGU,Supporting People,KG,Housing General Fund,K,Housing Services
GUILDFORD BOROUGH COUNCIL,Grants to Voluntary Organisations,1000162,St Saviours Guildford,16/08/2022,30077648,500,0,Grants And Subscriptions,,Invoice,BACS,No,21/07/2022 00:00,2022,4,A00136,C3111,Community Grant Scheme,D9001,Grants And Subscriptions,AAM00,Corporate Management,AAM,Corporate Management,AA,Corporate & Democratic Core,A,Central Services
GUILDFORD BOROUGH COUNCIL,Homelessness Support,1000169,The Lion Brewery,23/08/2022,30079706,1305,0,Emergency Accomodation,,Invoice,BACS,No,12/07/2022 00:00,2022,5,JF028,C3311,Homelessness,D8009,Emergency Accomodation,KGU00,Supporting People - Strategy,KGU,Supporting People,KG,Housing General Fund,K,Housing Services
GUILDFORD BOROUGH COUNCIL,Homelessness Support,1000169,The Lion Brewery,19/07/2022,30074403,1184.17,0,Emergency Accomodation,,Invoice,BACS,No,22/06/2022 00:00,2022,4,CG027,C3311,Homelessness,D8009,Emergency Accomodation,KGU00,Supporting People - Strategy,KGU,Supporting People,KG,Housing General Fund,K,Housing Services
GUILDFORD BOROUGH COUNCIL,Major Projects,1000172,Gleeds Advisory Ltd,02/08/2022,30076645,15000,0,Consultancy,,Invoice,BACS,No,30/06/2022 00:00,2022,4,LNDM0037/007,F5530,Major Projects,D6001,Consultancy,DBX70,Other Management Costs,DBX,Support Service and Management Costs,DB,Children's Social Care,E,Childrens and Education Services
GUILDFORD BOROUGH COUNCIL,Major Projects,1000172,Gleeds Advisory Ltd,02/08/2022,30076634,25130,0,Consultancy,,Invoice,BACS,No,30/06/2022 00:00,2022,4,LNDM0038/008,F5530,Major Projects,D6001,Consultancy,DBX70,Other Management Costs,DBX,Support Service and Management Costs,DB,Children's Social Care,E,Childrens and Education Services
GUILDFORD BOROUGH COUNCIL,Major Projects,1000172,Gleeds Advisory Ltd,22/09/2022,30081794,25130,0,Consultancy,,Invoice,BACS,No,31/07/2022 00:00,2022,6,LNDM0038/009,F5530,Major Projects,D6001,Consultancy,DBX70,Other Management Costs,DBX,Support Service and Management Costs,DB,Children's Social Care,E,Childrens and Education Services
GUILDFORD BOROUGH COUNCIL,Major Projects,1000172,Gleeds Advisory Ltd,22/09/2022,30081810,5000,0,Consultancy,,Invoice,BACS,No,31/07/2022 00:00,2022,6,LNDM0037/008,F5530,Major Projects,D6001,Consultancy,DBX70,Other Management Costs,DBX,Support Service and Management Costs,DB,Children's Social Care,E,Childrens and Education Services
GUILDFORD BOROUGH COUNCIL,Major Projects,1000172,Gleeds Advisory Ltd,26/07/2022,30076190,28720,0,Consultancy,,Invoice,BACS,No,31/05/2022 00:00,2022,4,LNDM0038/007,F5530,Major Projects,D6001,Consultancy,DBX70,Other Management Costs,DBX,Support Service and Management Costs,DB,Children's Social Care,E,Childrens and Education Services
GUILDFORD BOROUGH COUNCIL,Major Projects,1000172,Gleeds Advisory Ltd,26/07/2022,30076226,15000,0,Consultancy,,Invoice,BACS,No,31/05/2022 00:00,2022,4,LNDM0037/006,F5530,Major Projects,D6001,Consultancy,DBX70,Other Management Costs,DBX,Support Service and Management Costs,DB,Children's Social Care,E,Childrens and Education Services
GUILDFORD BOROUGH COUNCIL,Tourism & Development,1000175,Visit Surrey Community Interest Company,16/08/2022,30076647,3000,0,Grants And Subscriptions,,Invoice,BACS,No,22/07/2022 00:00,2022,4,VS1201,F5545,Tourism,D9001,Grants And Subscriptions,CCF00,"Tourism Policy, Marketing & Development",CCF,Tourism,CC,Cultural & Related Services,C,"Cultural, Environmental & Planning Services"
GUILDFORD BOROUGH COUNCIL,Executive - Miscellaneous,1000198,VolkerLaser Limited,19/07/2022,30075908,59686.12,0,Consultants Fees,,Invoice,BACS,No,14/07/2022 00:00,2022,4,VL5182,P79027,Walnut Tree Bridge Replacement,1221,Consultants Fees,XXX99,*** UNASSIGNED ***,WCC,CEC Recharges,WC,CEC Recharges,A,Central Services
GUILDFORD BOROUGH COUNCIL,Major Projects,1000209,Gardiner & Theobald LLP,20/09/2022,30080399,4764.53,0,Consultancy,,Invoice,BACS,No,25/08/2022 00:00,2022,6,SC240715,F5530,Major Projects,D6001,Consultancy,DBX70,Other Management Costs,DBX,Support Service and Management Costs,DB,Children's Social Care,E,Childrens and Education Services
GUILDFORD BOROUGH COUNCIL,Major Projects,1000209,Gardiner & Theobald LLP,18/08/2022,30078669,17998,0,Consultancy,,Invoice,BACS,No,25/07/2022 00:00,2022,5,SC240383,F5530,Major Projects,D6001,Consultancy,DBX70,Other Management Costs,DBX,Support Service and Management Costs,DB,Children's Social Care,E,Childrens and Education Services
GUILDFORD BOROUGH COUNCIL,Development Control,1000212,Redactive Media Sales Ltd,25/08/2022,30080115,1250,0,Consultancy,,Invoice,BACS,No,18/05/2022 00:00,2022,5,PJ124125,D5100,Development Control - Fee Earn,D6001,Consultancy,CPC00,Development Control Advice,CPC,Development Control,CP,Planning and Development Services,C,"Cultural, Environmental & Planning Services"
GUILDFORD BOROUGH COUNCIL,Development Control,1000212,Redactive Media Sales Ltd,25/08/2022,30080152,1250,0,Consultancy,,Invoice,BACS,No,18/05/2022 00:00,2022,5,PJ124126,D5100,Development Control - Fee Earn,D6001,Consultancy,CPC00,Development Control Advice,CPC,Development Control,CP,Planning and Development Services,C,"Cultural, Environmental & Planning Services"
GUILDFORD BOROUGH COUNCIL,Major Projects,1000225,Jones Lang LaSalle Limited,20/09/2022,30080691,5000,0,Consultancy,,Invoice,BACS,No,26/08/2022 00:00,2022,6,EN002-0440005,F5530,Major Projects,D6001,Consultancy,DBX70,Other Management Costs,DBX,Support Service and Management Costs,DB,Children's Social Care,E,Childrens and Education Services
GUILDFORD BOROUGH COUNCIL,Homelessness Support,1000226,Anonymous,21/07/2022,30075935,1760,0,Partnerships,,Invoice,BACS,No,18/07/2022 00:00,2022,4,Rent in advance,C3311,Homelessness,D6013,Partnerships,KGU00,Supporting People - Strategy,KGU,Supporting People,KG,Housing General Fund,K,Housing Services
GUILDFORD BOROUGH COUNCIL,Homelessness Support,1000226,Anonymous,21/07/2022,30075936,1760,0,Partnerships,,Invoice,BACS,No,18/07/2022 00:00,2022,4,Rent in advance,C3311,Homelessness,D6013,Partnerships,KGU00,Supporting People - Strategy,KGU,Supporting People,KG,Housing General Fund,K,Housing Services
GUILDFORD BOROUGH COUNCIL,Homelessness Support,1000226,Anonymous,13/09/2022,30081553,1500,0,Partnerships,,Invoice,BACS,No,09/09/2022 00:00,2022,6,Rent in advance,C3311,Homelessness,D6013,Partnerships,KGU00,Supporting People - Strategy,KGU,Supporting People,KG,Housing General Fund,K,Housing Services
GUILDFORD BOROUGH COUNCIL,Homelessness Support,1000226,Anonymous,13/09/2022,30081554,1760,0,Partnerships,,Invoice,BACS,No,09/09/2022 00:00,2022,6,Rent in advance,C3311,Homelessness,D6013,Partnerships,KGU00,Supporting People - Strategy,KGU,Supporting People,KG,Housing General Fund,K,Housing Services
GUILDFORD BOROUGH COUNCIL,Environmental Health,1000227,Funeral Partners Ltd t/a James and Thomas Funeral,30/08/2022,30080365,832,0,Services,,Invoice,BACS,No,05/05/2022 00:00,2022,5,298734/1311,C1113,Environmental Control,D6004,Services,CEE25,Environmental Protection,CEE,Environmental Health (Regulatory Services),CE,Environmental & Regulatory Services,C,"Cultural, Environmental & Planning Services"
GUILDFORD BOROUGH COUNCIL,Major Projects,1000230,Carter Jonas LLP,27/09/2022,30080623,1245,0,Consultancy,,Invoice,BACS,No,31/08/2022 00:00,2022,6,F0200255,F5530,Major Projects,D6001,Consultancy,DBX70,Other Management Costs,DBX,Support Service and Management Costs,DB,Children's Social Care,E,Childrens and Education Services
GUILDFORD BOROUGH COUNCIL,Major Projects,1000230,Carter Jonas LLP,23/08/2022,30078365,2665.52,0,Consultancy,,Invoice,BACS,No,29/07/2022 00:00,2022,5,F0197909,F5530,Major Projects,D6001,Consultancy,DBX70,Other Management Costs,DBX,Support Service and Management Costs,DB,Children's Social Care,E,Childrens and Education Services
GUILDFORD BOROUGH COUNCIL,New Build,1000230,Carter Jonas LLP,26/07/2022,30074227,2429.01,0,Consultants Fees,,Invoice,BACS,No,30/06/2022 00:00,2022,4,F0194680,N30011,Guildford Park,1221,Consultants Fees,XXX99,*** UNASSIGNED ***,WCC,CEC Recharges,WC,CEC Recharges,A,Central Services
GUILDFORD BOROUGH COUNCIL,Major Projects,1000230,Carter Jonas LLP,26/07/2022,30074325,3519,0,Consultancy,,Invoice,BACS,No,30/06/2022 00:00,2022,4,F0194691,F5530,Major Projects,D6001,Consultancy,DBX70,Other Management Costs,DBX,Support Service and Management Costs,DB,Children's Social Care,E,Childrens and Education Services
GUILDFORD BOROUGH COUNCIL,New Build,1000230,Carter Jonas LLP,20/09/2022,30080397,2387.9,0,Consultants Fees,,Invoice,BACS,No,26/08/2022 00:00,2022,5,F0200252,N30011,Guildford Park,1221,Consultants Fees,XXX99,*** UNASSIGNED ***,WCC,CEC Recharges,WC,CEC Recharges,A,Central Services
GUILDFORD BOROUGH COUNCIL,New Build,1000230,Carter Jonas LLP,23/08/2022,30077664,3354.8,0,Consultants Fees,,Invoice,BACS,No,29/07/2022 00:00,2022,5,F0197892,N30011,Guildford Park,1221,Consultants Fees,XXX99,*** UNASSIGNED ***,WCC,CEC Recharges,WC,CEC Recharges,A,Central Services
GUILDFORD BOROUGH COUNCIL,Development Control,1000232,Hankinson Duckett Associates Ltd,26/07/2022,30076423,1289,0,Consultancy,,Invoice,BACS,No,29/06/2022 00:00,2022,4,HD17257,D5100,Development Control - Fee Earn,D6001,Consultancy,CPC00,Development Control Advice,CPC,Development Control,CP,Planning and Development Services,C,"Cultural, Environmental & Planning Services"
GUILDFORD BOROUGH COUNCIL,Development Control,1000232,Hankinson Duckett Associates Ltd,26/07/2022,30076424,1590,0,Consultancy,,Invoice,BACS,No,29/06/2022 00:00,2022,4,HD17262,D5100,Development Control - Fee Earn,D6001,Consultancy,CPC00,Development Control Advice,CPC,Development Control,CP,Planning and Development Services,C,"Cultural, Environmental & Planning Services"
GUILDFORD BOROUGH COUNCIL,Crematorium,1000233,Clear Skies Software,07/07/2022,30074573,822.5,0,ICT Support & Maintenance,,Invoice,BACS,No,04/06/2022 00:00,2022,4,103302,A1500,Crematorium,D7003,ICT Support & Maintenance,CEA10,Crematoria,CEA,"Cemetery, Cremation and Mortuary Services",CE,Environmental & Regulatory Services,C,"Cultural, Environmental & Planning Services"
GUILDFORD BOROUGH COUNCIL,Crematorium,1000233,Clear Skies Software,07/07/2022,30074573,350,0,ICT Support & Maintenance,,Invoice,BACS,No,04/06/2022 00:00,2022,4,103302,A1500,Crematorium,D7003,ICT Support & Maintenance,CEA10,Crematoria,CEA,"Cemetery, Cremation and Mortuary Services",CE,Environmental & Regulatory Services,C,"Cultural, Environmental & Planning Services"
GUILDFORD BOROUGH COUNCIL,Major Projects,1000235,Arup,25/08/2022,30079874,10386.36,0,Consultancy,,Invoice,BACS,No,21/08/2022 00:00,2022,5,88-2206205,F5530,Major Projects,D6001,Consultancy,DBX70,Other Management Costs,DBX,Support Service and Management Costs,DB,Children's Social Care,E,Childrens and Education Services
GUILDFORD BOROUGH COUNCIL,Major Projects,1000235,Arup,27/09/2022,30081338,35000,0,Consultancy,,Invoice,BACS,No,31/08/2022 00:00,2022,6,88-2207527,F5530,Major Projects,D6001,Consultancy,DBX70,Other Management Costs,DBX,Support Service and Management Costs,DB,Children's Social Care,E,Childrens and Education Services
GUILDFORD BOROUGH COUNCIL,Major Projects,1000235,Arup,16/08/2022,30076627,10386.36,0,Consultancy,,Invoice,BACS,No,20/07/2022 00:00,2022,4,88-2204802,F5530,Major Projects,D6001,Consultancy,DBX70,Other Management Costs,DBX,Support Service and Management Costs,DB,Children's Social Care,E,Childrens and Education Services
GUILDFORD BOROUGH COUNCIL,Digital Services,1000236,SmartSurvey Ltd,19/07/2022,30075876,540,0,ICT Software,,Invoice,BACS,No,07/06/2022 00:00,2022,4,INV-19604,F1141,Internet Site Access,D7002,ICT Software,DBX70,Other Management Costs,DBX,Support Service and Management Costs,DB,Children's Social Care,E,Childrens and Education Services
GUILDFORD BOROUGH COUNCIL,Car Leasing Holding Code (Service),1000256,KINTO U.K. Limited,23/08/2022,30077654,4841.22,0,Car Leasing,,Invoice,BACS,No,28/07/2022 00:00,2022,4,2393012,G1131,Car Leasing Holding Code,C3002,Car Leasing,,,,,,,,
GUILDFORD BOROUGH COUNCIL,Vehicle Maintenance,1000265,Maps Platforms,11/08/2022,30078685,1900,0,External Vehicle Hire,,Invoice,BACS,No,15/06/2022 00:00,2022,5,6161,K5551,Fleet Workshops,C3001,External Vehicle Hire,W3A48,Current Service Costs - Fleet Management,W3A,Current Service Costs adjustment,W3,Current Service Costs,W,Other Operating Income and Expenditure
GUILDFORD BOROUGH COUNCIL,Vehicle Maintenance,1000265,Maps Platforms,12/07/2022,30075308,2689.6,0,Repair And Maintenance Of Vehicles,,Invoice,BACS,No,31/05/2022 00:00,2022,4,6117,K5551,Fleet Workshops,C1002,Repair And Maintenance Of Vehicles,W3A48,Current Service Costs - Fleet Management,W3A,Current Service Costs adjustment,W3,Current Service Costs,W,Other Operating Income and Expenditure
GUILDFORD BOROUGH COUNCIL,Executive - Miscellaneous,1000269,DAVITT JONES BOULD LIMITED,25/08/2022,30079864,1032,0,Consultants Fees,,Invoice,BACS,No,08/08/2022 00:00,2022,5,203037,P79037,Ash Road Bridge,1221,Consultants Fees,XXX99,*** UNASSIGNED ***,WCC,CEC Recharges,WC,CEC Recharges,A,Central Services
GUILDFORD BOROUGH COUNCIL,Executive - Miscellaneous,1000280,Blakedown Landscapes (SE) Ltd,12/07/2022,30074638,163274.28,0,Consultants Fees,,Invoice,BACS,No,27/06/2022 00:00,2022,4,L12198,P79100,Wuv - Allotment Relocation,1221,Consultants Fees,,,,,,,,
GUILDFORD BOROUGH COUNCIL,Executive - Miscellaneous,1000280,Blakedown Landscapes (SE) Ltd,06/09/2022,30080908,8628.11,0,Consultants Fees,,Invoice,BACS,No,01/09/2022 00:00,2022,6,L12252,P79100,Wuv - Allotment Relocation,1221,Consultants Fees,,,,,,,,
GUILDFORD BOROUGH COUNCIL,Executive - Miscellaneous,1000280,Blakedown Landscapes (SE) Ltd,09/08/2022,30078376,57917.73,0,Consultants Fees,,Invoice,BACS,No,02/08/2022 00:00,2022,5,L12235,P79100,Wuv - Allotment Relocation,1221,Consultants Fees,,,,,,,,
GUILDFORD BOROUGH COUNCIL,Leisure and Community,1000286,Pyrotec Fire Protection Limited,16/08/2022,30077679,438.2,0,Building Expenses,,Invoice,BACS,No,22/07/2022 00:00,2022,5,4086622,A8121,Bellfields Youth and Community Centre,B1002,Building Expenses,CCD00,Community Centres and Public Halls,CCD,Recreation & Sport,CC,Cultural & Related Services,C,"Cultural, Environmental & Planning Services"
GUILDFORD BOROUGH COUNCIL,Countryside and Parks Services,1000286,Pyrotec Fire Protection Limited,16/08/2022,30077679,276.6,0,Building Expenses,,Invoice,BACS,No,22/07/2022 00:00,2022,5,4086622,A1230,Sutherland Memorial Park  Pavilion,B1002,Building Expenses,CCE00,Community Parks & Open Spaces,CCE,Open Spaces,CC,Cultural & Related Services,C,"Cultural, Environmental & Planning Services"
GUILDFORD BOROUGH COUNCIL,Day Services,1000286,Pyrotec Fire Protection Limited,16/08/2022,30077679,912.5,0,Building Expenses,,Invoice,BACS,No,22/07/2022 00:00,2022,5,4086622,C8100,Community Hubs,B1002,Building Expenses,KGU00,Supporting People - Strategy,KGU,Supporting People,KG,Housing General Fund,K,Housing Services
GUILDFORD BOROUGH COUNCIL,Responsive & Planned Maintenance,1000286,Pyrotec Fire Protection Limited,16/08/2022,30077679,964.5,0,Building Expenses,,Invoice,BACS,No,22/07/2022 00:00,2022,5,4086622,M5113,Repairs-Responsive (BHS),B1002,Building Expenses,XXX99,*** UNASSIGNED ***,WCC,CEC Recharges,WC,CEC Recharges,A,Central Services
GUILDFORD BOROUGH COUNCIL,Responsive & Planned Maintenance,1000286,Pyrotec Fire Protection Limited,16/08/2022,30077679,337.6,0,Building Expenses,,Invoice,BACS,No,22/07/2022 00:00,2022,5,4086622,M5113,Repairs-Responsive (BHS),B1002,Building Expenses,XXX99,*** UNASSIGNED ***,WCC,CEC Recharges,WC,CEC Recharges,A,Central Services
GUILDFORD BOROUGH COUNCIL,Responsive & Planned Maintenance,1000286,Pyrotec Fire Protection Limited,16/08/2022,30077679,740.61,0,Building Expenses,,Invoice,BACS,No,22/07/2022 00:00,2022,5,4086622,M5113,Repairs-Responsive (BHS),B1002,Building Expenses,XXX99,*** UNASSIGNED ***,WCC,CEC Recharges,WC,CEC Recharges,A,Central Services
GUILDFORD BOROUGH COUNCIL,Responsive & Planned Maintenance,1000286,Pyrotec Fire Protection Limited,16/08/2022,30077679,740.61,0,Building Expenses,,Invoice,BACS,No,22/07/2022 00:00,2022,5,4086622,M5113,Repairs-Responsive (BHS),B1002,Building Expenses,XXX99,*** UNASSIGNED ***,WCC,CEC Recharges,WC,CEC Recharges,A,Central Services
GUILDFORD BOROUGH COUNCIL,Responsive & Planned Maintenance,1000286,Pyrotec Fire Protection Limited,16/08/2022,30077679,337.6,0,Building Expenses,,Invoice,BACS,No,22/07/2022 00:00,2022,5,4086622,M5113,Repairs-Responsive (BHS),B1002,Building Expenses,XXX99,*** UNASSIGNED ***,WCC,CEC Recharges,WC,CEC Recharges,A,Central Services
GUILDFORD BOROUGH COUNCIL,Responsive & Planned Maintenance,1000286,Pyrotec Fire Protection Limited,16/08/2022,30077679,337.6,0,Building Expenses,,Invoice,BACS,No,22/07/2022 00:00,2022,5,4086622,M5113,Repairs-Responsive (BHS),B1002,Building Expenses,XXX99,*** UNASSIGNED ***,WCC,CEC Recharges,WC,CEC Recharges,A,Central Services
GUILDFORD BOROUGH COUNCIL,Responsive & Planned Maintenance,1000286,Pyrotec Fire Protection Limited,16/08/2022,30077679,371.65,0,Building Expenses,,Invoice,BACS,No,22/07/2022 00:00,2022,5,4086622,M5106,Repairs-Shelt-Responsive (BHS),B1002,Building Expenses,XXX99,*** UNASSIGNED ***,WCC,CEC Recharges,WC,CEC Recharges,A,Central Services
GUILDFORD BOROUGH COUNCIL,Responsive & Planned Maintenance,1000286,Pyrotec Fire Protection Limited,29/09/2022,30082007,337.6,0,Building Expenses,,Invoice,BACS,No,05/09/2022 00:00,2022,6,4088353,M5113,Repairs-Responsive (BHS),B1002,Building Expenses,XXX99,*** UNASSIGNED ***,WCC,CEC Recharges,WC,CEC Recharges,A,Central Services
GUILDFORD BOROUGH COUNCIL,Responsive & Planned Maintenance,1000286,Pyrotec Fire Protection Limited,29/09/2022,30082007,1325.73,0,Building Expenses,,Invoice,BACS,No,05/09/2022 00:00,2022,6,4088353,M5113,Repairs-Responsive (BHS),B1002,Building Expenses,XXX99,*** UNASSIGNED ***,WCC,CEC Recharges,WC,CEC Recharges,A,Central Services
GUILDFORD BOROUGH COUNCIL,Guildford Museum,1000286,Pyrotec Fire Protection Limited,29/09/2022,30082007,414.52,0,Building Expenses,,Invoice,BACS,No,05/09/2022 00:00,2022,6,4088353,A5511,Museum,B1002,Building Expenses,CCA30,Museums & Galleries,CCA,Culture & Heritage,CC,Cultural & Related Services,C,"Cultural, Environmental & Planning Services"
GUILDFORD BOROUGH COUNCIL,Guildford Museum,1000286,Pyrotec Fire Protection Limited,25/08/2022,30079792,435.55,0,Building Expenses,,Invoice,BACS,No,16/08/2022 00:00,2022,5,4087555,A5511,Museum,B1002,Building Expenses,CCA30,Museums & Galleries,CCA,Culture & Heritage,CC,Cultural & Related Services,C,"Cultural, Environmental & Planning Services"
GUILDFORD BOROUGH COUNCIL,Responsive & Planned Maintenance,1000286,Pyrotec Fire Protection Limited,25/08/2022,30079792,337.6,0,Building Expenses,,Invoice,BACS,No,16/08/2022 00:00,2022,5,4087555,M5113,Repairs-Responsive (BHS),B1002,Building Expenses,XXX99,*** UNASSIGNED ***,WCC,CEC Recharges,WC,CEC Recharges,A,Central Services
GUILDFORD BOROUGH COUNCIL,Responsive & Planned Maintenance,1000286,Pyrotec Fire Protection Limited,25/08/2022,30079792,359.49,0,Building Expenses,,Invoice,BACS,No,16/08/2022 00:00,2022,5,4087555,M5113,Repairs-Responsive (BHS),B1002,Building Expenses,XXX99,*** UNASSIGNED ***,WCC,CEC Recharges,WC,CEC Recharges,A,Central Services
GUILDFORD BOROUGH COUNCIL,Responsive & Planned Maintenance,1000286,Pyrotec Fire Protection Limited,25/08/2022,30079792,267.62,0,Building Expenses,,Invoice,BACS,No,16/08/2022 00:00,2022,5,4087555,M5106,Repairs-Shelt-Responsive (BHS),B1002,Building Expenses,XXX99,*** UNASSIGNED ***,WCC,CEC Recharges,WC,CEC Recharges,A,Central Services
GUILDFORD BOROUGH COUNCIL,Other Short Term Creditors,1000291,Shooting Star Children's Hospices,25/08/2022,30080098,20000,0,Payments,,Invoice,BACS,No,24/08/2022 00:00,2022,5,Guildford Mayor - Monies Raised 21/22,L02096,Mayors Charitable Events,2489,Payments,,,,,,,,
GUILDFORD BOROUGH COUNCIL,Grants to Voluntary Organisations,1000296,Horsley and Bookham Riding for the Disabled Assoc,06/09/2022,30080913,500,0,Grants And Subscriptions,,Invoice,BACS,No,29/07/2022 00:00,2022,6,INV-1149,C3111,Community Grant Scheme,D9001,Grants And Subscriptions,AAM00,Corporate Management,AAM,Corporate Management,AA,Corporate & Democratic Core,A,Central Services
GUILDFORD BOROUGH COUNCIL,Major Projects,1000307,Trowers and Hamlins LLP,07/07/2022,30072674,501.9,0,Services,,Invoice,BACS,No,31/05/2022 00:00,2022,4,11-169981,F5530,Major Projects,D6004,Services,DBX70,Other Management Costs,DBX,Support Service and Management Costs,DB,Children's Social Care,E,Childrens and Education Services
GUILDFORD BOROUGH COUNCIL,Major Projects,1000307,Trowers and Hamlins LLP,07/07/2022,30072684,13758.2,0,Services,,Invoice,BACS,No,31/05/2022 00:00,2022,4,11-169962,F5530,Major Projects,D6004,Services,DBX70,Other Management Costs,DBX,Support Service and Management Costs,DB,Children's Social Care,E,Childrens and Education Services
GUILDFORD BOROUGH COUNCIL,Vehicle Maintenance,1000326,TSG UK Solutions Ltd,25/08/2022,30080061,405,0,Services,,Invoice,BACS,No,21/08/2022 00:00,2022,5,835205,K5551,Fleet Workshops,D6004,Services,W3A48,Current Service Costs - Fleet Management,W3A,Current Service Costs adjustment,W3,Current Service Costs,W,Other Operating Income and Expenditure
GUILDFORD BOROUGH COUNCIL,Vehicle Maintenance,1000326,TSG UK Solutions Ltd,26/07/2022,30074620,341.25,0,Services,,Invoice,BACS,No,03/07/2022 00:00,2022,4,832949,K5551,Fleet Workshops,D6004,Services,W3A48,Current Service Costs - Fleet Management,W3A,Current Service Costs adjustment,W3,Current Service Costs,W,Other Operating Income and Expenditure
GUILDFORD BOROUGH COUNCIL,Off Street Parking,1000332,SSG Support Services Group Ltd,28/07/2022,30074592,11666.67,0,Services,,Invoice,BACS,No,04/07/2022 00:00,2022,4,SSG/786/11641,B2216,General Upkeep- Urban Car Pks,D6004,Services,HTP10,Off-Street Parking,HTP,Parking Services,HT,"Highways, Roads and Transport Services",H,"Highways, Roads and Transport Services"
GUILDFORD BOROUGH COUNCIL,Off Street Parking,1000332,SSG Support Services Group Ltd,25/08/2022,30078478,11666.67,0,Services,,Invoice,BACS,No,03/08/2022 00:00,2022,5,SSG/786/11924,B2216,General Upkeep- Urban Car Pks,D6004,Services,HTP10,Off-Street Parking,HTP,Parking Services,HT,"Highways, Roads and Transport Services",H,"Highways, Roads and Transport Services"
GUILDFORD BOROUGH COUNCIL,Renovations,1000338,3MS Gold Services Ltd,09/08/2022,30078247,4070.07,0,Contractor Payments,,Invoice,BACS,No,29/07/2022 00:00,2022,5,2824,N40295,Disabled adaptations,1233,Contractor Payments,,,,,,,,
GUILDFORD BOROUGH COUNCIL,Renovations,1000338,3MS Gold Services Ltd,09/08/2022,30078247,2713.38,0,Contractor Payments,,Invoice,BACS,No,29/07/2022 00:00,2022,5,2824,N40295,Disabled adaptations,1233,Contractor Payments,,,,,,,,
GUILDFORD BOROUGH COUNCIL,Renovations,1000340,Buildperfect Group Ltd,09/08/2022,30078432,8334.73,0,Contractor Payments,,Invoice,BACS,No,03/08/2022 00:00,2022,5,M-2579,N40295,Disabled adaptations,1233,Contractor Payments,,,,,,,,
GUILDFORD BOROUGH COUNCIL,Renovations,1000340,Buildperfect Group Ltd,28/07/2022,30077120,4088.03,0,Contractor Payments,,Invoice,BACS,No,19/07/2022 00:00,2022,4,M-2571,N40295,Disabled adaptations,1233,Contractor Payments,,,,,,,,
GUILDFORD BOROUGH COUNCIL,Renovations,1000340,Buildperfect Group Ltd,12/07/2022,30075645,6401.08,0,Contractor Payments,,Invoice,BACS,No,20/06/2022 00:00,2022,4,M2560,N40295,Disabled adaptations,1233,Contractor Payments,,,,,,,,
GUILDFORD BOROUGH COUNCIL,Renovations,1000340,Buildperfect Group Ltd,12/07/2022,30075646,6290.2,0,Contractor Payments,,Invoice,BACS,No,07/07/2022 00:00,2022,4,M-2567,N40295,Disabled adaptations,1233,Contractor Payments,,,,,,,,
GUILDFORD BOROUGH COUNCIL,Renovations,1000340,Buildperfect Group Ltd,12/07/2022,30075647,5382.26,0,Contractor Payments,,Invoice,BACS,No,07/07/2022 00:00,2022,4,M-2568,N40295,Disabled adaptations,1233,Contractor Payments,,,,,,,,
GUILDFORD BOROUGH COUNCIL,Renovations,1000340,Buildperfect Group Ltd,25/08/2022,30080300,5759.01,0,Contractor Payments,,Invoice,BACS,No,24/08/2022 00:00,2022,5,M-2585,N40295,Disabled adaptations,1233,Contractor Payments,,,,,,,,
GUILDFORD BOROUGH COUNCIL,Renovations,1000340,Buildperfect Group Ltd,02/08/2022,30077685,2340.41,0,Contractor Payments,,Invoice,BACS,No,08/06/2022 00:00,2022,5,M-2553,N40295,Disabled adaptations,1233,Contractor Payments,,,,,,,,
GUILDFORD BOROUGH COUNCIL,Renovations,1000340,Buildperfect Group Ltd,02/08/2022,30077686,2309.79,0,Contractor Payments,,Invoice,BACS,No,08/06/2022 00:00,2022,5,M-2554,N40295,Disabled adaptations,1233,Contractor Payments,,,,,,,,
GUILDFORD BOROUGH COUNCIL,Other Property,1000348,Card Geotechnics Limited (CGL),18/08/2022,30077711,6400,0,GF Assets - Maintenance,,Invoice,BACS,No,26/07/2022 00:00,2022,5,INV019935,B6209,Foxenden Tunnels,B1004,GF Assets - Maintenance,DBX45,Property Services,DBX,Support Service and Management Costs,DB,Children's Social Care,E,Childrens and Education Services
GUILDFORD BOROUGH COUNCIL,Responsive & Planned Maintenance,1000355,Liftec Lifts Limited,23/08/2022,30078218,387.5,0,Asset Maintenance,,Invoice,BACS,No,29/07/2022 00:00,2022,5,NV216762,M5107,Repairs-Shelt-Cyclical (BHS),B1001,Asset Maintenance,XXX99,*** UNASSIGNED ***,WCC,CEC Recharges,WC,CEC Recharges,A,Central Services
GUILDFORD BOROUGH COUNCIL,Other Property,1000355,Liftec Lifts Limited,23/08/2022,30078231,19451.3,0,Asset Maintenance,,Invoice,BACS,No,29/07/2022 00:00,2022,5,NV216858,G7515,Old Millmead House,B1001,Asset Maintenance,DBX45,Property Services,DBX,Support Service and Management Costs,DB,Children's Social Care,E,Childrens and Education Services
GUILDFORD BOROUGH COUNCIL,Other Property,1000355,Liftec Lifts Limited,11/08/2022,30078954,11670.78,0,Asset Maintenance,,Invoice,BACS,No,13/07/2022 00:00,2022,5,NV215901,G7515,Old Millmead House,B1001,Asset Maintenance,DBX45,Property Services,DBX,Support Service and Management Costs,DB,Children's Social Care,E,Childrens and Education Services
GUILDFORD BOROUGH COUNCIL,Responsive & Planned Maintenance,1000355,Liftec Lifts Limited,11/08/2022,30078600,1896,0,Asset Maintenance,,Invoice,BACS,No,30/05/2022 00:00,2022,5,NV213258,M5106,Repairs-Shelt-Responsive (BHS),B1001,Asset Maintenance,XXX99,*** UNASSIGNED ***,WCC,CEC Recharges,WC,CEC Recharges,A,Central Services
GUILDFORD BOROUGH COUNCIL,Flats Communal Services,1000355,Liftec Lifts Limited,20/09/2022,30080823,1703.4,0,Asset Maintenance,,Invoice,BACS,No,24/08/2022 00:00,2022,6,NV218126,M2646,Bishops Court 1-40 (40),B1001,Asset Maintenance,XXX99,*** UNASSIGNED ***,WCC,CEC Recharges,WC,CEC Recharges,A,Central Services
GUILDFORD BOROUGH COUNCIL,Responsive & Planned Maintenance,1000355,Liftec Lifts Limited,20/09/2022,30082012,5280,0,Asset Maintenance,,Invoice,BACS,No,30/06/2022 00:00,2022,6,NV214967,M5106,Repairs-Shelt-Responsive (BHS),B1001,Asset Maintenance,XXX99,*** UNASSIGNED ***,WCC,CEC Recharges,WC,CEC Recharges,A,Central Services
GUILDFORD BOROUGH COUNCIL,Responsive & Planned Maintenance,1000355,Liftec Lifts Limited,22/09/2022,30081260,387.5,0,Asset Maintenance,,Invoice,BACS,No,30/08/2022 00:00,2022,6,NV218347,M5107,Repairs-Shelt-Cyclical (BHS),B1001,Asset Maintenance,XXX99,*** UNASSIGNED ***,WCC,CEC Recharges,WC,CEC Recharges,A,Central Services
GUILDFORD BOROUGH COUNCIL,Investment Properties,1000355,Liftec Lifts Limited,12/07/2022,30075638,3314.39,0,Asset Maintenance,,Invoice,BACS,No,28/04/2022 00:00,2022,4,NV211996,B6111,Investment Property,B1001,Asset Maintenance,CPJ00,Market Undertakings,CPJ,Economic Development,CP,Planning and Development Services,C,"Cultural, Environmental & Planning Services"
GUILDFORD BOROUGH COUNCIL,Responsive & Planned Maintenance,1000355,Liftec Lifts Limited,26/07/2022,30074436,387.5,0,Asset Maintenance,,Invoice,BACS,No,30/06/2022 00:00,2022,4,NV215044,M5107,Repairs-Shelt-Cyclical (BHS),B1001,Asset Maintenance,XXX99,*** UNASSIGNED ***,WCC,CEC Recharges,WC,CEC Recharges,A,Central Services
GUILDFORD BOROUGH COUNCIL,Off Street Parking,1000355,Liftec Lifts Limited,28/07/2022,30074663,918.5,0,Asset Maintenance,,Invoice,BACS,No,05/07/2022 00:00,2022,4,NV215345,B2291,York Road Mscp,B1001,Asset Maintenance,HTP10,Off-Street Parking,HTP,Parking Services,HT,"Highways, Roads and Transport Services",H,"Highways, Roads and Transport Services"
GUILDFORD BOROUGH COUNCIL,Investment Properties,1000355,Liftec Lifts Limited,02/08/2022,30075640,1324.24,0,Asset Maintenance,,Invoice,BACS,No,06/07/2022 00:00,2022,4,NV215635,B6111,Investment Property,B1001,Asset Maintenance,CPJ00,Market Undertakings,CPJ,Economic Development,CP,Planning and Development Services,C,"Cultural, Environmental & Planning Services"
GUILDFORD BOROUGH COUNCIL,Responsive & Planned Maintenance,1000355,Liftec Lifts Limited,25/08/2022,30078955,1627,0,Asset Maintenance,,Invoice,BACS,No,09/08/2022 00:00,2022,5,NV217414,M5106,Repairs-Shelt-Responsive (BHS),B1001,Asset Maintenance,XXX99,*** UNASSIGNED ***,WCC,CEC Recharges,WC,CEC Recharges,A,Central Services
GUILDFORD BOROUGH COUNCIL,Responsive & Planned Maintenance,1000355,Liftec Lifts Limited,25/08/2022,30079806,782.4,0,Asset Maintenance,,Invoice,BACS,No,17/08/2022 00:00,2022,5,NV217830,M5106,Repairs-Shelt-Responsive (BHS),B1001,Asset Maintenance,XXX99,*** UNASSIGNED ***,WCC,CEC Recharges,WC,CEC Recharges,A,Central Services
GUILDFORD BOROUGH COUNCIL,Responsive & Planned Maintenance,1000355,Liftec Lifts Limited,19/07/2022,30075639,2820,0,Asset Maintenance,,Invoice,BACS,No,24/06/2022 00:00,2022,4,NV214702,M5106,Repairs-Shelt-Responsive (BHS),B1001,Asset Maintenance,XXX99,*** UNASSIGNED ***,WCC,CEC Recharges,WC,CEC Recharges,A,Central Services
GUILDFORD BOROUGH COUNCIL,Off Street Parking,1000355,Liftec Lifts Limited,27/09/2022,30081273,1217.02,0,Asset Maintenance,,Invoice,BACS,No,31/08/2022 00:00,2022,6,NV218568,B2219,Bedford Road Mscp,B1001,Asset Maintenance,HTP10,Off-Street Parking,HTP,Parking Services,HT,"Highways, Roads and Transport Services",H,"Highways, Roads and Transport Services"
GUILDFORD BOROUGH COUNCIL,Responsive & Planned Maintenance,1000355,Liftec Lifts Limited,27/09/2022,30082665,406.02,0,Asset Maintenance,,Invoice,BACS,No,01/06/2022 00:00,2022,6,NV213600,M5106,Repairs-Shelt-Responsive (BHS),B1001,Asset Maintenance,XXX99,*** UNASSIGNED ***,WCC,CEC Recharges,WC,CEC Recharges,A,Central Services
GUILDFORD BOROUGH COUNCIL,Vehicle Maintenance,1000363,Ernest Doe & Sons Ltd,09/08/2022,30076291,359.11,0,Repair And Maintenance Of Vehicles,,Invoice,BACS,No,15/07/2022 00:00,2022,4,E23327,K5551,Fleet Workshops,C1002,Repair And Maintenance Of Vehicles,W3A48,Current Service Costs - Fleet Management,W3A,Current Service Costs adjustment,W3,Current Service Costs,W,Other Operating Income and Expenditure
GUILDFORD BOROUGH COUNCIL,Traveller Caravan Sites,1000386,Energy Controls Group Limited,04/08/2022,30075726,4680,0,Utilities,,Invoice,BACS,No,12/07/2022 00:00,2022,4,631,C1500,Traveller Caravan Sites,B2001,Utilities,KGT00,Travellers' Sites,KGT,Other Council Property,KG,Housing General Fund,K,Housing Services
GUILDFORD BOROUGH COUNCIL,Countryside and Parks Services,1000399,GSC Grays Limited,27/09/2022,30081989,1500,0,Consultancy,,Invoice,BACS,No,31/08/2022 00:00,2022,6,BC3180,A1250,Stoke Park,D6001,Consultancy,CCE00,Community Parks & Open Spaces,CCE,Open Spaces,CC,Cultural & Related Services,C,"Cultural, Environmental & Planning Services"
GUILDFORD BOROUGH COUNCIL,Crematorium,1000421,JFK Signs Ltd,27/09/2022,30081536,399.72,0,Equipment,,Invoice,BACS,No,02/09/2022 00:00,2022,6,INV50994,A1500,Crematorium,D2001,Equipment,CEA10,Crematoria,CEA,"Cemetery, Cremation and Mortuary Services",CE,Environmental & Regulatory Services,C,"Cultural, Environmental & Planning Services"
GUILDFORD BOROUGH COUNCIL,Crematorium,1000421,JFK Signs Ltd,27/09/2022,30081536,352.04,0,Equipment,,Invoice,BACS,No,02/09/2022 00:00,2022,6,INV50994,A1500,Crematorium,D2001,Equipment,CEA10,Crematoria,CEA,"Cemetery, Cremation and Mortuary Services",CE,Environmental & Regulatory Services,C,"Cultural, Environmental & Planning Services"
GUILDFORD BOROUGH COUNCIL,Crematorium,1000421,JFK Signs Ltd,27/09/2022,30081536,590,0,Postage,,Invoice,BACS,No,02/09/2022 00:00,2022,6,INV50994,A1500,Crematorium,D5003,Postage,CEA10,Crematoria,CEA,"Cemetery, Cremation and Mortuary Services",CE,Environmental & Regulatory Services,C,"Cultural, Environmental & Planning Services"
GUILDFORD BOROUGH COUNCIL,Crematorium,1000421,JFK Signs Ltd,09/08/2022,30077627,515.93,0,"Purchase Of Equipment, Tools And Materials",,Invoice,BACS,No,26/05/2022 00:00,2022,5,INV50274,P05009,Refurbish/Rebuild Crematorium,1283,"Purchase Of Equipment, Tools And Materials",XXX99,*** UNASSIGNED ***,WCC,CEC Recharges,WC,CEC Recharges,A,Central Services
GUILDFORD BOROUGH COUNCIL,Executive - Miscellaneous,1000431,Milestone Infrastructure Ltd,12/07/2022,30074206,10560,0,Consultants Fees,,Invoice,BACS,No,14/06/2022 00:00,2022,4,34112102468,P79037,Ash Road Bridge,1221,Consultants Fees,XXX99,*** UNASSIGNED ***,WCC,CEC Recharges,WC,CEC Recharges,A,Central Services
GUILDFORD BOROUGH COUNCIL,Responsive & Planned Maintenance,1000431,Milestone Infrastructure Ltd,30/08/2022,30080539,346.83,0,Grounds Maintenance,,Invoice,BACS,No,29/03/2022 00:00,2022,5,CW00007290,M5113,Repairs-Responsive (BHS),B6001,Grounds Maintenance,XXX99,*** UNASSIGNED ***,WCC,CEC Recharges,WC,CEC Recharges,A,Central Services
GUILDFORD BOROUGH COUNCIL,Responsive & Planned Maintenance,1000431,Milestone Infrastructure Ltd,30/08/2022,30080539,481,0,Grounds Maintenance,,Invoice,BACS,No,29/03/2022 00:00,2022,5,CW00007290,M5113,Repairs-Responsive (BHS),B6001,Grounds Maintenance,XXX99,*** UNASSIGNED ***,WCC,CEC Recharges,WC,CEC Recharges,A,Central Services
GUILDFORD BOROUGH COUNCIL,Responsive & Planned Maintenance,1000431,Milestone Infrastructure Ltd,30/08/2022,30080539,255.44,0,Grounds Maintenance,,Invoice,BACS,No,29/03/2022 00:00,2022,5,CW00007290,M5113,Repairs-Responsive (BHS),B6001,Grounds Maintenance,XXX99,*** UNASSIGNED ***,WCC,CEC Recharges,WC,CEC Recharges,A,Central Services
GUILDFORD BOROUGH COUNCIL,Responsive & Planned Maintenance,1000431,Milestone Infrastructure Ltd,30/08/2022,30080539,273.75,0,Grounds Maintenance,,Invoice,BACS,No,29/03/2022 00:00,2022,5,CW00007290,M5113,Repairs-Responsive (BHS),B6001,Grounds Maintenance,XXX99,*** UNASSIGNED ***,WCC,CEC Recharges,WC,CEC Recharges,A,Central Services
GUILDFORD BOROUGH COUNCIL,Responsive & Planned Maintenance,1000431,Milestone Infrastructure Ltd,30/08/2022,30080539,284.7,0,Grounds Maintenance,,Invoice,BACS,No,29/03/2022 00:00,2022,5,CW00007290,M5113,Repairs-Responsive (BHS),B6001,Grounds Maintenance,XXX99,*** UNASSIGNED ***,WCC,CEC Recharges,WC,CEC Recharges,A,Central Services
GUILDFORD BOROUGH COUNCIL,Responsive & Planned Maintenance,1000431,Milestone Infrastructure Ltd,30/08/2022,30080539,273.75,0,Grounds Maintenance,,Invoice,BACS,No,29/03/2022 00:00,2022,5,CW00007290,M5105,Repairs-Garages (BHS),B6001,Grounds Maintenance,XXX99,*** UNASSIGNED ***,WCC,CEC Recharges,WC,CEC Recharges,A,Central Services
GUILDFORD BOROUGH COUNCIL,Responsive & Planned Maintenance,1000431,Milestone Infrastructure Ltd,30/08/2022,30080539,255.34,0,Grounds Maintenance,,Invoice,BACS,No,29/03/2022 00:00,2022,5,CW00007290,M5113,Repairs-Responsive (BHS),B6001,Grounds Maintenance,XXX99,*** UNASSIGNED ***,WCC,CEC Recharges,WC,CEC Recharges,A,Central Services
GUILDFORD BOROUGH COUNCIL,Responsive & Planned Maintenance,1000431,Milestone Infrastructure Ltd,30/08/2022,30080539,273.75,0,Grounds Maintenance,,Invoice,BACS,No,29/03/2022 00:00,2022,5,CW00007290,M5113,Repairs-Responsive (BHS),B6001,Grounds Maintenance,XXX99,*** UNASSIGNED ***,WCC,CEC Recharges,WC,CEC Recharges,A,Central Services
GUILDFORD BOROUGH COUNCIL,Responsive & Planned Maintenance,1000431,Milestone Infrastructure Ltd,30/08/2022,30080539,351.75,0,Grounds Maintenance,,Invoice,BACS,No,29/03/2022 00:00,2022,5,CW00007290,M5113,Repairs-Responsive (BHS),B6001,Grounds Maintenance,XXX99,*** UNASSIGNED ***,WCC,CEC Recharges,WC,CEC Recharges,A,Central Services
GUILDFORD BOROUGH COUNCIL,Responsive & Planned Maintenance,1000431,Milestone Infrastructure Ltd,30/08/2022,30080539,745.72,0,Grounds Maintenance,,Invoice,BACS,No,29/03/2022 00:00,2022,5,CW00007290,M5113,Repairs-Responsive (BHS),B6001,Grounds Maintenance,XXX99,*** UNASSIGNED ***,WCC,CEC Recharges,WC,CEC Recharges,A,Central Services
GUILDFORD BOROUGH COUNCIL,Renovations,1000431,Milestone Infrastructure Ltd,02/08/2022,30077610,1314.57,0,Contractor Payments,,Invoice,BACS,No,19/07/2022 00:00,2022,5,34112103441,N40295,Disabled adaptations,1233,Contractor Payments,,,,,,,,
GUILDFORD BOROUGH COUNCIL,Family and Refugee Support Programme,1000434,First Advantage Europe Ltd,30/08/2022,30080531,1600,0,Services,,Invoice,BACS,No,31/07/2022 00:00,2022,5,EC112252207,C3321,Refugee Support,D6004,Services,SSU00,Social Support  - Asylum Seeker Support,SSU,Social Support - Asylum Seeker Support,SS,Adult Social Care,S,Adult Social Care
GUILDFORD BOROUGH COUNCIL,Family and Refugee Support Programme,1000434,First Advantage Europe Ltd,30/08/2022,30080531,532.8,0,Services,,Invoice,BACS,No,31/07/2022 00:00,2022,5,EC112252207,C3321,Refugee Support,D6004,Services,SSU00,Social Support  - Asylum Seeker Support,SSU,Social Support - Asylum Seeker Support,SS,Adult Social Care,S,Adult Social Care
GUILDFORD BOROUGH COUNCIL,Lead Specialist - HR,1000434,First Advantage Europe Ltd,26/07/2022,30075910,858,0,Vacancy And Interview Costs,,Invoice,BACS,No,30/06/2022 00:00,2022,4,EC112512206,G2555,HR Services,A7120,Vacancy And Interview Costs,DBX70,Other Management Costs,DBX,Support Service and Management Costs,DB,Children's Social Care,E,Childrens and Education Services
GUILDFORD BOROUGH COUNCIL,Lead Specialist - HR,1000434,First Advantage Europe Ltd,26/07/2022,30075910,283.14,0,Vacancy And Interview Costs,,Invoice,BACS,No,30/06/2022 00:00,2022,4,EC112512206,G2555,HR Services,A7120,Vacancy And Interview Costs,DBX70,Other Management Costs,DBX,Support Service and Management Costs,DB,Children's Social Care,E,Childrens and Education Services
GUILDFORD BOROUGH COUNCIL,Family and Refugee Support Programme,1000434,First Advantage Europe Ltd,26/07/2022,30075910,384,0,Services,,Invoice,BACS,No,30/06/2022 00:00,2022,4,EC112512206,C3321,Refugee Support,D6004,Services,SSU00,Social Support  - Asylum Seeker Support,SSU,Social Support - Asylum Seeker Support,SS,Adult Social Care,S,Adult Social Care
GUILDFORD BOROUGH COUNCIL,Family and Refugee Support Programme,1000434,First Advantage Europe Ltd,26/07/2022,30075910,282.13,0,Services,,Invoice,BACS,No,30/06/2022 00:00,2022,4,EC112512206,C3321,Refugee Support,D6004,Services,SSU00,Social Support  - Asylum Seeker Support,SSU,Social Support - Asylum Seeker Support,SS,Adult Social Care,S,Adult Social Care
GUILDFORD BOROUGH COUNCIL,Building Maintenance,1000451,AMG Electrical Ltd,26/07/2022,30076259,864.01,0,Services,,Invoice,BACS,No,15/07/2022 00:00,2022,4,2207-03,K1515,Building Maintenance,D6004,Services,DBX45,Property Services,DBX,Support Service and Management Costs,DB,Children's Social Care,E,Childrens and Education Services
GUILDFORD BOROUGH COUNCIL,Building Maintenance,1000451,AMG Electrical Ltd,26/07/2022,30076545,1045.62,0,Services,,Invoice,BACS,No,20/07/2022 00:00,2022,4,2207-04,K1515,Building Maintenance,D6004,Services,DBX45,Property Services,DBX,Support Service and Management Costs,DB,Children's Social Care,E,Childrens and Education Services
GUILDFORD BOROUGH COUNCIL,Building Maintenance,1000451,AMG Electrical Ltd,26/07/2022,30076560,1149.89,0,Services,,Invoice,BACS,No,20/07/2022 00:00,2022,4,2207-05,K1515,Building Maintenance,D6004,Services,DBX45,Property Services,DBX,Support Service and Management Costs,DB,Children's Social Care,E,Childrens and Education Services
GUILDFORD BOROUGH COUNCIL,Building Maintenance,1000451,AMG Electrical Ltd,12/07/2022,30075345,1414.4,0,Services,,Invoice,BACS,No,06/07/2022 00:00,2022,4,2207-01,K1515,Building Maintenance,D6004,Services,DBX45,Property Services,DBX,Support Service and Management Costs,DB,Children's Social Care,E,Childrens and Education Services
GUILDFORD BOROUGH COUNCIL,Building Maintenance,1000451,AMG Electrical Ltd,06/09/2022,30080917,1658.64,0,Services,,Invoice,BACS,No,31/08/2022 00:00,2022,6,2208-06,K1515,Building Maintenance,D6004,Services,DBX45,Property Services,DBX,Support Service and Management Costs,DB,Children's Social Care,E,Childrens and Education Services
GUILDFORD BOROUGH COUNCIL,Building Maintenance,1000451,AMG Electrical Ltd,06/09/2022,30080937,1497.46,0,Services,,Invoice,BACS,No,31/08/2022 00:00,2022,6,2208-07,K1515,Building Maintenance,D6004,Services,DBX45,Property Services,DBX,Support Service and Management Costs,DB,Children's Social Care,E,Childrens and Education Services
GUILDFORD BOROUGH COUNCIL,Building Maintenance,1000451,AMG Electrical Ltd,06/09/2022,30080937,252.78,0,Materials,,Invoice,BACS,No,31/08/2022 00:00,2022,6,2208-07,K1515,Building Maintenance,D2003,Materials,DBX45,Property Services,DBX,Support Service and Management Costs,DB,Children's Social Care,E,Childrens and Education Services
GUILDFORD BOROUGH COUNCIL,Building Maintenance,1000451,AMG Electrical Ltd,16/08/2022,30079122,1894.35,0,Services,,Invoice,BACS,No,08/08/2022 00:00,2022,5,S/07/22,K1515,Building Maintenance,D6004,Services,DBX45,Property Services,DBX,Support Service and Management Costs,DB,Children's Social Care,E,Childrens and Education Services
GUILDFORD BOROUGH COUNCIL,Building Maintenance,1000451,AMG Electrical Ltd,16/08/2022,30079109,1708.06,0,Services,,Invoice,BACS,No,09/08/2022 00:00,2022,5,2208-01,K1515,Building Maintenance,D6004,Services,DBX45,Property Services,DBX,Support Service and Management Costs,DB,Children's Social Care,E,Childrens and Education Services
GUILDFORD BOROUGH COUNCIL,Building Maintenance,1000451,AMG Electrical Ltd,04/08/2022,30077957,2090.37,0,Services,,Invoice,BACS,No,31/07/2022 00:00,2022,5,2207-08,K1515,Building Maintenance,D6004,Services,DBX45,Property Services,DBX,Support Service and Management Costs,DB,Children's Social Care,E,Childrens and Education Services
GUILDFORD BOROUGH COUNCIL,Building Maintenance,1000451,AMG Electrical Ltd,04/08/2022,30077957,588.29,0,Materials,,Invoice,BACS,No,31/07/2022 00:00,2022,5,2207-08,K1515,Building Maintenance,D2003,Materials,DBX45,Property Services,DBX,Support Service and Management Costs,DB,Children's Social Care,E,Childrens and Education Services
GUILDFORD BOROUGH COUNCIL,Building Maintenance,1000451,AMG Electrical Ltd,13/09/2022,30081478,1653.57,0,Services,,Invoice,BACS,No,05/09/2022 00:00,2022,6,2209-01,K1515,Building Maintenance,D6004,Services,DBX45,Property Services,DBX,Support Service and Management Costs,DB,Children's Social Care,E,Childrens and Education Services
GUILDFORD BOROUGH COUNCIL,Building Maintenance,1000451,AMG Electrical Ltd,23/08/2022,30079827,1657.17,0,Services,,Invoice,BACS,No,16/08/2022 00:00,2022,5,2208-03,K1515,Building Maintenance,D6004,Services,DBX45,Property Services,DBX,Support Service and Management Costs,DB,Children's Social Care,E,Childrens and Education Services
GUILDFORD BOROUGH COUNCIL,Building Maintenance,1000451,AMG Electrical Ltd,20/09/2022,30081970,1574.81,0,Services,,Invoice,BACS,No,14/09/2022 00:00,2022,6,2209-04,K1515,Building Maintenance,D6004,Services,DBX45,Property Services,DBX,Support Service and Management Costs,DB,Children's Social Care,E,Childrens and Education Services
GUILDFORD BOROUGH COUNCIL,Building Maintenance,1000451,AMG Electrical Ltd,20/09/2022,30081970,629.6,0,Materials,,Invoice,BACS,No,14/09/2022 00:00,2022,6,2209-04,K1515,Building Maintenance,D2003,Materials,DBX45,Property Services,DBX,Support Service and Management Costs,DB,Children's Social Care,E,Childrens and Education Services
GUILDFORD BOROUGH COUNCIL,Building Maintenance,1000451,AMG Electrical Ltd,20/09/2022,30081988,1384.5,0,Services,,Invoice,BACS,No,14/09/2022 00:00,2022,6,S/08/09/22,K1515,Building Maintenance,D6004,Services,DBX45,Property Services,DBX,Support Service and Management Costs,DB,Children's Social Care,E,Childrens and Education Services
GUILDFORD BOROUGH COUNCIL,Building Maintenance,1000451,AMG Electrical Ltd,30/08/2022,30080387,1403.21,0,Services,,Invoice,BACS,No,23/08/2022 00:00,2022,5,2208-05,K1515,Building Maintenance,D6004,Services,DBX45,Property Services,DBX,Support Service and Management Costs,DB,Children's Social Care,E,Childrens and Education Services
GUILDFORD BOROUGH COUNCIL,Building Maintenance,1000451,AMG Electrical Ltd,02/08/2022,30077566,1461.72,0,Services,,Invoice,BACS,No,25/07/2022 00:00,2022,5,2207-06,K1515,Building Maintenance,D6004,Services,DBX45,Property Services,DBX,Support Service and Management Costs,DB,Children's Social Care,E,Childrens and Education Services
GUILDFORD BOROUGH COUNCIL,Building Maintenance,1000451,AMG Electrical Ltd,02/08/2022,30077569,802.69,0,Services,,Invoice,BACS,No,25/07/2022 00:00,2022,5,2207-07,K1515,Building Maintenance,D6004,Services,DBX45,Property Services,DBX,Support Service and Management Costs,DB,Children's Social Care,E,Childrens and Education Services
GUILDFORD BOROUGH COUNCIL,Building Maintenance,1000451,AMG Electrical Ltd,23/08/2022,30079765,1068.63,0,Services,,Invoice,BACS,No,12/08/2022 00:00,2022,5,2208-02,K1515,Building Maintenance,D6004,Services,DBX45,Property Services,DBX,Support Service and Management Costs,DB,Children's Social Care,E,Childrens and Education Services
GUILDFORD BOROUGH COUNCIL,Building Maintenance,1000451,AMG Electrical Ltd,07/07/2022,30074400,1482.89,0,Services,,Invoice,BACS,No,18/06/2022 00:00,2022,4,22069-06,K1515,Building Maintenance,D6004,Services,DBX45,Property Services,DBX,Support Service and Management Costs,DB,Children's Social Care,E,Childrens and Education Services
GUILDFORD BOROUGH COUNCIL,Building Maintenance,1000451,AMG Electrical Ltd,19/07/2022,30075868,1107.98,0,Services,,Invoice,BACS,No,12/07/2022 00:00,2022,4,2207-02,K1515,Building Maintenance,D6004,Services,DBX45,Property Services,DBX,Support Service and Management Costs,DB,Children's Social Care,E,Childrens and Education Services
GUILDFORD BOROUGH COUNCIL,Building Maintenance,1000451,AMG Electrical Ltd,05/07/2022,30074414,817.6,0,Services,,Invoice,BACS,No,28/06/2022 00:00,2022,4,2206-08,K1515,Building Maintenance,D6004,Services,DBX45,Property Services,DBX,Support Service and Management Costs,DB,Children's Social Care,E,Childrens and Education Services
GUILDFORD BOROUGH COUNCIL,Building Maintenance,1000451,AMG Electrical Ltd,05/07/2022,30074415,2126.1,0,Services,,Invoice,BACS,No,20/06/2022 00:00,2022,4,S/06/22,K1515,Building Maintenance,D6004,Services,DBX45,Property Services,DBX,Support Service and Management Costs,DB,Children's Social Care,E,Childrens and Education Services
GUILDFORD BOROUGH COUNCIL,Building Maintenance,1000451,AMG Electrical Ltd,25/08/2022,30080113,581,0,Services,,Invoice,BACS,No,17/08/2022 00:00,2022,5,22HEA-01,K1515,Building Maintenance,D6004,Services,DBX45,Property Services,DBX,Support Service and Management Costs,DB,Children's Social Care,E,Childrens and Education Services
GUILDFORD BOROUGH COUNCIL,Building Maintenance,1000451,AMG Electrical Ltd,25/08/2022,30080136,1292.06,0,Services,,Invoice,BACS,No,18/08/2022 00:00,2022,5,2208-04,K1515,Building Maintenance,D6004,Services,DBX45,Property Services,DBX,Support Service and Management Costs,DB,Children's Social Care,E,Childrens and Education Services
GUILDFORD BOROUGH COUNCIL,Building Maintenance,1000451,AMG Electrical Ltd,15/09/2022,30081766,2091.79,0,Services,,Invoice,BACS,No,11/09/2022 00:00,2022,6,2209-03,K1515,Building Maintenance,D6004,Services,DBX45,Property Services,DBX,Support Service and Management Costs,DB,Children's Social Care,E,Childrens and Education Services
GUILDFORD BOROUGH COUNCIL,Building Maintenance,1000451,AMG Electrical Ltd,15/09/2022,30081766,406.78,0,Materials,,Invoice,BACS,No,11/09/2022 00:00,2022,6,2209-03,K1515,Building Maintenance,D2003,Materials,DBX45,Property Services,DBX,Support Service and Management Costs,DB,Children's Social Care,E,Childrens and Education Services
GUILDFORD BOROUGH COUNCIL,Building Maintenance,1000451,AMG Electrical Ltd,15/09/2022,30081731,2080.73,0,Services,,Invoice,BACS,No,08/09/2022 00:00,2022,6,2209-02,K1515,Building Maintenance,D6004,Services,DBX45,Property Services,DBX,Support Service and Management Costs,DB,Children's Social Care,E,Childrens and Education Services
GUILDFORD BOROUGH COUNCIL,Lead Specialist - ICT,1000453,NOMINET UK,23/08/2022,30078003,1009.61,0,Telephones & Broadband,,Invoice,BACS,No,28/07/2022 00:00,2022,5,4179,G3548,ICT Technical & Infrastructure,D7004,Telephones & Broadband,DBX70,Other Management Costs,DBX,Support Service and Management Costs,DB,Children's Social Care,E,Childrens and Education Services
GUILDFORD BOROUGH COUNCIL,Parks Countryside Management,1000464,Secure-a-Field Ltd,25/08/2022,30080118,829.74,0,Grounds Maintenance,,Invoice,BACS,No,24/08/2022 00:00,2022,5,10861,A1300,Trees And Countryside,B6001,Grounds Maintenance,CCE00,Community Parks & Open Spaces,CCE,Open Spaces,CC,Cultural & Related Services,C,"Cultural, Environmental & Planning Services"
GUILDFORD BOROUGH COUNCIL,Crematorium,1000465,GSS (NI) Limited,28/07/2022,30075875,12500,0,ICT Support & Maintenance,,Invoice,BACS,No,13/07/2022 00:00,2022,4,INV2182,A1500,Crematorium,D7003,ICT Support & Maintenance,CEA10,Crematoria,CEA,"Cemetery, Cremation and Mortuary Services",CE,Environmental & Regulatory Services,C,"Cultural, Environmental & Planning Services"
GUILDFORD BOROUGH COUNCIL,Business Improvement,1000466,NimbusPoint Consulting Ltd,28/07/2022,30074610,2531.25,0,Consultancy,,Invoice,BACS,No,05/07/2022 00:00,2022,4,1665,G3531,Future Guildford,D6001,Consultancy,AAM00,Corporate Management,AAM,Corporate Management,AA,Corporate & Democratic Core,A,Central Services
GUILDFORD BOROUGH COUNCIL,IT Renewals,1000466,NimbusPoint Consulting Ltd,29/09/2022,30081175,7762.5,0,Contractor Payments,,Invoice,BACS,No,05/09/2022 00:00,2022,6,1697,P81002,IT Renewals Reserve Funded General,1233,Contractor Payments,XXX99,*** UNASSIGNED ***,WCC,CEC Recharges,WC,CEC Recharges,A,Central Services
GUILDFORD BOROUGH COUNCIL,IT Renewals,1000466,NimbusPoint Consulting Ltd,29/09/2022,30081174,6750,0,Agency Staff,,Invoice,BACS,No,05/09/2022 00:00,2022,6,1698,P81002,IT Renewals Reserve Funded General,1222,Agency Staff,XXX99,*** UNASSIGNED ***,WCC,CEC Recharges,WC,CEC Recharges,A,Central Services
GUILDFORD BOROUGH COUNCIL,Digital Services,1000466,NimbusPoint Consulting Ltd,09/08/2022,30074577,8550,0,Services,,Invoice,BACS,No,05/07/2022 00:00,2022,5,1663,F1141,Internet Site Access,D6004,Services,DBX70,Other Management Costs,DBX,Support Service and Management Costs,DB,Children's Social Care,E,Childrens and Education Services
GUILDFORD BOROUGH COUNCIL,IT Renewals,1000466,NimbusPoint Consulting Ltd,11/08/2022,30076220,11475,0,Contractor Payments,,Invoice,BACS,No,18/07/2022 00:00,2022,4,1672,P81002,IT Renewals Reserve Funded General,1233,Contractor Payments,XXX99,*** UNASSIGNED ***,WCC,CEC Recharges,WC,CEC Recharges,A,Central Services
GUILDFORD BOROUGH COUNCIL,IT Renewals,1000466,NimbusPoint Consulting Ltd,25/08/2022,30078319,11475,0,Contractor Payments,,Invoice,BACS,No,03/08/2022 00:00,2022,5,1680,P81002,IT Renewals Reserve Funded General,1233,Contractor Payments,XXX99,*** UNASSIGNED ***,WCC,CEC Recharges,WC,CEC Recharges,A,Central Services
GUILDFORD BOROUGH COUNCIL,Digital Services,1000466,NimbusPoint Consulting Ltd,25/08/2022,30078767,8550,0,Services,,Invoice,BACS,No,10/08/2022 00:00,2022,5,1686,F1141,Internet Site Access,D6004,Services,DBX70,Other Management Costs,DBX,Support Service and Management Costs,DB,Children's Social Care,E,Childrens and Education Services
GUILDFORD BOROUGH COUNCIL,Business Improvement,1000466,NimbusPoint Consulting Ltd,25/08/2022,30079098,2081.25,0,Consultancy,,Invoice,BACS,No,12/08/2022 00:00,2022,5,1687,G3531,Future Guildford,D6001,Consultancy,AAM00,Corporate Management,AAM,Corporate Management,AA,Corporate & Democratic Core,A,Central Services
GUILDFORD BOROUGH COUNCIL,Property,1000470,Constant & Co (Bedford) Ltd,02/08/2022,30075421,10000,0,Consultants Fees,,Invoice,BACS,No,05/07/2022 00:00,2022,4,76251A,P74040,Slyfield Area Regeneration Project,1221,Consultants Fees,XXX99,*** UNASSIGNED ***,WCC,CEC Recharges,WC,CEC Recharges,A,Central Services
GUILDFORD BOROUGH COUNCIL,Property,1000470,Constant & Co (Bedford) Ltd,02/08/2022,30075423,4000,0,Consultants Fees,,Invoice,BACS,No,05/07/2022 00:00,2022,5,76251B,P74040,Slyfield Area Regeneration Project,1221,Consultants Fees,XXX99,*** UNASSIGNED ***,WCC,CEC Recharges,WC,CEC Recharges,A,Central Services
GUILDFORD BOROUGH COUNCIL,Property,1000470,Constant & Co (Bedford) Ltd,02/08/2022,30075398,14000,0,Consultants Fees,,Invoice,BACS,No,05/07/2022 00:00,2022,5,76251,P74040,Slyfield Area Regeneration Project,1221,Consultants Fees,XXX99,*** UNASSIGNED ***,WCC,CEC Recharges,WC,CEC Recharges,A,Central Services
GUILDFORD BOROUGH COUNCIL,Property,1000470,Constant & Co (Bedford) Ltd,02/08/2022,30075400,1890,0,Consultants Fees,,Invoice,BACS,No,05/07/2022 00:00,2022,4,76237,P74040,Slyfield Area Regeneration Project,1221,Consultants Fees,XXX99,*** UNASSIGNED ***,WCC,CEC Recharges,WC,CEC Recharges,A,Central Services
GUILDFORD BOROUGH COUNCIL,Property,1000470,Constant & Co (Bedford) Ltd,02/08/2022,30075428,333.75,0,Consultants Fees,,Invoice,BACS,No,08/07/2022 00:00,2022,5,76278,P74040,Slyfield Area Regeneration Project,1221,Consultants Fees,XXX99,*** UNASSIGNED ***,WCC,CEC Recharges,WC,CEC Recharges,A,Central Services
GUILDFORD BOROUGH COUNCIL,Property,1000470,Constant & Co (Bedford) Ltd,04/08/2022,30075698,4000,0,Consultants Fees,,Invoice,BACS,No,11/07/2022 00:00,2022,4,76320,P74040,Slyfield Area Regeneration Project,1221,Consultants Fees,XXX99,*** UNASSIGNED ***,WCC,CEC Recharges,WC,CEC Recharges,A,Central Services
GUILDFORD BOROUGH COUNCIL,Property,1000470,Constant & Co (Bedford) Ltd,04/08/2022,30075709,445,0,Consultants Fees,,Invoice,BACS,No,11/07/2022 00:00,2022,4,76322AMMENDED,P74040,Slyfield Area Regeneration Project,1221,Consultants Fees,XXX99,*** UNASSIGNED ***,WCC,CEC Recharges,WC,CEC Recharges,A,Central Services
GUILDFORD BOROUGH COUNCIL,Property,1000470,Constant & Co (Bedford) Ltd,04/08/2022,30075675,2280,0,Consultants Fees,,Invoice,BACS,No,11/07/2022 00:00,2022,4,76333,P74040,Slyfield Area Regeneration Project,1221,Consultants Fees,XXX99,*** UNASSIGNED ***,WCC,CEC Recharges,WC,CEC Recharges,A,Central Services
GUILDFORD BOROUGH COUNCIL,Property,1000470,Constant & Co (Bedford) Ltd,04/08/2022,30075676,1634,0,Consultants Fees,,Invoice,BACS,No,11/07/2022 00:00,2022,4,76321,P74040,Slyfield Area Regeneration Project,1221,Consultants Fees,XXX99,*** UNASSIGNED ***,WCC,CEC Recharges,WC,CEC Recharges,A,Central Services
GUILDFORD BOROUGH COUNCIL,Property,1000470,Constant & Co (Bedford) Ltd,04/08/2022,30075426,8664,0,Consultants Fees,,Invoice,BACS,No,08/07/2022 00:00,2022,5,76250,P74040,Slyfield Area Regeneration Project,1221,Consultants Fees,XXX99,*** UNASSIGNED ***,WCC,CEC Recharges,WC,CEC Recharges,A,Central Services
GUILDFORD BOROUGH COUNCIL,Property,1000470,Constant & Co (Bedford) Ltd,04/08/2022,30075427,4077,0,Consultants Fees,,Invoice,BACS,No,08/07/2022 00:00,2022,5,76241,P74040,Slyfield Area Regeneration Project,1221,Consultants Fees,XXX99,*** UNASSIGNED ***,WCC,CEC Recharges,WC,CEC Recharges,A,Central Services
GUILDFORD BOROUGH COUNCIL,Property,1000470,Constant & Co (Bedford) Ltd,04/08/2022,30075429,4560,0,Consultants Fees,,Invoice,BACS,No,08/07/2022 00:00,2022,5,76297,P74040,Slyfield Area Regeneration Project,1221,Consultants Fees,XXX99,*** UNASSIGNED ***,WCC,CEC Recharges,WC,CEC Recharges,A,Central Services
GUILDFORD BOROUGH COUNCIL,Property,1000470,Constant & Co (Bedford) Ltd,04/08/2022,30075409,590,0,Consultants Fees,,Invoice,BACS,No,11/07/2022 00:00,2022,5,76243,P74040,Slyfield Area Regeneration Project,1221,Consultants Fees,XXX99,*** UNASSIGNED ***,WCC,CEC Recharges,WC,CEC Recharges,A,Central Services
GUILDFORD BOROUGH COUNCIL,Property,1000470,Constant & Co (Bedford) Ltd,04/08/2022,30075414,6000,0,Consultants Fees,,Invoice,BACS,No,05/07/2022 00:00,2022,5,76251C,P74040,Slyfield Area Regeneration Project,1221,Consultants Fees,XXX99,*** UNASSIGNED ***,WCC,CEC Recharges,WC,CEC Recharges,A,Central Services
GUILDFORD BOROUGH COUNCIL,Property,1000470,Constant & Co (Bedford) Ltd,04/08/2022,30075397,1824,0,Consultants Fees,,Invoice,BACS,No,08/07/2022 00:00,2022,5,76298,P74040,Slyfield Area Regeneration Project,1221,Consultants Fees,XXX99,*** UNASSIGNED ***,WCC,CEC Recharges,WC,CEC Recharges,A,Central Services
GUILDFORD BOROUGH COUNCIL,Property,1000470,Constant & Co (Bedford) Ltd,04/08/2022,30075399,6384,0,Consultants Fees,,Invoice,BACS,No,08/07/2022 00:00,2022,5,76267,P74040,Slyfield Area Regeneration Project,1221,Consultants Fees,XXX99,*** UNASSIGNED ***,WCC,CEC Recharges,WC,CEC Recharges,A,Central Services
GUILDFORD BOROUGH COUNCIL,Development Control,1000471,Paul Fineberg Architect Ltd,22/09/2022,30082128,4640,0,Consultancy,,Invoice,BACS,No,20/04/2022 00:00,2022,6,34,D5100,Development Control - Fee Earn,D6001,Consultancy,CPC00,Development Control Advice,CPC,Development Control,CP,Planning and Development Services,C,"Cultural, Environmental & Planning Services"
GUILDFORD BOROUGH COUNCIL,Development Control,1000475,G2 Recruitment Solutions,20/09/2022,30080334,2128,0,Agency,,Invoice,BACS,No,24/08/2022 00:00,2022,5,107224,D5100,Development Control - Fee Earn,A5191,Agency,CPC00,Development Control Advice,CPC,Development Control,CP,Planning and Development Services,C,"Cultural, Environmental & Planning Services"
GUILDFORD BOROUGH COUNCIL,Development Control,1000475,G2 Recruitment Solutions,09/08/2022,30075831,3162,0,Agency,,Invoice,BACS,No,13/07/2022 00:00,2022,4,104941,D5100,Development Control - Fee Earn,A5191,Agency,CPC00,Development Control Advice,CPC,Development Control,CP,Planning and Development Services,C,"Cultural, Environmental & Planning Services"
GUILDFORD BOROUGH COUNCIL,Development Control,1000475,G2 Recruitment Solutions,23/08/2022,30077414,1764,0,Agency,,Invoice,BACS,No,27/07/2022 00:00,2022,4,105653,D5100,Development Control - Fee Earn,A5191,Agency,CPC00,Development Control Advice,CPC,Development Control,CP,Planning and Development Services,C,"Cultural, Environmental & Planning Services"
GUILDFORD BOROUGH COUNCIL,Development Control,1000475,G2 Recruitment Solutions,26/07/2022,30073461,1772.25,0,Agency,,Invoice,BACS,No,29/06/2022 00:00,2022,4,104024,D5100,Development Control - Fee Earn,A5191,Agency,CPC00,Development Control Advice,CPC,Development Control,CP,Planning and Development Services,C,"Cultural, Environmental & Planning Services"
GUILDFORD BOROUGH COUNCIL,Development Control,1000475,G2 Recruitment Solutions,16/08/2022,30076458,1887,0,Agency,,Invoice,BACS,No,20/07/2022 00:00,2022,4,105286,D5100,Development Control - Fee Earn,A5191,Agency,CPC00,Development Control Advice,CPC,Development Control,CP,Planning and Development Services,C,"Cultural, Environmental & Planning Services"
GUILDFORD BOROUGH COUNCIL,Development Control,1000475,G2 Recruitment Solutions,02/08/2022,30070599,1224,0,Agency,,Invoice,BACS,No,15/06/2022 00:00,2022,4,103281,D5100,Development Control - Fee Earn,A5191,Agency,CPC00,Development Control Advice,CPC,Development Control,CP,Planning and Development Services,C,"Cultural, Environmental & Planning Services"
GUILDFORD BOROUGH COUNCIL,Development Control,1000475,G2 Recruitment Solutions,02/08/2022,30075291,1683,0,Agency,,Invoice,BACS,No,06/07/2022 00:00,2022,4,104515,D5100,Development Control - Fee Earn,A5191,Agency,CPC00,Development Control Advice,CPC,Development Control,CP,Planning and Development Services,C,"Cultural, Environmental & Planning Services"
GUILDFORD BOROUGH COUNCIL,Development Control,1000475,G2 Recruitment Solutions,25/08/2022,30079015,1904,0,Agency,,Invoice,BACS,No,10/08/2022 00:00,2022,5,106550,D5100,Development Control - Fee Earn,A5191,Agency,CPC00,Development Control Advice,CPC,Development Control,CP,Planning and Development Services,C,"Cultural, Environmental & Planning Services"
GUILDFORD BOROUGH COUNCIL,Development Control,1000475,G2 Recruitment Solutions,25/08/2022,30078342,2184,0,Agency,,Invoice,BACS,No,03/08/2022 00:00,2022,5,106136,D5100,Development Control - Fee Earn,A5191,Agency,CPC00,Development Control Advice,CPC,Development Control,CP,Planning and Development Services,C,"Cultural, Environmental & Planning Services"
GUILDFORD BOROUGH COUNCIL,Development Control,1000475,G2 Recruitment Solutions,25/08/2022,30079732,2184,0,Agency,,Invoice,BACS,No,17/08/2022 00:00,2022,5,106900,D5100,Development Control - Fee Earn,A5191,Agency,CPC00,Development Control Advice,CPC,Development Control,CP,Planning and Development Services,C,"Cultural, Environmental & Planning Services"
GUILDFORD BOROUGH COUNCIL,Development Control,1000475,G2 Recruitment Solutions,19/07/2022,30073485,1530,0,Agency,,Invoice,BACS,No,22/06/2022 00:00,2022,4,103640,D5100,Development Control - Fee Earn,A5191,Agency,CPC00,Development Control Advice,CPC,Development Control,CP,Planning and Development Services,C,"Cultural, Environmental & Planning Services"
GUILDFORD BOROUGH COUNCIL,Development Control,1000475,G2 Recruitment Solutions,27/09/2022,30080647,1834,0,Agency,,Invoice,BACS,No,31/08/2022 00:00,2022,6,107642,D5100,Development Control - Fee Earn,A5191,Agency,CPC00,Development Control Advice,CPC,Development Control,CP,Planning and Development Services,C,"Cultural, Environmental & Planning Services"
GUILDFORD BOROUGH COUNCIL,Refuse and Recycling,1000476,Storm Environmental Limited,29/09/2022,30081534,477.5,0,Stock For Re-Sale,,Invoice,BACS,No,06/09/2022 00:00,2022,6,6009585,K3551,Refuse - Domestic,D2004,Stock For Re-Sale,CEW40,Disposal of Waste,CEW,Waste Disposal,CE,Environmental & Regulatory Services,C,"Cultural, Environmental & Planning Services"
GUILDFORD BOROUGH COUNCIL,Refuse and Recycling,1000476,Storm Environmental Limited,29/09/2022,30081534,490,0,Stock For Re-Sale,,Invoice,BACS,No,06/09/2022 00:00,2022,6,6009585,K3551,Refuse - Domestic,D2004,Stock For Re-Sale,CEW40,Disposal of Waste,CEW,Waste Disposal,CE,Environmental & Regulatory Services,C,"Cultural, Environmental & Planning Services"
GUILDFORD BOROUGH COUNCIL,Refuse and Recycling,1000476,Storm Environmental Limited,29/09/2022,30081534,540,0,Stock For Re-Sale,,Invoice,BACS,No,06/09/2022 00:00,2022,6,6009585,K3551,Refuse - Domestic,D2004,Stock For Re-Sale,CEW40,Disposal of Waste,CEW,Waste Disposal,CE,Environmental & Regulatory Services,C,"Cultural, Environmental & Planning Services"
GUILDFORD BOROUGH COUNCIL,Refuse and Recycling,1000476,Storm Environmental Limited,29/09/2022,30081534,2340,0,Stock For Re-Sale,,Invoice,BACS,No,06/09/2022 00:00,2022,6,6009585,K3551,Refuse - Domestic,D2004,Stock For Re-Sale,CEW40,Disposal of Waste,CEW,Waste Disposal,CE,Environmental & Regulatory Services,C,"Cultural, Environmental & Planning Services"
GUILDFORD BOROUGH COUNCIL,Refuse and Recycling,1000476,Storm Environmental Limited,29/09/2022,30081534,1290,0,Stock For Re-Sale,,Invoice,BACS,No,06/09/2022 00:00,2022,6,6009585,K3551,Refuse - Domestic,D2004,Stock For Re-Sale,CEW40,Disposal of Waste,CEW,Waste Disposal,CE,Environmental & Regulatory Services,C,"Cultural, Environmental & Planning Services"
GUILDFORD BOROUGH COUNCIL,Refuse and Recycling,1000476,Storm Environmental Limited,29/09/2022,30081534,1150,0,Stock For Re-Sale,,Invoice,BACS,No,06/09/2022 00:00,2022,6,6009585,K3551,Refuse - Domestic,D2004,Stock For Re-Sale,CEW40,Disposal of Waste,CEW,Waste Disposal,CE,Environmental & Regulatory Services,C,"Cultural, Environmental & Planning Services"
GUILDFORD BOROUGH COUNCIL,Refuse and Recycling,1000476,Storm Environmental Limited,29/09/2022,30081534,10955.7,0,Stock For Re-Sale,,Invoice,BACS,No,06/09/2022 00:00,2022,6,6009585,K3551,Refuse - Domestic,D2004,Stock For Re-Sale,CEW40,Disposal of Waste,CEW,Waste Disposal,CE,Environmental & Regulatory Services,C,"Cultural, Environmental & Planning Services"
GUILDFORD BOROUGH COUNCIL,Refuse and Recycling,1000476,Storm Environmental Limited,29/09/2022,30081534,3170.2,0,Stock For Re-Sale,,Invoice,BACS,No,06/09/2022 00:00,2022,6,6009585,K3551,Refuse - Domestic,D2004,Stock For Re-Sale,CEW40,Disposal of Waste,CEW,Waste Disposal,CE,Environmental & Regulatory Services,C,"Cultural, Environmental & Planning Services"
GUILDFORD BOROUGH COUNCIL,Refuse and Recycling,1000476,Storm Environmental Limited,29/09/2022,30081534,4755.3,0,Stock For Re-Sale,,Invoice,BACS,No,06/09/2022 00:00,2022,6,6009585,K3551,Refuse - Domestic,D2004,Stock For Re-Sale,CEW40,Disposal of Waste,CEW,Waste Disposal,CE,Environmental & Regulatory Services,C,"Cultural, Environmental & Planning Services"
GUILDFORD BOROUGH COUNCIL,Homelessness Support,1000479,Legacy Lodgings Ltd,29/09/2022,30081538,280,0,Emergency Accomodation,,Invoice,BACS,No,05/09/2022 00:00,2022,6,INV-0547,C3311,Homelessness,D8009,Emergency Accomodation,KGU00,Supporting People - Strategy,KGU,Supporting People,KG,Housing General Fund,K,Housing Services
GUILDFORD BOROUGH COUNCIL,Homelessness Support,1000479,Legacy Lodgings Ltd,29/09/2022,30081479,309.19,0,Emergency Accomodation,,Invoice,BACS,No,05/09/2022 00:00,2022,6,INV-0556,C3311,Homelessness,D8009,Emergency Accomodation,KGU00,Supporting People - Strategy,KGU,Supporting People,KG,Housing General Fund,K,Housing Services
GUILDFORD BOROUGH COUNCIL,Homelessness Support,1000479,Legacy Lodgings Ltd,29/09/2022,30081503,309.19,0,Emergency Accomodation,,Invoice,BACS,No,05/09/2022 00:00,2022,6,INV-0557,C3311,Homelessness,D8009,Emergency Accomodation,KGU00,Supporting People - Strategy,KGU,Supporting People,KG,Housing General Fund,K,Housing Services
GUILDFORD BOROUGH COUNCIL,Homelessness Support,1000479,Legacy Lodgings Ltd,04/08/2022,30075368,385,0,Emergency Accomodation,,Invoice,BACS,No,04/07/2022 00:00,2022,5,INV-0419,C3311,Homelessness,D8009,Emergency Accomodation,KGU00,Supporting People - Strategy,KGU,Supporting People,KG,Housing General Fund,K,Housing Services
GUILDFORD BOROUGH COUNCIL,Homelessness Support,1000479,Legacy Lodgings Ltd,04/08/2022,30075912,385,0,Emergency Accomodation,,Invoice,BACS,No,11/07/2022 00:00,2022,5,INV-0434,C3311,Homelessness,D8009,Emergency Accomodation,KGU00,Supporting People - Strategy,KGU,Supporting People,KG,Housing General Fund,K,Housing Services
GUILDFORD BOROUGH COUNCIL,Homelessness Support,1000479,Legacy Lodgings Ltd,04/08/2022,30072620,385,0,Emergency Accomodation,,Invoice,BACS,No,25/04/2022 00:00,2022,5,INV-0274,C3311,Homelessness,D8009,Emergency Accomodation,KGU00,Supporting People - Strategy,KGU,Supporting People,KG,Housing General Fund,K,Housing Services
GUILDFORD BOROUGH COUNCIL,Homelessness Support,1000479,Legacy Lodgings Ltd,04/08/2022,30072636,385,0,Emergency Accomodation,,Invoice,BACS,No,11/04/2022 00:00,2022,5,INV-0244,C3311,Homelessness,D8009,Emergency Accomodation,KGU00,Supporting People - Strategy,KGU,Supporting People,KG,Housing General Fund,K,Housing Services
GUILDFORD BOROUGH COUNCIL,Homelessness Support,1000479,Legacy Lodgings Ltd,04/08/2022,30072609,385,0,Emergency Accomodation,,Invoice,BACS,No,18/04/2022 00:00,2022,5,INV-0259,C3311,Homelessness,D8009,Emergency Accomodation,KGU00,Supporting People - Strategy,KGU,Supporting People,KG,Housing General Fund,K,Housing Services
GUILDFORD BOROUGH COUNCIL,Homelessness Support,1000479,Legacy Lodgings Ltd,21/07/2022,30074315,309.19,0,Emergency Accomodation,,Invoice,BACS,No,27/06/2022 00:00,2022,4,INV-0406,C3311,Homelessness,D8009,Emergency Accomodation,KGU00,Supporting People - Strategy,KGU,Supporting People,KG,Housing General Fund,K,Housing Services
GUILDFORD BOROUGH COUNCIL,Homelessness Support,1000479,Legacy Lodgings Ltd,21/07/2022,30074334,280,0,Emergency Accomodation,,Invoice,BACS,No,27/06/2022 00:00,2022,4,INV-0395,C3311,Homelessness,D8009,Emergency Accomodation,KGU00,Supporting People - Strategy,KGU,Supporting People,KG,Housing General Fund,K,Housing Services
GUILDFORD BOROUGH COUNCIL,Homelessness Support,1000479,Legacy Lodgings Ltd,21/07/2022,30074347,309.19,0,Emergency Accomodation,,Invoice,BACS,No,27/06/2022 00:00,2022,4,INV-0407,C3311,Homelessness,D8009,Emergency Accomodation,KGU00,Supporting People - Strategy,KGU,Supporting People,KG,Housing General Fund,K,Housing Services
GUILDFORD BOROUGH COUNCIL,Homelessness Support,1000479,Legacy Lodgings Ltd,28/07/2022,30075332,280,0,Emergency Accomodation,,Invoice,BACS,No,04/07/2022 00:00,2022,4,INV-0414,C3311,Homelessness,D8009,Emergency Accomodation,KGU00,Supporting People - Strategy,KGU,Supporting People,KG,Housing General Fund,K,Housing Services
GUILDFORD BOROUGH COUNCIL,Homelessness Support,1000479,Legacy Lodgings Ltd,28/07/2022,30075337,309.19,0,Emergency Accomodation,,Invoice,BACS,No,04/07/2022 00:00,2022,4,INV-0425,C3311,Homelessness,D8009,Emergency Accomodation,KGU00,Supporting People - Strategy,KGU,Supporting People,KG,Housing General Fund,K,Housing Services
GUILDFORD BOROUGH COUNCIL,Homelessness Support,1000479,Legacy Lodgings Ltd,28/07/2022,30075360,309.19,0,Emergency Accomodation,,Invoice,BACS,No,04/07/2022 00:00,2022,4,INV-0424,C3311,Homelessness,D8009,Emergency Accomodation,KGU00,Supporting People - Strategy,KGU,Supporting People,KG,Housing General Fund,K,Housing Services
GUILDFORD BOROUGH COUNCIL,Homelessness Support,1000479,Legacy Lodgings Ltd,18/08/2022,30077659,309.19,0,Emergency Accomodation,,Invoice,BACS,No,25/07/2022 00:00,2022,5,INV-0468,C3311,Homelessness,D8009,Emergency Accomodation,KGU00,Supporting People - Strategy,KGU,Supporting People,KG,Housing General Fund,K,Housing Services
GUILDFORD BOROUGH COUNCIL,Homelessness Support,1000479,Legacy Lodgings Ltd,18/08/2022,30077619,309.19,0,Emergency Accomodation,,Invoice,BACS,No,25/07/2022 00:00,2022,5,INV-0469,C3311,Homelessness,D8009,Emergency Accomodation,KGU00,Supporting People - Strategy,KGU,Supporting People,KG,Housing General Fund,K,Housing Services
GUILDFORD BOROUGH COUNCIL,Homelessness Support,1000479,Legacy Lodgings Ltd,18/08/2022,30077642,280,0,Emergency Accomodation,,Invoice,BACS,No,25/07/2022 00:00,2022,5,INV-0459,C3311,Homelessness,D8009,Emergency Accomodation,KGU00,Supporting People - Strategy,KGU,Supporting People,KG,Housing General Fund,K,Housing Services
GUILDFORD BOROUGH COUNCIL,Homelessness Support,1000479,Legacy Lodgings Ltd,11/08/2022,30076589,385,0,Emergency Accomodation,,Invoice,BACS,No,18/07/2022 00:00,2022,5,INV-0447,C3311,Homelessness,D8009,Emergency Accomodation,KGU00,Supporting People - Strategy,KGU,Supporting People,KG,Housing General Fund,K,Housing Services
GUILDFORD BOROUGH COUNCIL,Homelessness Support,1000479,Legacy Lodgings Ltd,11/08/2022,30076591,309.19,0,Emergency Accomodation,,Invoice,BACS,No,18/07/2022 00:00,2022,5,INV-0453,C3311,Homelessness,D8009,Emergency Accomodation,KGU00,Supporting People - Strategy,KGU,Supporting People,KG,Housing General Fund,K,Housing Services
GUILDFORD BOROUGH COUNCIL,Homelessness Support,1000479,Legacy Lodgings Ltd,11/08/2022,30076593,309.19,0,Emergency Accomodation,,Invoice,BACS,No,18/07/2022 00:00,2022,5,INV-0454,C3311,Homelessness,D8009,Emergency Accomodation,KGU00,Supporting People - Strategy,KGU,Supporting People,KG,Housing General Fund,K,Housing Services
GUILDFORD BOROUGH COUNCIL,Homelessness Support,1000479,Legacy Lodgings Ltd,11/08/2022,30075899,309.19,0,Emergency Accomodation,,Invoice,BACS,No,11/07/2022 00:00,2022,5,INV-0438,C3311,Homelessness,D8009,Emergency Accomodation,KGU00,Supporting People - Strategy,KGU,Supporting People,KG,Housing General Fund,K,Housing Services
GUILDFORD BOROUGH COUNCIL,Homelessness Support,1000479,Legacy Lodgings Ltd,11/08/2022,30075914,309.19,0,Emergency Accomodation,,Invoice,BACS,No,11/07/2022 00:00,2022,5,INV-0439,C3311,Homelessness,D8009,Emergency Accomodation,KGU00,Supporting People - Strategy,KGU,Supporting People,KG,Housing General Fund,K,Housing Services
GUILDFORD BOROUGH COUNCIL,Homelessness Support,1000479,Legacy Lodgings Ltd,11/08/2022,30075916,280,0,Emergency Accomodation,,Invoice,BACS,No,11/07/2022 00:00,2022,5,INV-0430,C3311,Homelessness,D8009,Emergency Accomodation,KGU00,Supporting People - Strategy,KGU,Supporting People,KG,Housing General Fund,K,Housing Services
GUILDFORD BOROUGH COUNCIL,Homelessness Support,1000479,Legacy Lodgings Ltd,11/08/2022,30076570,280,0,Emergency Accomodation,,Invoice,BACS,No,18/07/2022 00:00,2022,5,INV-0443,C3311,Homelessness,D8009,Emergency Accomodation,KGU00,Supporting People - Strategy,KGU,Supporting People,KG,Housing General Fund,K,Housing Services
GUILDFORD BOROUGH COUNCIL,Homelessness Support,1000479,Legacy Lodgings Ltd,27/09/2022,30081194,280,0,Emergency Accomodation,,Invoice,BACS,No,08/08/2022 00:00,2022,6,INV-0488,C3311,Homelessness,D8009,Emergency Accomodation,KGU00,Supporting People - Strategy,KGU,Supporting People,KG,Housing General Fund,K,Housing Services
GUILDFORD BOROUGH COUNCIL,Homelessness Support,1000479,Legacy Lodgings Ltd,27/09/2022,30081195,309.19,0,Emergency Accomodation,,Invoice,BACS,No,08/08/2022 00:00,2022,6,INV-0496,C3311,Homelessness,D8009,Emergency Accomodation,KGU00,Supporting People - Strategy,KGU,Supporting People,KG,Housing General Fund,K,Housing Services
GUILDFORD BOROUGH COUNCIL,Homelessness Support,1000479,Legacy Lodgings Ltd,27/09/2022,30081203,309.19,0,Emergency Accomodation,,Invoice,BACS,No,08/08/2022 00:00,2022,6,INV-0492,C3311,Homelessness,D8009,Emergency Accomodation,KGU00,Supporting People - Strategy,KGU,Supporting People,KG,Housing General Fund,K,Housing Services
GUILDFORD BOROUGH COUNCIL,Homelessness Support,1000479,Legacy Lodgings Ltd,27/09/2022,30081220,309.19,0,Emergency Accomodation,,Invoice,BACS,No,08/08/2022 00:00,2022,6,INV-0495,C3311,Homelessness,D8009,Emergency Accomodation,KGU00,Supporting People - Strategy,KGU,Supporting People,KG,Housing General Fund,K,Housing Services
GUILDFORD BOROUGH COUNCIL,Homelessness Support,1000479,Legacy Lodgings Ltd,27/09/2022,30081542,280,0,Emergency Accomodation,,Invoice,BACS,No,22/08/2022 00:00,2022,6,INV-0516,C3311,Homelessness,D8009,Emergency Accomodation,KGU00,Supporting People - Strategy,KGU,Supporting People,KG,Housing General Fund,K,Housing Services
GUILDFORD BOROUGH COUNCIL,Homelessness Support,1000479,Legacy Lodgings Ltd,27/09/2022,30081545,309.19,0,Emergency Accomodation,,Invoice,BACS,No,29/08/2022 00:00,2022,6,INV-0542,C3311,Homelessness,D8009,Emergency Accomodation,KGU00,Supporting People - Strategy,KGU,Supporting People,KG,Housing General Fund,K,Housing Services
GUILDFORD BOROUGH COUNCIL,Homelessness Support,1000479,Legacy Lodgings Ltd,27/09/2022,30081500,309.19,0,Emergency Accomodation,,Invoice,BACS,No,22/08/2022 00:00,2022,6,INV-0526,C3311,Homelessness,D8009,Emergency Accomodation,KGU00,Supporting People - Strategy,KGU,Supporting People,KG,Housing General Fund,K,Housing Services
GUILDFORD BOROUGH COUNCIL,Homelessness Support,1000479,Legacy Lodgings Ltd,27/09/2022,30081484,309.19,0,Emergency Accomodation,,Invoice,BACS,No,29/08/2022 00:00,2022,6,INV-0541,C3311,Homelessness,D8009,Emergency Accomodation,KGU00,Supporting People - Strategy,KGU,Supporting People,KG,Housing General Fund,K,Housing Services
GUILDFORD BOROUGH COUNCIL,Homelessness Support,1000479,Legacy Lodgings Ltd,27/09/2022,30081505,309.19,0,Emergency Accomodation,,Invoice,BACS,No,22/08/2022 00:00,2022,6,INV-0527,C3311,Homelessness,D8009,Emergency Accomodation,KGU00,Supporting People - Strategy,KGU,Supporting People,KG,Housing General Fund,K,Housing Services
GUILDFORD BOROUGH COUNCIL,Homelessness Support,1000479,Legacy Lodgings Ltd,27/09/2022,30081514,280,0,Emergency Accomodation,,Invoice,BACS,No,29/08/2022 00:00,2022,6,INV-0532,C3311,Homelessness,D8009,Emergency Accomodation,KGU00,Supporting People - Strategy,KGU,Supporting People,KG,Housing General Fund,K,Housing Services
GUILDFORD BOROUGH COUNCIL,Homelessness Support,1000479,Legacy Lodgings Ltd,27/09/2022,30081438,309.19,0,Emergency Accomodation,,Invoice,BACS,No,15/08/2022 00:00,2022,6,INV-0510,C3311,Homelessness,D8009,Emergency Accomodation,KGU00,Supporting People - Strategy,KGU,Supporting People,KG,Housing General Fund,K,Housing Services
GUILDFORD BOROUGH COUNCIL,Homelessness Support,1000479,Legacy Lodgings Ltd,27/09/2022,30081455,309.19,0,Emergency Accomodation,,Invoice,BACS,No,15/08/2022 00:00,2022,6,INV-0509,C3311,Homelessness,D8009,Emergency Accomodation,KGU00,Supporting People - Strategy,KGU,Supporting People,KG,Housing General Fund,K,Housing Services
GUILDFORD BOROUGH COUNCIL,Homelessness Support,1000479,Legacy Lodgings Ltd,27/09/2022,30081460,280,0,Emergency Accomodation,,Invoice,BACS,No,15/08/2022 00:00,2022,6,INV-0500,C3311,Homelessness,D8009,Emergency Accomodation,KGU00,Supporting People - Strategy,KGU,Supporting People,KG,Housing General Fund,K,Housing Services
GUILDFORD BOROUGH COUNCIL,Homelessness Support,1000479,Legacy Lodgings Ltd,27/09/2022,30081462,309.19,0,Emergency Accomodation,,Invoice,BACS,No,15/08/2022 00:00,2022,6,INV-0511,C3311,Homelessness,D8009,Emergency Accomodation,KGU00,Supporting People - Strategy,KGU,Supporting People,KG,Housing General Fund,K,Housing Services
GUILDFORD BOROUGH COUNCIL,Homelessness Support,1000479,Legacy Lodgings Ltd,02/08/2022,30072688,350,0,Emergency Accomodation,,Invoice,BACS,No,25/04/2022 00:00,2022,4,INV-0263,C3311,Homelessness,D8009,Emergency Accomodation,KGU00,Supporting People - Strategy,KGU,Supporting People,KG,Housing General Fund,K,Housing Services
GUILDFORD BOROUGH COUNCIL,Homelessness Support,1000479,Legacy Lodgings Ltd,02/08/2022,30072668,350,0,Emergency Accomodation,,Invoice,BACS,No,09/05/2022 00:00,2022,4,INV-0291,C3311,Homelessness,D8009,Emergency Accomodation,KGU00,Supporting People - Strategy,KGU,Supporting People,KG,Housing General Fund,K,Housing Services
GUILDFORD BOROUGH COUNCIL,Homelessness Support,1000479,Legacy Lodgings Ltd,25/08/2022,30078461,280,0,Emergency Accomodation,,Invoice,BACS,No,01/08/2022 00:00,2022,5,INV-0474,C3311,Homelessness,D8009,Emergency Accomodation,KGU00,Supporting People - Strategy,KGU,Supporting People,KG,Housing General Fund,K,Housing Services
GUILDFORD BOROUGH COUNCIL,Homelessness Support,1000479,Legacy Lodgings Ltd,25/08/2022,30078462,309.19,0,Emergency Accomodation,,Invoice,BACS,No,01/08/2022 00:00,2022,5,INV-0484,C3311,Homelessness,D8009,Emergency Accomodation,KGU00,Supporting People - Strategy,KGU,Supporting People,KG,Housing General Fund,K,Housing Services
GUILDFORD BOROUGH COUNCIL,Homelessness Support,1000479,Legacy Lodgings Ltd,25/08/2022,30078486,309.19,0,Emergency Accomodation,,Invoice,BACS,No,01/08/2022 00:00,2022,5,INV-0483,C3311,Homelessness,D8009,Emergency Accomodation,KGU00,Supporting People - Strategy,KGU,Supporting People,KG,Housing General Fund,K,Housing Services
GUILDFORD BOROUGH COUNCIL,Homelessness Support,1000479,Legacy Lodgings Ltd,25/08/2022,30078488,309.19,0,Emergency Accomodation,,Invoice,BACS,No,01/08/2022 00:00,2022,5,INV-0479,C3311,Homelessness,D8009,Emergency Accomodation,KGU00,Supporting People - Strategy,KGU,Supporting People,KG,Housing General Fund,K,Housing Services
GUILDFORD BOROUGH COUNCIL,Parks Countryside Management,1000485,Filcris Limited,27/09/2022,30080938,744.14,0,Grounds Maintenance,,Invoice,BACS,No,01/09/2022 00:00,2022,6,52381,A1300,Trees And Countryside,B6001,Grounds Maintenance,CCE00,Community Parks & Open Spaces,CCE,Open Spaces,CC,Cultural & Related Services,C,"Cultural, Environmental & Planning Services"
GUILDFORD BOROUGH COUNCIL,Parks Countryside Management,1000485,Filcris Limited,27/09/2022,30080938,359.46,0,Grounds Maintenance,,Invoice,BACS,No,01/09/2022 00:00,2022,6,52381,A1300,Trees And Countryside,B6001,Grounds Maintenance,CCE00,Community Parks & Open Spaces,CCE,Open Spaces,CC,Cultural & Related Services,C,"Cultural, Environmental & Planning Services"
GUILDFORD BOROUGH COUNCIL,SPA Sites,1000485,Filcris Limited,22/09/2022,30081488,1360.23,0,Grounds Maintenance,,Invoice,BACS,No,27/07/2022 00:00,2022,6,52152,A1010,SPA Sites,B6001,Grounds Maintenance,CCE00,Community Parks & Open Spaces,CCE,Open Spaces,CC,Cultural & Related Services,C,"Cultural, Environmental & Planning Services"
GUILDFORD BOROUGH COUNCIL,Woking Road Depot,1000493,Gate-A-Mation Services Ltd,01/09/2022,30080627,1680,0,Services,,Invoice,BACS,No,29/06/2022 00:00,2022,5,33387,B4452,Woking Road Depot,D6004,Services,W3A48,Current Service Costs - Fleet Management,W3A,Current Service Costs adjustment,W3,Current Service Costs,W,Other Operating Income and Expenditure
GUILDFORD BOROUGH COUNCIL,Parks Countryside Management,1000495,Martin Townsend,11/08/2022,30076210,1395,0,Grounds Maintenance,,Invoice,BACS,No,18/07/2022 00:00,2022,4,325,A1300,Trees And Countryside,B6001,Grounds Maintenance,CCE00,Community Parks & Open Spaces,CCE,Open Spaces,CC,Cultural & Related Services,C,"Cultural, Environmental & Planning Services"
GUILDFORD BOROUGH COUNCIL,Parks Countryside Management,1000495,Martin Townsend,11/08/2022,30076214,14818,0,Grounds Maintenance,,Invoice,BACS,No,18/07/2022 00:00,2022,4,324,A1300,Trees And Countryside,B6001,Grounds Maintenance,CCE00,Community Parks & Open Spaces,CCE,Open Spaces,CC,Cultural & Related Services,C,"Cultural, Environmental & Planning Services"
GUILDFORD BOROUGH COUNCIL,Parks Countryside Management,1000495,Martin Townsend,23/08/2022,30077635,744,0,Grounds Maintenance,,Invoice,BACS,No,28/07/2022 00:00,2022,4,326,A1300,Trees And Countryside,B6001,Grounds Maintenance,CCE00,Community Parks & Open Spaces,CCE,Open Spaces,CC,Cultural & Related Services,C,"Cultural, Environmental & Planning Services"
GUILDFORD BOROUGH COUNCIL,Car Leasing Holding Code (Service),1000496,ALD Automotive Ltd,27/09/2022,30082027,5271.43,0,Car Leasing,,Invoice,BACS,No,01/09/2022 00:00,2022,6,16902365,G1131,Car Leasing Holding Code,C3002,Car Leasing,,,,,,,,
GUILDFORD BOROUGH COUNCIL,Grants,1000511,A&E Builders Limited,30/08/2022,30079703,5280,0,Grants To Private Owners,,Invoice,BACS,No,30/05/2022 00:00,2022,5,A&E Builders invoice 00177652,N51020,Home Improvement Grant WEF 2003,1311,Grants To Private Owners,XXX99,*** UNASSIGNED ***,WCC,CEC Recharges,WC,CEC Recharges,A,Central Services
GUILDFORD BOROUGH COUNCIL,Grants,1000511,A&E Builders Limited,25/08/2022,30079077,860,0,Grants To Private Owners,,Invoice,BACS,No,11/08/2022 00:00,2022,5,A&E Builders invoice 00177793,N51008,Mandatory DFG,1311,Grants To Private Owners,XXX99,*** UNASSIGNED ***,WCC,CEC Recharges,WC,CEC Recharges,A,Central Services
GUILDFORD BOROUGH COUNCIL,Off Street Parking,1000512,St Edward Homes Limited,08/09/2022,30080664,3333.37,0,Rents Payable,,Invoice,BACS,No,16/08/2022 00:00,2022,5,14000082,B2241,Commercial Road 2 Car Park,B3001,Rents Payable,HTP10,Off-Street Parking,HTP,Parking Services,HT,"Highways, Roads and Transport Services",H,"Highways, Roads and Transport Services"
GUILDFORD BOROUGH COUNCIL,Parks Countryside Management,1000517,Morris Leslie Plant Hire Ltd,27/09/2022,30080895,730.1,0,External Vehicle Hire,,Invoice,BACS,No,31/08/2022 00:00,2022,6,1000576980,A1300,Trees And Countryside,C3001,External Vehicle Hire,CCE00,Community Parks & Open Spaces,CCE,Open Spaces,CC,Cultural & Related Services,C,"Cultural, Environmental & Planning Services"
GUILDFORD BOROUGH COUNCIL,Responsive & Planned Maintenance,1000518,Liquid Recruit Solutions Limited,25/08/2022,30079018,831.75,0,Agency,,Invoice,BACS,No,10/08/2022 00:00,2022,5,11999,M5111,Repairs-Admin (BHS),A5191,Agency,XXX99,*** UNASSIGNED ***,WCC,CEC Recharges,WC,CEC Recharges,A,Central Services
GUILDFORD BOROUGH COUNCIL,Renovations,1000518,Liquid Recruit Solutions Limited,25/08/2022,30079028,1375,0,Contractor Payments,,Invoice,BACS,No,10/08/2022 00:00,2022,5,12003,N40292,Fire protection works,1233,Contractor Payments,,,,,,,,
GUILDFORD BOROUGH COUNCIL,Renovations,1000518,Liquid Recruit Solutions Limited,25/08/2022,30079044,636.13,0,Contractor Payments,,Invoice,BACS,No,10/08/2022 00:00,2022,5,12001,N40287,Electrical testing and smoke detectors,1233,Contractor Payments,,,,,,,,
GUILDFORD BOROUGH COUNCIL,Renovations,1000518,Liquid Recruit Solutions Limited,25/08/2022,30079044,636.13,0,Contractor Payments,,Invoice,BACS,No,10/08/2022 00:00,2022,5,12001,N40292,Fire protection works,1233,Contractor Payments,,,,,,,,
GUILDFORD BOROUGH COUNCIL,Renovations,1000518,Liquid Recruit Solutions Limited,25/08/2022,30079045,2108.85,0,Contractor Payments,,Invoice,BACS,No,10/08/2022 00:00,2022,5,12000,N40292,Fire protection works,1233,Contractor Payments,,,,,,,,
GUILDFORD BOROUGH COUNCIL,Housing Surveying,1000518,Liquid Recruit Solutions Limited,25/08/2022,30079046,1865,0,Agency,,Invoice,BACS,No,10/08/2022 00:00,2022,5,12002,G6525,Housing Surveying Services,A5191,Agency,CEE20,Housing Standards,CEE,Environmental Health (Regulatory Services),CE,Environmental & Regulatory Services,C,"Cultural, Environmental & Planning Services"
GUILDFORD BOROUGH COUNCIL,Renovations,1000518,Liquid Recruit Solutions Limited,25/08/2022,30079412,2062.5,0,Contractor Payments,,Invoice,BACS,No,17/08/2022 00:00,2022,5,12040,N40292,Fire protection works,1233,Contractor Payments,,,,,,,,
GUILDFORD BOROUGH COUNCIL,Renovations,1000518,Liquid Recruit Solutions Limited,25/08/2022,30079466,1375,0,Contractor Payments,,Invoice,BACS,No,17/08/2022 00:00,2022,5,12039,N40292,Fire protection works,1233,Contractor Payments,,,,,,,,
GUILDFORD BOROUGH COUNCIL,Renovations,1000518,Liquid Recruit Solutions Limited,25/08/2022,30079480,636.13,0,Contractor Payments,,Invoice,BACS,No,17/08/2022 00:00,2022,5,12042,N40287,Electrical testing and smoke detectors,1233,Contractor Payments,,,,,,,,
GUILDFORD BOROUGH COUNCIL,Renovations,1000518,Liquid Recruit Solutions Limited,25/08/2022,30079480,636.13,0,Contractor Payments,,Invoice,BACS,No,17/08/2022 00:00,2022,5,12042,N40292,Fire protection works,1233,Contractor Payments,,,,,,,,
GUILDFORD BOROUGH COUNCIL,Housing Surveying,1000518,Liquid Recruit Solutions Limited,25/08/2022,30078356,1865,0,Agency,,Invoice,BACS,No,04/08/2022 00:00,2022,5,11957,G6525,Housing Surveying Services,A5191,Agency,CEE20,Housing Standards,CEE,Environmental Health (Regulatory Services),CE,Environmental & Regulatory Services,C,"Cultural, Environmental & Planning Services"
GUILDFORD BOROUGH COUNCIL,Responsive & Planned Maintenance,1000518,Liquid Recruit Solutions Limited,25/08/2022,30078370,814.09,0,Agency,,Invoice,BACS,No,04/08/2022 00:00,2022,5,11959,M5111,Repairs-Admin (BHS),A5191,Agency,XXX99,*** UNASSIGNED ***,WCC,CEC Recharges,WC,CEC Recharges,A,Central Services
GUILDFORD BOROUGH COUNCIL,Renovations,1000518,Liquid Recruit Solutions Limited,25/08/2022,30078372,636.13,0,Contractor Payments,,Invoice,BACS,No,04/08/2022 00:00,2022,5,11958,N40287,Electrical testing and smoke detectors,1233,Contractor Payments,,,,,,,,
GUILDFORD BOROUGH COUNCIL,Renovations,1000518,Liquid Recruit Solutions Limited,25/08/2022,30078372,636.13,0,Contractor Payments,,Invoice,BACS,No,04/08/2022 00:00,2022,5,11958,N40292,Fire protection works,1233,Contractor Payments,,,,,,,,
GUILDFORD BOROUGH COUNCIL,Renovations,1000518,Liquid Recruit Solutions Limited,25/08/2022,30078378,1927.48,0,Contractor Payments,,Invoice,BACS,No,04/08/2022 00:00,2022,5,11962,N40287,Electrical testing and smoke detectors,1233,Contractor Payments,,,,,,,,
GUILDFORD BOROUGH COUNCIL,Renovations,1000518,Liquid Recruit Solutions Limited,25/08/2022,30078379,2116.5,0,Contractor Payments,,Invoice,BACS,No,04/08/2022 00:00,2022,5,11961,N40292,Fire protection works,1233,Contractor Payments,,,,,,,,
GUILDFORD BOROUGH COUNCIL,Renovations,1000518,Liquid Recruit Solutions Limited,25/08/2022,30080145,636.13,0,Contractor Payments,,Invoice,BACS,No,23/08/2022 00:00,2022,5,12081,N40287,Electrical testing and smoke detectors,1233,Contractor Payments,,,,,,,,
GUILDFORD BOROUGH COUNCIL,Renovations,1000518,Liquid Recruit Solutions Limited,25/08/2022,30080145,636.12,0,Contractor Payments,,Invoice,BACS,No,23/08/2022 00:00,2022,5,12081,N40292,Fire protection works,1233,Contractor Payments,,,,,,,,
GUILDFORD BOROUGH COUNCIL,Renovations,1000518,Liquid Recruit Solutions Limited,25/08/2022,30078393,1100,0,Contractor Payments,,Invoice,BACS,No,04/08/2022 00:00,2022,5,11960,N40292,Fire protection works,1233,Contractor Payments,,,,,,,,
GUILDFORD BOROUGH COUNCIL,Housing Surveying,1000518,Liquid Recruit Solutions Limited,15/09/2022,30080126,1865,0,Agency,,Invoice,BACS,No,23/08/2022 00:00,2022,5,12079,G6525,Housing Surveying Services,A5191,Agency,CEE20,Housing Standards,CEE,Environmental Health (Regulatory Services),CE,Environmental & Regulatory Services,C,"Cultural, Environmental & Planning Services"
GUILDFORD BOROUGH COUNCIL,Renovations,1000518,Liquid Recruit Solutions Limited,15/09/2022,30080144,1927.48,0,Contractor Payments,,Invoice,BACS,No,23/08/2022 00:00,2022,5,12084,N40287,Electrical testing and smoke detectors,1233,Contractor Payments,,,,,,,,
GUILDFORD BOROUGH COUNCIL,Renovations,1000518,Liquid Recruit Solutions Limited,15/09/2022,30080154,2115.6,0,Contractor Payments,,Invoice,BACS,No,23/08/2022 00:00,2022,5,12080,N40292,Fire protection works,1233,Contractor Payments,,,,,,,,
GUILDFORD BOROUGH COUNCIL,Renovations,1000518,Liquid Recruit Solutions Limited,15/09/2022,30080320,1375,0,Contractor Payments,,Invoice,BACS,No,23/08/2022 00:00,2022,5,12083,N40292,Fire protection works,1233,Contractor Payments,,,,,,,,
GUILDFORD BOROUGH COUNCIL,Responsive & Planned Maintenance,1000518,Liquid Recruit Solutions Limited,15/09/2022,30080134,812.13,0,Agency,,Invoice,BACS,No,23/08/2022 00:00,2022,5,12082,M5111,Repairs-Admin (BHS),A5191,Agency,XXX99,*** UNASSIGNED ***,WCC,CEC Recharges,WC,CEC Recharges,A,Central Services
GUILDFORD BOROUGH COUNCIL,Renovations,1000518,Liquid Recruit Solutions Limited,02/08/2022,30074585,636.13,0,Contractor Payments,,Invoice,BACS,No,06/07/2022 00:00,2022,4,11811,N40292,Fire protection works,1233,Contractor Payments,,,,,,,,
GUILDFORD BOROUGH COUNCIL,Renovations,1000518,Liquid Recruit Solutions Limited,02/08/2022,30074585,636.12,0,Contractor Payments,,Invoice,BACS,No,06/07/2022 00:00,2022,4,11811,N40287,Electrical testing and smoke detectors,1233,Contractor Payments,,,,,,,,
GUILDFORD BOROUGH COUNCIL,Responsive & Planned Maintenance,1000518,Liquid Recruit Solutions Limited,02/08/2022,30074594,810.17,0,Agency,,Invoice,BACS,No,06/07/2022 00:00,2022,4,11809,M5111,Repairs-Admin (BHS),A5191,Agency,XXX99,*** UNASSIGNED ***,WCC,CEC Recharges,WC,CEC Recharges,A,Central Services
GUILDFORD BOROUGH COUNCIL,Housing Surveying,1000518,Liquid Recruit Solutions Limited,02/08/2022,30074612,1865,0,Agency,,Invoice,BACS,No,06/07/2022 00:00,2022,4,11807,G6525,Housing Surveying Services,A5191,Agency,CEE20,Housing Standards,CEE,Environmental Health (Regulatory Services),CE,Environmental & Regulatory Services,C,"Cultural, Environmental & Planning Services"
GUILDFORD BOROUGH COUNCIL,Renovations,1000518,Liquid Recruit Solutions Limited,02/08/2022,30074622,2062.5,0,Contractor Payments,,Invoice,BACS,No,06/07/2022 00:00,2022,4,11812,N40292,Fire protection works,1233,Contractor Payments,,,,,,,,
GUILDFORD BOROUGH COUNCIL,Renovations,1000518,Liquid Recruit Solutions Limited,02/08/2022,30074630,1375,0,Contractor Payments,,Invoice,BACS,No,06/07/2022 00:00,2022,4,11808,N40292,Fire protection works,1233,Contractor Payments,,,,,,,,
GUILDFORD BOROUGH COUNCIL,Renovations,1000518,Liquid Recruit Solutions Limited,02/08/2022,30075322,1929.58,0,Contractor Payments,,Invoice,BACS,No,06/07/2022 00:00,2022,4,11810,N40287,Electrical testing and smoke detectors,1233,Contractor Payments,,,,,,,,
GUILDFORD BOROUGH COUNCIL,Housing Surveying,1000518,Liquid Recruit Solutions Limited,23/08/2022,30077650,1865,0,Agency,,Invoice,BACS,No,28/07/2022 00:00,2022,5,11920,G6525,Housing Surveying Services,A5191,Agency,CEE20,Housing Standards,CEE,Environmental Health (Regulatory Services),CE,Environmental & Regulatory Services,C,"Cultural, Environmental & Planning Services"
GUILDFORD BOROUGH COUNCIL,Renovations,1000518,Liquid Recruit Solutions Limited,23/08/2022,30077639,636.13,0,Contractor Payments,,Invoice,BACS,No,28/07/2022 00:00,2022,5,11923,N40287,Electrical testing and smoke detectors,1233,Contractor Payments,,,,,,,,
GUILDFORD BOROUGH COUNCIL,Renovations,1000518,Liquid Recruit Solutions Limited,23/08/2022,30077639,636.13,0,Contractor Payments,,Invoice,BACS,No,28/07/2022 00:00,2022,5,11923,N40292,Fire protection works,1233,Contractor Payments,,,,,,,,
GUILDFORD BOROUGH COUNCIL,Responsive & Planned Maintenance,1000518,Liquid Recruit Solutions Limited,23/08/2022,30077640,816.05,0,Agency,,Invoice,BACS,No,28/07/2022 00:00,2022,5,11922,M5111,Repairs-Admin (BHS),A5191,Agency,XXX99,*** UNASSIGNED ***,WCC,CEC Recharges,WC,CEC Recharges,A,Central Services
GUILDFORD BOROUGH COUNCIL,Renovations,1000518,Liquid Recruit Solutions Limited,23/08/2022,30077657,1375,0,Contractor Payments,,Invoice,BACS,No,28/07/2022 00:00,2022,5,11925,N40292,Fire protection works,1233,Contractor Payments,,,,,,,,
GUILDFORD BOROUGH COUNCIL,Renovations,1000518,Liquid Recruit Solutions Limited,23/08/2022,30077567,1931.26,0,Contractor Payments,,Invoice,BACS,No,28/07/2022 00:00,2022,4,11921,N40287,Electrical testing and smoke detectors,1233,Contractor Payments,,,,,,,,
GUILDFORD BOROUGH COUNCIL,Renovations,1000518,Liquid Recruit Solutions Limited,25/08/2022,30080069,1877.5,0,Contractor Payments,,Invoice,BACS,No,17/08/2022 00:00,2022,5,12043,N40287,Electrical testing and smoke detectors,1233,Contractor Payments,,,,,,,,
GUILDFORD BOROUGH COUNCIL,Responsive & Planned Maintenance,1000518,Liquid Recruit Solutions Limited,25/08/2022,30079569,818.02,0,Agency,,Invoice,BACS,No,17/08/2022 00:00,2022,5,12041,M5111,Repairs-Admin (BHS),A5191,Agency,XXX99,*** UNASSIGNED ***,WCC,CEC Recharges,WC,CEC Recharges,A,Central Services
GUILDFORD BOROUGH COUNCIL,Housing Surveying,1000518,Liquid Recruit Solutions Limited,25/08/2022,30079562,1865,0,Agency,,Invoice,BACS,No,17/08/2022 00:00,2022,5,12038,G6525,Housing Surveying Services,A5191,Agency,CEE20,Housing Standards,CEE,Environmental Health (Regulatory Services),CE,Environmental & Regulatory Services,C,"Cultural, Environmental & Planning Services"
GUILDFORD BOROUGH COUNCIL,Renovations,1000518,Liquid Recruit Solutions Limited,22/09/2022,30080670,1931.26,0,Contractor Payments,,Invoice,BACS,No,30/08/2022 00:00,2022,6,12119,N40287,Electrical testing and smoke detectors,1233,Contractor Payments,,,,,,,,
GUILDFORD BOROUGH COUNCIL,Renovations,1000518,Liquid Recruit Solutions Limited,22/09/2022,30080682,636.13,0,Contractor Payments,,Invoice,BACS,No,30/08/2022 00:00,2022,6,12122,N40287,Electrical testing and smoke detectors,1233,Contractor Payments,,,,,,,,
GUILDFORD BOROUGH COUNCIL,Renovations,1000518,Liquid Recruit Solutions Limited,22/09/2022,30080682,636.13,0,Contractor Payments,,Invoice,BACS,No,30/08/2022 00:00,2022,6,12122,N40292,Fire protection works,1233,Contractor Payments,,,,,,,,
GUILDFORD BOROUGH COUNCIL,Responsive & Planned Maintenance,1000518,Liquid Recruit Solutions Limited,22/09/2022,30080684,786.63,0,Agency,,Invoice,BACS,No,30/08/2022 00:00,2022,6,12121,M5111,Repairs-Admin (BHS),A5191,Agency,XXX99,*** UNASSIGNED ***,WCC,CEC Recharges,WC,CEC Recharges,A,Central Services
GUILDFORD BOROUGH COUNCIL,Renovations,1000518,Liquid Recruit Solutions Limited,22/09/2022,30080637,2117.4,0,Contractor Payments,,Invoice,BACS,No,30/08/2022 00:00,2022,6,12120,N40292,Fire protection works,1233,Contractor Payments,,,,,,,,
GUILDFORD BOROUGH COUNCIL,Renovations,1000518,Liquid Recruit Solutions Limited,22/09/2022,30080663,1375,0,Contractor Payments,,Invoice,BACS,No,30/08/2022 00:00,2022,6,12118,N40292,Fire protection works,1233,Contractor Payments,,,,,,,,
GUILDFORD BOROUGH COUNCIL,Housing Surveying,1000518,Liquid Recruit Solutions Limited,22/09/2022,30080687,1865,0,Agency,,Invoice,BACS,No,30/08/2022 00:00,2022,6,12117,G6525,Housing Surveying Services,A5191,Agency,CEE20,Housing Standards,CEE,Environmental Health (Regulatory Services),CE,Environmental & Regulatory Services,C,"Cultural, Environmental & Planning Services"
GUILDFORD BOROUGH COUNCIL,Renovations,1000518,Liquid Recruit Solutions Limited,23/08/2022,30077602,2116.5,0,Contractor Payments,,Invoice,BACS,No,28/07/2022 00:00,2022,4,11924,N40292,Fire protection works,1233,Contractor Payments,,,,,,,,
GUILDFORD BOROUGH COUNCIL,Housing Surveying,1000518,Liquid Recruit Solutions Limited,09/08/2022,30075733,1492,0,Agency,,Invoice,BACS,No,13/07/2022 00:00,2022,4,11819,G6525,Housing Surveying Services,A5191,Agency,CEE20,Housing Standards,CEE,Environmental Health (Regulatory Services),CE,Environmental & Regulatory Services,C,"Cultural, Environmental & Planning Services"
GUILDFORD BOROUGH COUNCIL,Renovations,1000518,Liquid Recruit Solutions Limited,09/08/2022,30075741,636.13,0,Contractor Payments,,Invoice,BACS,No,13/07/2022 00:00,2022,4,11818,N40292,Fire protection works,1233,Contractor Payments,,,,,,,,
GUILDFORD BOROUGH COUNCIL,Renovations,1000518,Liquid Recruit Solutions Limited,09/08/2022,30075741,636.12,0,Contractor Payments,,Invoice,BACS,No,13/07/2022 00:00,2022,4,11818,N40287,Electrical testing and smoke detectors,1233,Contractor Payments,,,,,,,,
GUILDFORD BOROUGH COUNCIL,Renovations,1000518,Liquid Recruit Solutions Limited,09/08/2022,30075710,1932.94,0,Contractor Payments,,Invoice,BACS,No,13/07/2022 00:00,2022,4,11815,N40287,Electrical testing and smoke detectors,1233,Contractor Payments,,,,,,,,
GUILDFORD BOROUGH COUNCIL,Renovations,1000518,Liquid Recruit Solutions Limited,09/08/2022,30075711,2166.9,0,Contractor Payments,,Invoice,BACS,No,13/07/2022 00:00,2022,4,11817,N40292,Fire protection works,1233,Contractor Payments,,,,,,,,
GUILDFORD BOROUGH COUNCIL,Renovations,1000518,Liquid Recruit Solutions Limited,09/08/2022,30075712,1375,0,Contractor Payments,,Invoice,BACS,No,13/07/2022 00:00,2022,4,11820,N40292,Fire protection works,1233,Contractor Payments,,,,,,,,
GUILDFORD BOROUGH COUNCIL,Responsive & Planned Maintenance,1000518,Liquid Recruit Solutions Limited,09/08/2022,30075717,665.01,0,Agency,,Invoice,BACS,No,13/07/2022 00:00,2022,4,11816,M5111,Repairs-Admin (BHS),A5191,Agency,XXX99,*** UNASSIGNED ***,WCC,CEC Recharges,WC,CEC Recharges,A,Central Services
GUILDFORD BOROUGH COUNCIL,Responsive & Planned Maintenance,1000518,Liquid Recruit Solutions Limited,26/07/2022,30074550,721.89,0,Agency,,Invoice,BACS,No,29/06/2022 00:00,2022,4,11773,M5111,Repairs-Admin (BHS),A5191,Agency,XXX99,*** UNASSIGNED ***,WCC,CEC Recharges,WC,CEC Recharges,A,Central Services
GUILDFORD BOROUGH COUNCIL,Housing Surveying,1000518,Liquid Recruit Solutions Limited,26/07/2022,30074316,1865,0,Agency,,Invoice,BACS,No,29/06/2022 00:00,2022,4,11774,G6525,Housing Surveying Services,A5191,Agency,CEE20,Housing Standards,CEE,Environmental Health (Regulatory Services),CE,Environmental & Regulatory Services,C,"Cultural, Environmental & Planning Services"
GUILDFORD BOROUGH COUNCIL,Housing Surveying,1000518,Liquid Recruit Solutions Limited,16/08/2022,30076266,1865,0,Agency,,Invoice,BACS,No,20/07/2022 00:00,2022,4,11883,G6525,Housing Surveying Services,A5191,Agency,CEE20,Housing Standards,CEE,Environmental Health (Regulatory Services),CE,Environmental & Regulatory Services,C,"Cultural, Environmental & Planning Services"
GUILDFORD BOROUGH COUNCIL,Renovations,1000518,Liquid Recruit Solutions Limited,16/08/2022,30076252,2116.5,0,Contractor Payments,,Invoice,BACS,No,20/07/2022 00:00,2022,4,11886,N40292,Fire protection works,1233,Contractor Payments,,,,,,,,
GUILDFORD BOROUGH COUNCIL,Renovations,1000518,Liquid Recruit Solutions Limited,16/08/2022,30076256,636.13,0,Contractor Payments,,Invoice,BACS,No,20/07/2022 00:00,2022,4,11885,N40292,Fire protection works,1233,Contractor Payments,,,,,,,,
GUILDFORD BOROUGH COUNCIL,Renovations,1000518,Liquid Recruit Solutions Limited,16/08/2022,30076256,636.12,0,Contractor Payments,,Invoice,BACS,No,20/07/2022 00:00,2022,4,11885,N40287,Electrical testing and smoke detectors,1233,Contractor Payments,,,,,,,,
GUILDFORD BOROUGH COUNCIL,Renovations,1000518,Liquid Recruit Solutions Limited,16/08/2022,30076261,1931.68,0,Contractor Payments,,Invoice,BACS,No,20/07/2022 00:00,2022,4,11887,N40287,Electrical testing and smoke detectors,1233,Contractor Payments,,,,,,,,
GUILDFORD BOROUGH COUNCIL,Renovations,1000518,Liquid Recruit Solutions Limited,16/08/2022,30076289,1375,0,Contractor Payments,,Invoice,BACS,No,20/07/2022 00:00,2022,4,11884,N40292,Fire protection works,1233,Contractor Payments,,,,,,,,
GUILDFORD BOROUGH COUNCIL,Renovations,1000518,Liquid Recruit Solutions Limited,06/09/2022,30080117,1918.24,0,Contractor Payments,,Invoice,BACS,No,10/08/2022 00:00,2022,5,11998,N40287,Electrical testing and smoke detectors,1233,Contractor Payments,,,,,,,,
GUILDFORD BOROUGH COUNCIL,Renovations,1000518,Liquid Recruit Solutions Limited,29/09/2022,30081319,508.9,0,Contractor Payments,,Invoice,BACS,No,06/09/2022 00:00,2022,6,12126,N40287,Electrical testing and smoke detectors,1233,Contractor Payments,,,,,,,,
GUILDFORD BOROUGH COUNCIL,Renovations,1000518,Liquid Recruit Solutions Limited,29/09/2022,30081319,508.9,0,Contractor Payments,,Invoice,BACS,No,06/09/2022 00:00,2022,6,12126,N40292,Fire protection works,1233,Contractor Payments,,,,,,,,
GUILDFORD BOROUGH COUNCIL,Housing Surveying,1000518,Liquid Recruit Solutions Limited,29/09/2022,30081308,1492,0,Agency,,Invoice,BACS,No,06/09/2022 00:00,2022,6,12128,G6525,Housing Surveying Services,A5191,Agency,CEE20,Housing Standards,CEE,Environmental Health (Regulatory Services),CE,Environmental & Regulatory Services,C,"Cultural, Environmental & Planning Services"
GUILDFORD BOROUGH COUNCIL,Renovations,1000518,Liquid Recruit Solutions Limited,29/09/2022,30081526,1100,0,Contractor Payments,,Invoice,BACS,No,06/09/2022 00:00,2022,6,12127,N40292,Fire protection works,1233,Contractor Payments,,,,,,,,
GUILDFORD BOROUGH COUNCIL,Renovations,1000518,Liquid Recruit Solutions Limited,29/09/2022,30081311,1711.65,0,Contractor Payments,,Invoice,BACS,No,06/09/2022 00:00,2022,6,12125,N40292,Fire protection works,1233,Contractor Payments,,,,,,,,
GUILDFORD BOROUGH COUNCIL,Renovations,1000518,Liquid Recruit Solutions Limited,29/09/2022,30081336,1922.44,0,Contractor Payments,,Invoice,BACS,No,06/09/2022 00:00,2022,6,12130,N40287,Electrical testing and smoke detectors,1233,Contractor Payments,,,,,,,,
GUILDFORD BOROUGH COUNCIL,Responsive & Planned Maintenance,1000518,Liquid Recruit Solutions Limited,29/09/2022,30081352,632.05,0,Agency,,Invoice,BACS,No,06/09/2022 00:00,2022,6,12129,M5111,Repairs-Admin (BHS),A5191,Agency,XXX99,*** UNASSIGNED ***,WCC,CEC Recharges,WC,CEC Recharges,A,Central Services
GUILDFORD BOROUGH COUNCIL,Major Projects,1000530,Forty Shillings,04/08/2022,30075720,5180,0,Consultancy,,Invoice,BACS,No,12/07/2022 00:00,2022,4,2577,F5530,Major Projects,D6001,Consultancy,DBX70,Other Management Costs,DBX,Support Service and Management Costs,DB,Children's Social Care,E,Childrens and Education Services
GUILDFORD BOROUGH COUNCIL,Major Projects,1000530,Forty Shillings,15/09/2022,30081506,4779,0,Consultancy,,Invoice,BACS,No,18/08/2022 00:00,2022,6,2598,F5530,Major Projects,D6001,Consultancy,DBX70,Other Management Costs,DBX,Support Service and Management Costs,DB,Children's Social Care,E,Childrens and Education Services
GUILDFORD BOROUGH COUNCIL,Other Short Term Creditors,1000531,Vistar Construction Ltd,28/07/2022,30076413,4000,0,Payments,,Invoice,BACS,No,05/07/2022 00:00,2022,4,Vistar 4652 re 5 Orchard Close,L02088,Care & Repair Client Fund,2489,Payments,,,,,,,,
GUILDFORD BOROUGH COUNCIL,Crematorium,1000533,Albury Old Saxon Church,16/08/2022,30077127,350,0,Grants And Subscriptions,,Invoice,BACS,No,24/07/2022 00:00,2022,4,VOLUNTARYDONATIONAPRIL21,A1500,Crematorium,D9001,Grants And Subscriptions,CEA10,Crematoria,CEA,"Cemetery, Cremation and Mortuary Services",CE,Environmental & Regulatory Services,C,"Cultural, Environmental & Planning Services"
GUILDFORD BOROUGH COUNCIL,Crematorium,1000533,Albury Old Saxon Church,16/08/2022,30077129,350,0,Grants And Subscriptions,,Invoice,BACS,No,24/07/2022 00:00,2022,4,VOLUNTARYDONATIONAPRIL22,A1500,Crematorium,D9001,Grants And Subscriptions,CEA10,Crematoria,CEA,"Cemetery, Cremation and Mortuary Services",CE,Environmental & Regulatory Services,C,"Cultural, Environmental & Planning Services"
GUILDFORD BOROUGH COUNCIL,Countryside and Parks Services,1000545,Metro Rod Ltd,15/09/2022,30081792,425,0,Grounds Maintenance,,Invoice,BACS,No,08/03/2022 00:00,2022,6,421960,A1100,Horticulture,B6001,Grounds Maintenance,CCE00,Community Parks & Open Spaces,CCE,Open Spaces,CC,Cultural & Related Services,C,"Cultural, Environmental & Planning Services"
GUILDFORD BOROUGH COUNCIL,Countryside and Parks Services,1000545,Metro Rod Ltd,15/09/2022,30081799,425,0,Grounds Maintenance,,Invoice,BACS,No,30/11/2021 00:00,2022,6,373843,A1100,Horticulture,B6001,Grounds Maintenance,CCE00,Community Parks & Open Spaces,CCE,Open Spaces,CC,Cultural & Related Services,C,"Cultural, Environmental & Planning Services"
GUILDFORD BOROUGH COUNCIL,Parks Countryside Management,1000545,Metro Rod Ltd,15/09/2022,30081809,360,0,Grounds Maintenance,,Invoice,BACS,No,31/01/2022 00:00,2022,6,402681,A1300,Trees And Countryside,B6001,Grounds Maintenance,CCE00,Community Parks & Open Spaces,CCE,Open Spaces,CC,Cultural & Related Services,C,"Cultural, Environmental & Planning Services"
GUILDFORD BOROUGH COUNCIL,Countryside and Parks Services,1000545,Metro Rod Ltd,15/09/2022,30081811,425,0,Grounds Maintenance,,Invoice,BACS,No,30/11/2021 00:00,2022,6,373836,A1100,Horticulture,B6001,Grounds Maintenance,CCE00,Community Parks & Open Spaces,CCE,Open Spaces,CC,Cultural & Related Services,C,"Cultural, Environmental & Planning Services"
GUILDFORD BOROUGH COUNCIL,Countryside and Parks Services,1000545,Metro Rod Ltd,15/09/2022,30081812,425,0,Grounds Maintenance,,Invoice,BACS,No,31/01/2022 00:00,2022,6,402682,A1100,Horticulture,B6001,Grounds Maintenance,CCE00,Community Parks & Open Spaces,CCE,Open Spaces,CC,Cultural & Related Services,C,"Cultural, Environmental & Planning Services"
GUILDFORD BOROUGH COUNCIL,Countryside and Parks Services,1000545,Metro Rod Ltd,15/09/2022,30081820,425,0,Grounds Maintenance,,Invoice,BACS,No,30/11/2021 00:00,2022,6,373840,A1100,Horticulture,B6001,Grounds Maintenance,CCE00,Community Parks & Open Spaces,CCE,Open Spaces,CC,Cultural & Related Services,C,"Cultural, Environmental & Planning Services"
GUILDFORD BOROUGH COUNCIL,Countryside and Parks Services,1000545,Metro Rod Ltd,15/09/2022,30081821,425,0,Grounds Maintenance,,Invoice,BACS,No,28/02/2022 00:00,2022,6,418348,A1100,Horticulture,B6001,Grounds Maintenance,CCE00,Community Parks & Open Spaces,CCE,Open Spaces,CC,Cultural & Related Services,C,"Cultural, Environmental & Planning Services"
GUILDFORD BOROUGH COUNCIL,Countryside and Parks Services,1000545,Metro Rod Ltd,15/09/2022,30081826,425,0,Grounds Maintenance,,Invoice,BACS,No,30/11/2021 00:00,2022,6,373845,A1100,Horticulture,B6001,Grounds Maintenance,CCE00,Community Parks & Open Spaces,CCE,Open Spaces,CC,Cultural & Related Services,C,"Cultural, Environmental & Planning Services"
GUILDFORD BOROUGH COUNCIL,Countryside and Parks Services,1000545,Metro Rod Ltd,15/09/2022,30081829,425,0,Grounds Maintenance,,Invoice,BACS,No,31/12/2021 00:00,2022,6,387518,A1100,Horticulture,B6001,Grounds Maintenance,CCE00,Community Parks & Open Spaces,CCE,Open Spaces,CC,Cultural & Related Services,C,"Cultural, Environmental & Planning Services"
GUILDFORD BOROUGH COUNCIL,Countryside and Parks Services,1000545,Metro Rod Ltd,15/09/2022,30081830,425,0,Grounds Maintenance,,Invoice,BACS,No,31/12/2021 00:00,2022,6,387517,A1100,Horticulture,B6001,Grounds Maintenance,CCE00,Community Parks & Open Spaces,CCE,Open Spaces,CC,Cultural & Related Services,C,"Cultural, Environmental & Planning Services"
GUILDFORD BOROUGH COUNCIL,Countryside and Parks Services,1000545,Metro Rod Ltd,15/09/2022,30081831,425,0,Grounds Maintenance,,Invoice,BACS,No,30/11/2021 00:00,2022,6,373851,A1100,Horticulture,B6001,Grounds Maintenance,CCE00,Community Parks & Open Spaces,CCE,Open Spaces,CC,Cultural & Related Services,C,"Cultural, Environmental & Planning Services"
GUILDFORD BOROUGH COUNCIL,Major Projects,1000545,Metro Rod Ltd,27/09/2022,30082408,2640,0,Consultancy,,Invoice,BACS,No,31/05/2022 00:00,2022,6,465940,F5530,Major Projects,D6001,Consultancy,DBX70,Other Management Costs,DBX,Support Service and Management Costs,DB,Children's Social Care,E,Childrens and Education Services
GUILDFORD BOROUGH COUNCIL,Major Projects,1000545,Metro Rod Ltd,27/09/2022,30082464,2755,0,Consultancy,,Invoice,BACS,No,31/05/2022 00:00,2022,6,465934,F5530,Major Projects,D6001,Consultancy,DBX70,Other Management Costs,DBX,Support Service and Management Costs,DB,Children's Social Care,E,Childrens and Education Services
GUILDFORD BOROUGH COUNCIL,Executive - Miscellaneous,1000547,Broadband for Surrey Hills Limited,02/08/2022,30074582,40000,0,Purchase Of Shares,,Invoice,BACS,No,06/07/2022 00:00,2022,4,Share Subscription May 2020,P79995,Broadband for Surrey Hills (B4SH),1124,Purchase Of Shares,,,,,,,,
GUILDFORD BOROUGH COUNCIL,Industrial Estates,1000550,Sure-Safe Ltd,23/08/2022,30078019,1200,0,Grounds Maintenance,,Invoice,BACS,No,29/07/2022 00:00,2022,5,INV-52139,B5375,Slyfield Foundation Units,B6001,Grounds Maintenance,,,,,,,,
GUILDFORD BOROUGH COUNCIL,Environmental Health,1000551,KALACO Group Limited t/a Air Pollution,29/09/2022,30081201,2200,0,Contractors,,Invoice,BACS,No,05/09/2022 00:00,2022,6,APS1821,C1113,Environmental Control,D6012,Contractors,CEE25,Environmental Protection,CEE,Environmental Health (Regulatory Services),CE,Environmental & Regulatory Services,C,"Cultural, Environmental & Planning Services"
GUILDFORD BOROUGH COUNCIL,Void Property Management,1000552,Badenoch and Clark Limited,21/07/2022,30075692,922.25,0,Agency,,Invoice,BACS,No,28/06/2022 00:00,2022,4,TD6458,M1141,Void Property Mgmt (SHS),A5191,Agency,XXX99,*** UNASSIGNED ***,WCC,CEC Recharges,WC,CEC Recharges,A,Central Services
GUILDFORD BOROUGH COUNCIL,Homelessness Support,1000552,Badenoch and Clark Limited,28/07/2022,30075671,1252.13,0,Agency,,Invoice,BACS,No,04/07/2022 00:00,2022,4,TE2619,C3311,Homelessness,A5191,Agency,KGU00,Supporting People - Strategy,KGU,Supporting People,KG,Housing General Fund,K,Housing Services
GUILDFORD BOROUGH COUNCIL,Homelessness Support,1000552,Badenoch and Clark Limited,28/07/2022,30075686,1001.7,0,Agency,,Invoice,BACS,No,04/07/2022 00:00,2022,4,TE2618,C3311,Homelessness,A5191,Agency,KGU00,Supporting People - Strategy,KGU,Supporting People,KG,Housing General Fund,K,Housing Services
GUILDFORD BOROUGH COUNCIL,Homelessness Support,1000552,Badenoch and Clark Limited,14/07/2022,30075680,250.43,0,Agency,,Invoice,BACS,No,13/06/2022 00:00,2022,4,TC2742,C3311,Homelessness,A5191,Agency,KGU00,Supporting People - Strategy,KGU,Supporting People,KG,Housing General Fund,K,Housing Services
GUILDFORD BOROUGH COUNCIL,Homelessness Support,1000552,Badenoch and Clark Limited,14/07/2022,30075695,751.28,0,Agency,,Invoice,BACS,No,13/06/2022 00:00,2022,4,TC2741,C3311,Homelessness,A5191,Agency,KGU00,Supporting People - Strategy,KGU,Supporting People,KG,Housing General Fund,K,Housing Services
GUILDFORD BOROUGH COUNCIL,Homelessness Support,1000552,Badenoch and Clark Limited,14/07/2022,30075700,1235.43,0,Agency,,Invoice,BACS,No,13/06/2022 00:00,2022,4,TC2740,C3311,Homelessness,A5191,Agency,KGU00,Supporting People - Strategy,KGU,Supporting People,KG,Housing General Fund,K,Housing Services
GUILDFORD BOROUGH COUNCIL,Void Property Management,1000552,Badenoch and Clark Limited,02/08/2022,30075660,558,0,Agency,,Invoice,BACS,No,06/06/2022 00:00,2022,4,TB6206,M1141,Void Property Mgmt (SHS),A5191,Agency,XXX99,*** UNASSIGNED ***,WCC,CEC Recharges,WC,CEC Recharges,A,Central Services
GUILDFORD BOROUGH COUNCIL,Void Property Management,1000552,Badenoch and Clark Limited,02/08/2022,30075688,1147,0,Agency,,Invoice,BACS,No,05/07/2022 00:00,2022,4,TE5359,M1141,Void Property Mgmt (SHS),A5191,Agency,XXX99,*** UNASSIGNED ***,WCC,CEC Recharges,WC,CEC Recharges,A,Central Services
GUILDFORD BOROUGH COUNCIL,Void Property Management,1000552,Badenoch and Clark Limited,02/08/2022,30075702,713,0,Agency,,Invoice,BACS,No,07/06/2022 00:00,2022,4,TB9275,M1141,Void Property Mgmt (SHS),A5191,Agency,XXX99,*** UNASSIGNED ***,WCC,CEC Recharges,WC,CEC Recharges,A,Central Services
GUILDFORD BOROUGH COUNCIL,Void Property Management,1000552,Badenoch and Clark Limited,02/08/2022,30075649,1147,0,Agency,,Invoice,BACS,No,22/06/2022 00:00,2022,4,TD4298,M1141,Void Property Mgmt (SHS),A5191,Agency,XXX99,*** UNASSIGNED ***,WCC,CEC Recharges,WC,CEC Recharges,A,Central Services
GUILDFORD BOROUGH COUNCIL,Void Property Management,1000552,Badenoch and Clark Limited,02/08/2022,30075652,1147,0,Agency,,Invoice,BACS,No,13/06/2022 00:00,2022,4,TC2383,M1141,Void Property Mgmt (SHS),A5191,Agency,XXX99,*** UNASSIGNED ***,WCC,CEC Recharges,WC,CEC Recharges,A,Central Services
GUILDFORD BOROUGH COUNCIL,Modern Homes,1000554,Seville Developments,02/08/2022,30077682,4025,0,Contractor Payments,,Invoice,BACS,No,07/07/2022 00:00,2022,5,5728,N42068,"Kitchen, bathroom and electrical upgrades",1233,Contractor Payments,,,,,,,,
GUILDFORD BOROUGH COUNCIL,Modern Homes,1000554,Seville Developments,02/08/2022,30077682,4025,0,Contractor Payments,,Invoice,BACS,No,07/07/2022 00:00,2022,5,5728,N42068,"Kitchen, bathroom and electrical upgrades",1233,Contractor Payments,,,,,,,,
GUILDFORD BOROUGH COUNCIL,Modern Homes,1000554,Seville Developments,02/08/2022,30077682,4025,0,Contractor Payments,,Invoice,BACS,No,07/07/2022 00:00,2022,5,5728,N42068,"Kitchen, bathroom and electrical upgrades",1233,Contractor Payments,,,,,,,,
GUILDFORD BOROUGH COUNCIL,Modern Homes,1000554,Seville Developments,02/08/2022,30077682,4025,0,Contractor Payments,,Invoice,BACS,No,07/07/2022 00:00,2022,5,5728,N42068,"Kitchen, bathroom and electrical upgrades",1233,Contractor Payments,,,,,,,,
GUILDFORD BOROUGH COUNCIL,Modern Homes,1000554,Seville Developments,02/08/2022,30077682,4025,0,Contractor Payments,,Invoice,BACS,No,07/07/2022 00:00,2022,5,5728,N42068,"Kitchen, bathroom and electrical upgrades",1233,Contractor Payments,,,,,,,,
GUILDFORD BOROUGH COUNCIL,Renovations,1000554,Seville Developments,02/08/2022,30077683,1222.78,0,Contractor Payments,,Invoice,BACS,No,27/06/2022 00:00,2022,5,5736,N40287,Electrical testing and smoke detectors,1233,Contractor Payments,,,,,,,,
GUILDFORD BOROUGH COUNCIL,Renovations,1000554,Seville Developments,02/08/2022,30077683,1423.47,0,Contractor Payments,,Invoice,BACS,No,27/06/2022 00:00,2022,5,5736,N40287,Electrical testing and smoke detectors,1233,Contractor Payments,,,,,,,,
GUILDFORD BOROUGH COUNCIL,Renovations,1000554,Seville Developments,02/08/2022,30077683,1571.92,0,Contractor Payments,,Invoice,BACS,No,27/06/2022 00:00,2022,5,5736,N40287,Electrical testing and smoke detectors,1233,Contractor Payments,,,,,,,,
GUILDFORD BOROUGH COUNCIL,Renovations,1000554,Seville Developments,02/08/2022,30077683,332.41,0,Contractor Payments,,Invoice,BACS,No,27/06/2022 00:00,2022,5,5736,N40287,Electrical testing and smoke detectors,1233,Contractor Payments,,,,,,,,
GUILDFORD BOROUGH COUNCIL,Renovations,1000554,Seville Developments,02/08/2022,30077683,991.51,0,Contractor Payments,,Invoice,BACS,No,27/06/2022 00:00,2022,5,5736,N40287,Electrical testing and smoke detectors,1233,Contractor Payments,,,,,,,,
GUILDFORD BOROUGH COUNCIL,Renovations,1000554,Seville Developments,02/08/2022,30077683,1300.85,0,Contractor Payments,,Invoice,BACS,No,27/06/2022 00:00,2022,5,5736,N40287,Electrical testing and smoke detectors,1233,Contractor Payments,,,,,,,,
GUILDFORD BOROUGH COUNCIL,Renovations,1000554,Seville Developments,02/08/2022,30077683,1018.44,0,Contractor Payments,,Invoice,BACS,No,27/06/2022 00:00,2022,5,5736,N40287,Electrical testing and smoke detectors,1233,Contractor Payments,,,,,,,,
GUILDFORD BOROUGH COUNCIL,Renovations,1000554,Seville Developments,02/08/2022,30077683,1343.44,0,Contractor Payments,,Invoice,BACS,No,27/06/2022 00:00,2022,5,5736,N40287,Electrical testing and smoke detectors,1233,Contractor Payments,,,,,,,,
GUILDFORD BOROUGH COUNCIL,Renovations,1000554,Seville Developments,02/08/2022,30077683,1201.2,0,Contractor Payments,,Invoice,BACS,No,27/06/2022 00:00,2022,5,5736,N40287,Electrical testing and smoke detectors,1233,Contractor Payments,,,,,,,,
GUILDFORD BOROUGH COUNCIL,Renovations,1000554,Seville Developments,02/08/2022,30077683,1277.82,0,Contractor Payments,,Invoice,BACS,No,27/06/2022 00:00,2022,5,5736,N40287,Electrical testing and smoke detectors,1233,Contractor Payments,,,,,,,,
GUILDFORD BOROUGH COUNCIL,Renovations,1000554,Seville Developments,02/08/2022,30077683,1042.98,0,Contractor Payments,,Invoice,BACS,No,27/06/2022 00:00,2022,5,5736,N40287,Electrical testing and smoke detectors,1233,Contractor Payments,,,,,,,,
GUILDFORD BOROUGH COUNCIL,Renovations,1000554,Seville Developments,02/08/2022,30077683,1487.56,0,Contractor Payments,,Invoice,BACS,No,27/06/2022 00:00,2022,5,5736,N40287,Electrical testing and smoke detectors,1233,Contractor Payments,,,,,,,,
GUILDFORD BOROUGH COUNCIL,Renovations,1000554,Seville Developments,02/08/2022,30077683,1735.77,0,Contractor Payments,,Invoice,BACS,No,27/06/2022 00:00,2022,5,5736,N40287,Electrical testing and smoke detectors,1233,Contractor Payments,,,,,,,,
GUILDFORD BOROUGH COUNCIL,Renovations,1000554,Seville Developments,02/08/2022,30077683,1368.17,0,Contractor Payments,,Invoice,BACS,No,27/06/2022 00:00,2022,5,5736,N40287,Electrical testing and smoke detectors,1233,Contractor Payments,,,,,,,,
GUILDFORD BOROUGH COUNCIL,Renovations,1000554,Seville Developments,02/08/2022,30077683,886.95,0,Contractor Payments,,Invoice,BACS,No,27/06/2022 00:00,2022,5,5736,N40287,Electrical testing and smoke detectors,1233,Contractor Payments,,,,,,,,
GUILDFORD BOROUGH COUNCIL,Renovations,1000554,Seville Developments,02/08/2022,30077683,849.6,0,Contractor Payments,,Invoice,BACS,No,27/06/2022 00:00,2022,5,5736,N40287,Electrical testing and smoke detectors,1233,Contractor Payments,,,,,,,,
GUILDFORD BOROUGH COUNCIL,Renovations,1000554,Seville Developments,02/08/2022,30077683,1248.2,0,Contractor Payments,,Invoice,BACS,No,27/06/2022 00:00,2022,5,5736,N40287,Electrical testing and smoke detectors,1233,Contractor Payments,,,,,,,,
GUILDFORD BOROUGH COUNCIL,Renovations,1000554,Seville Developments,02/08/2022,30077683,1236.23,0,Contractor Payments,,Invoice,BACS,No,27/06/2022 00:00,2022,5,5736,N40287,Electrical testing and smoke detectors,1233,Contractor Payments,,,,,,,,
GUILDFORD BOROUGH COUNCIL,Renovations,1000554,Seville Developments,02/08/2022,30077683,840.32,0,Contractor Payments,,Invoice,BACS,No,27/06/2022 00:00,2022,5,5736,N40287,Electrical testing and smoke detectors,1233,Contractor Payments,,,,,,,,
GUILDFORD BOROUGH COUNCIL,Renovations,1000554,Seville Developments,02/08/2022,30077683,1497.69,0,Contractor Payments,,Invoice,BACS,No,27/06/2022 00:00,2022,5,5736,N40287,Electrical testing and smoke detectors,1233,Contractor Payments,,,,,,,,
GUILDFORD BOROUGH COUNCIL,Renovations,1000554,Seville Developments,02/08/2022,30077683,2040.99,0,Contractor Payments,,Invoice,BACS,No,27/06/2022 00:00,2022,5,5736,N40287,Electrical testing and smoke detectors,1233,Contractor Payments,,,,,,,,
GUILDFORD BOROUGH COUNCIL,Renovations,1000554,Seville Developments,02/08/2022,30077683,1153.66,0,Contractor Payments,,Invoice,BACS,No,27/06/2022 00:00,2022,5,5736,N40287,Electrical testing and smoke detectors,1233,Contractor Payments,,,,,,,,
GUILDFORD BOROUGH COUNCIL,Renovations,1000554,Seville Developments,02/08/2022,30077683,1184.74,0,Contractor Payments,,Invoice,BACS,No,27/06/2022 00:00,2022,5,5736,N40287,Electrical testing and smoke detectors,1233,Contractor Payments,,,,,,,,
GUILDFORD BOROUGH COUNCIL,Renovations,1000554,Seville Developments,02/08/2022,30077683,1286.97,0,Contractor Payments,,Invoice,BACS,No,27/06/2022 00:00,2022,5,5736,N40287,Electrical testing and smoke detectors,1233,Contractor Payments,,,,,,,,
GUILDFORD BOROUGH COUNCIL,Renovations,1000554,Seville Developments,02/08/2022,30077683,1191.43,0,Contractor Payments,,Invoice,BACS,No,27/06/2022 00:00,2022,5,5736,N40287,Electrical testing and smoke detectors,1233,Contractor Payments,,,,,,,,
GUILDFORD BOROUGH COUNCIL,Renovations,1000554,Seville Developments,02/08/2022,30077683,1643.56,0,Contractor Payments,,Invoice,BACS,No,27/06/2022 00:00,2022,5,5736,N40287,Electrical testing and smoke detectors,1233,Contractor Payments,,,,,,,,
GUILDFORD BOROUGH COUNCIL,Renovations,1000554,Seville Developments,02/08/2022,30077683,1065.47,0,Contractor Payments,,Invoice,BACS,No,27/06/2022 00:00,2022,5,5736,N40287,Electrical testing and smoke detectors,1233,Contractor Payments,,,,,,,,
GUILDFORD BOROUGH COUNCIL,Renovations,1000554,Seville Developments,02/08/2022,30077683,1133.72,0,Contractor Payments,,Invoice,BACS,No,27/06/2022 00:00,2022,5,5736,N40287,Electrical testing and smoke detectors,1233,Contractor Payments,,,,,,,,
GUILDFORD BOROUGH COUNCIL,Renovations,1000554,Seville Developments,02/08/2022,30077683,1001.09,0,Contractor Payments,,Invoice,BACS,No,27/06/2022 00:00,2022,5,5736,N40287,Electrical testing and smoke detectors,1233,Contractor Payments,,,,,,,,
GUILDFORD BOROUGH COUNCIL,Renovations,1000554,Seville Developments,02/08/2022,30077683,1539.11,0,Contractor Payments,,Invoice,BACS,No,27/06/2022 00:00,2022,5,5736,N40287,Electrical testing and smoke detectors,1233,Contractor Payments,,,,,,,,
GUILDFORD BOROUGH COUNCIL,Renovations,1000554,Seville Developments,02/08/2022,30077683,251.3,0,Contractor Payments,,Invoice,BACS,No,27/06/2022 00:00,2022,5,5736,N40287,Electrical testing and smoke detectors,1233,Contractor Payments,,,,,,,,
GUILDFORD BOROUGH COUNCIL,Renovations,1000554,Seville Developments,02/08/2022,30077683,974.62,0,Contractor Payments,,Invoice,BACS,No,27/06/2022 00:00,2022,5,5736,N40287,Electrical testing and smoke detectors,1233,Contractor Payments,,,,,,,,
GUILDFORD BOROUGH COUNCIL,Renovations,1000554,Seville Developments,02/08/2022,30077683,991.98,0,Contractor Payments,,Invoice,BACS,No,27/06/2022 00:00,2022,5,5736,N40287,Electrical testing and smoke detectors,1233,Contractor Payments,,,,,,,,
GUILDFORD BOROUGH COUNCIL,Renovations,1000554,Seville Developments,02/08/2022,30077683,1140.76,0,Contractor Payments,,Invoice,BACS,No,27/06/2022 00:00,2022,5,5736,N40287,Electrical testing and smoke detectors,1233,Contractor Payments,,,,,,,,
GUILDFORD BOROUGH COUNCIL,Renovations,1000554,Seville Developments,02/08/2022,30077683,1005,0,Contractor Payments,,Invoice,BACS,No,27/06/2022 00:00,2022,5,5736,N40287,Electrical testing and smoke detectors,1233,Contractor Payments,,,,,,,,
GUILDFORD BOROUGH COUNCIL,Renovations,1000554,Seville Developments,02/08/2022,30077683,1163.15,0,Contractor Payments,,Invoice,BACS,No,27/06/2022 00:00,2022,5,5736,N40287,Electrical testing and smoke detectors,1233,Contractor Payments,,,,,,,,
GUILDFORD BOROUGH COUNCIL,Renovations,1000554,Seville Developments,02/08/2022,30077683,760.78,0,Contractor Payments,,Invoice,BACS,No,27/06/2022 00:00,2022,5,5736,N40287,Electrical testing and smoke detectors,1233,Contractor Payments,,,,,,,,
GUILDFORD BOROUGH COUNCIL,Renovations,1000554,Seville Developments,02/08/2022,30077683,1193.05,0,Contractor Payments,,Invoice,BACS,No,27/06/2022 00:00,2022,5,5736,N40287,Electrical testing and smoke detectors,1233,Contractor Payments,,,,,,,,
GUILDFORD BOROUGH COUNCIL,Renovations,1000554,Seville Developments,02/08/2022,30077683,3550,0,Contractor Payments,,Invoice,BACS,No,27/06/2022 00:00,2022,5,5736,N40287,Electrical testing and smoke detectors,1233,Contractor Payments,,,,,,,,
GUILDFORD BOROUGH COUNCIL,Renovations,1000554,Seville Developments,02/08/2022,30077683,3550,0,Contractor Payments,,Invoice,BACS,No,27/06/2022 00:00,2022,5,5736,N40287,Electrical testing and smoke detectors,1233,Contractor Payments,,,,,,,,
GUILDFORD BOROUGH COUNCIL,Renovations,1000554,Seville Developments,02/08/2022,30077683,3550,0,Contractor Payments,,Invoice,BACS,No,27/06/2022 00:00,2022,5,5736,N40287,Electrical testing and smoke detectors,1233,Contractor Payments,,,,,,,,
GUILDFORD BOROUGH COUNCIL,Renovations,1000554,Seville Developments,02/08/2022,30077683,434.7,0,Contractor Payments,,Invoice,BACS,No,27/06/2022 00:00,2022,5,5736,N40287,Electrical testing and smoke detectors,1233,Contractor Payments,,,,,,,,
GUILDFORD BOROUGH COUNCIL,Renovations,1000554,Seville Developments,02/08/2022,30077683,1420.33,0,Contractor Payments,,Invoice,BACS,No,27/06/2022 00:00,2022,5,5736,N40287,Electrical testing and smoke detectors,1233,Contractor Payments,,,,,,,,
GUILDFORD BOROUGH COUNCIL,Renovations,1000554,Seville Developments,02/08/2022,30077683,1663.93,0,Contractor Payments,,Invoice,BACS,No,27/06/2022 00:00,2022,5,5736,N40287,Electrical testing and smoke detectors,1233,Contractor Payments,,,,,,,,
GUILDFORD BOROUGH COUNCIL,Renovations,1000554,Seville Developments,02/08/2022,30077683,1456.46,0,Contractor Payments,,Invoice,BACS,No,27/06/2022 00:00,2022,5,5736,N40287,Electrical testing and smoke detectors,1233,Contractor Payments,,,,,,,,
GUILDFORD BOROUGH COUNCIL,Renovations,1000554,Seville Developments,02/08/2022,30077683,984.25,0,Contractor Payments,,Invoice,BACS,No,27/06/2022 00:00,2022,5,5736,N40287,Electrical testing and smoke detectors,1233,Contractor Payments,,,,,,,,
GUILDFORD BOROUGH COUNCIL,Renovations,1000554,Seville Developments,02/08/2022,30077683,684.46,0,Contractor Payments,,Invoice,BACS,No,27/06/2022 00:00,2022,5,5736,N40287,Electrical testing and smoke detectors,1233,Contractor Payments,,,,,,,,
GUILDFORD BOROUGH COUNCIL,Renovations,1000554,Seville Developments,02/08/2022,30077683,814.17,0,Contractor Payments,,Invoice,BACS,No,27/06/2022 00:00,2022,5,5736,N40287,Electrical testing and smoke detectors,1233,Contractor Payments,,,,,,,,
GUILDFORD BOROUGH COUNCIL,Renovations,1000554,Seville Developments,02/08/2022,30077683,1072.23,0,Contractor Payments,,Invoice,BACS,No,27/06/2022 00:00,2022,5,5736,N40287,Electrical testing and smoke detectors,1233,Contractor Payments,,,,,,,,
GUILDFORD BOROUGH COUNCIL,Renovations,1000554,Seville Developments,02/08/2022,30077683,1229.28,0,Contractor Payments,,Invoice,BACS,No,27/06/2022 00:00,2022,5,5736,N40287,Electrical testing and smoke detectors,1233,Contractor Payments,,,,,,,,
GUILDFORD BOROUGH COUNCIL,Renovations,1000554,Seville Developments,02/08/2022,30077683,1637.84,0,Contractor Payments,,Invoice,BACS,No,27/06/2022 00:00,2022,5,5736,N40287,Electrical testing and smoke detectors,1233,Contractor Payments,,,,,,,,
GUILDFORD BOROUGH COUNCIL,Renovations,1000554,Seville Developments,02/08/2022,30077683,418.04,0,Contractor Payments,,Invoice,BACS,No,27/06/2022 00:00,2022,5,5736,N40287,Electrical testing and smoke detectors,1233,Contractor Payments,,,,,,,,
GUILDFORD BOROUGH COUNCIL,Renovations,1000554,Seville Developments,02/08/2022,30077683,1025.93,0,Contractor Payments,,Invoice,BACS,No,27/06/2022 00:00,2022,5,5736,N40287,Electrical testing and smoke detectors,1233,Contractor Payments,,,,,,,,
GUILDFORD BOROUGH COUNCIL,Renovations,1000554,Seville Developments,02/08/2022,30077683,718.57,0,Contractor Payments,,Invoice,BACS,No,27/06/2022 00:00,2022,5,5736,N40287,Electrical testing and smoke detectors,1233,Contractor Payments,,,,,,,,
GUILDFORD BOROUGH COUNCIL,Renovations,1000554,Seville Developments,02/08/2022,30077683,634.14,0,Contractor Payments,,Invoice,BACS,No,27/06/2022 00:00,2022,5,5736,N40287,Electrical testing and smoke detectors,1233,Contractor Payments,,,,,,,,
GUILDFORD BOROUGH COUNCIL,Renovations,1000554,Seville Developments,02/08/2022,30077683,508.1,0,Contractor Payments,,Invoice,BACS,No,27/06/2022 00:00,2022,5,5736,N40287,Electrical testing and smoke detectors,1233,Contractor Payments,,,,,,,,
GUILDFORD BOROUGH COUNCIL,Renovations,1000554,Seville Developments,02/08/2022,30077683,1200.6,0,Contractor Payments,,Invoice,BACS,No,27/06/2022 00:00,2022,5,5736,N40287,Electrical testing and smoke detectors,1233,Contractor Payments,,,,,,,,
GUILDFORD BOROUGH COUNCIL,Renovations,1000554,Seville Developments,02/08/2022,30077683,1148.83,0,Contractor Payments,,Invoice,BACS,No,27/06/2022 00:00,2022,5,5736,N40287,Electrical testing and smoke detectors,1233,Contractor Payments,,,,,,,,
GUILDFORD BOROUGH COUNCIL,Renovations,1000554,Seville Developments,02/08/2022,30077683,729.47,0,Contractor Payments,,Invoice,BACS,No,27/06/2022 00:00,2022,5,5736,N40287,Electrical testing and smoke detectors,1233,Contractor Payments,,,,,,,,
GUILDFORD BOROUGH COUNCIL,Renovations,1000554,Seville Developments,02/08/2022,30077683,1171.76,0,Contractor Payments,,Invoice,BACS,No,27/06/2022 00:00,2022,5,5736,N40287,Electrical testing and smoke detectors,1233,Contractor Payments,,,,,,,,
GUILDFORD BOROUGH COUNCIL,Renovations,1000554,Seville Developments,02/08/2022,30077684,30236.75,0,Contractor Payments,,Invoice,BACS,No,27/07/2022 00:00,2022,5,5765,N40292,Fire protection works,1233,Contractor Payments,,,,,,,,
GUILDFORD BOROUGH COUNCIL,Renovations,1000554,Seville Developments,23/08/2022,30079858,19875,0,Contractor Payments,,Invoice,BACS,No,19/08/2022 00:00,2022,5,5846,N40287,Electrical testing and smoke detectors,1233,Contractor Payments,,,,,,,,
GUILDFORD BOROUGH COUNCIL,Modern Homes,1000554,Seville Developments,23/08/2022,30079855,4025,0,Contractor Payments,,Invoice,BACS,No,02/08/2022 00:00,2022,5,5776,N42068,"Kitchen, bathroom and electrical upgrades",1233,Contractor Payments,,,,,,,,
GUILDFORD BOROUGH COUNCIL,Modern Homes,1000554,Seville Developments,23/08/2022,30079855,4025,0,Contractor Payments,,Invoice,BACS,No,02/08/2022 00:00,2022,5,5776,N42068,"Kitchen, bathroom and electrical upgrades",1233,Contractor Payments,,,,,,,,
GUILDFORD BOROUGH COUNCIL,Modern Homes,1000554,Seville Developments,23/08/2022,30079855,4025,0,Contractor Payments,,Invoice,BACS,No,02/08/2022 00:00,2022,5,5776,N42068,"Kitchen, bathroom and electrical upgrades",1233,Contractor Payments,,,,,,,,
GUILDFORD BOROUGH COUNCIL,Modern Homes,1000554,Seville Developments,23/08/2022,30079855,4025,0,Contractor Payments,,Invoice,BACS,No,02/08/2022 00:00,2022,5,5776,N42068,"Kitchen, bathroom and electrical upgrades",1233,Contractor Payments,,,,,,,,
GUILDFORD BOROUGH COUNCIL,Modern Homes,1000554,Seville Developments,23/08/2022,30079855,1251.25,0,Contractor Payments,,Invoice,BACS,No,02/08/2022 00:00,2022,5,5776,N42068,"Kitchen, bathroom and electrical upgrades",1233,Contractor Payments,,,,,,,,
GUILDFORD BOROUGH COUNCIL,Modern Homes,1000554,Seville Developments,23/08/2022,30079855,4025,0,Contractor Payments,,Invoice,BACS,No,02/08/2022 00:00,2022,5,5776,N42068,"Kitchen, bathroom and electrical upgrades",1233,Contractor Payments,,,,,,,,
GUILDFORD BOROUGH COUNCIL,Modern Homes,1000554,Seville Developments,23/08/2022,30079856,4025,0,Contractor Payments,,Invoice,BACS,No,02/08/2022 00:00,2022,5,5777,N42068,"Kitchen, bathroom and electrical upgrades",1233,Contractor Payments,,,,,,,,
GUILDFORD BOROUGH COUNCIL,Modern Homes,1000554,Seville Developments,23/08/2022,30079856,4025,0,Contractor Payments,,Invoice,BACS,No,02/08/2022 00:00,2022,5,5777,N42068,"Kitchen, bathroom and electrical upgrades",1233,Contractor Payments,,,,,,,,
GUILDFORD BOROUGH COUNCIL,Modern Homes,1000554,Seville Developments,23/08/2022,30079856,4025,0,Contractor Payments,,Invoice,BACS,No,02/08/2022 00:00,2022,5,5777,N42068,"Kitchen, bathroom and electrical upgrades",1233,Contractor Payments,,,,,,,,
GUILDFORD BOROUGH COUNCIL,Modern Homes,1000554,Seville Developments,23/08/2022,30079856,4025,0,Contractor Payments,,Invoice,BACS,No,02/08/2022 00:00,2022,5,5777,N42068,"Kitchen, bathroom and electrical upgrades",1233,Contractor Payments,,,,,,,,
GUILDFORD BOROUGH COUNCIL,Modern Homes,1000554,Seville Developments,23/08/2022,30079856,4025,0,Contractor Payments,,Invoice,BACS,No,02/08/2022 00:00,2022,5,5777,N42068,"Kitchen, bathroom and electrical upgrades",1233,Contractor Payments,,,,,,,,
GUILDFORD BOROUGH COUNCIL,Modern Homes,1000554,Seville Developments,23/08/2022,30079856,4025,0,Contractor Payments,,Invoice,BACS,No,02/08/2022 00:00,2022,5,5777,N42068,"Kitchen, bathroom and electrical upgrades",1233,Contractor Payments,,,,,,,,
GUILDFORD BOROUGH COUNCIL,Modern Homes,1000554,Seville Developments,23/08/2022,30079856,4025,0,Contractor Payments,,Invoice,BACS,No,02/08/2022 00:00,2022,5,5777,N42068,"Kitchen, bathroom and electrical upgrades",1233,Contractor Payments,,,,,,,,
GUILDFORD BOROUGH COUNCIL,Modern Homes,1000554,Seville Developments,23/08/2022,30079856,4025,0,Contractor Payments,,Invoice,BACS,No,02/08/2022 00:00,2022,5,5777,N42068,"Kitchen, bathroom and electrical upgrades",1233,Contractor Payments,,,,,,,,
GUILDFORD BOROUGH COUNCIL,Modern Homes,1000554,Seville Developments,23/08/2022,30079856,4025,0,Contractor Payments,,Invoice,BACS,No,02/08/2022 00:00,2022,5,5777,N42068,"Kitchen, bathroom and electrical upgrades",1233,Contractor Payments,,,,,,,,
GUILDFORD BOROUGH COUNCIL,Modern Homes,1000554,Seville Developments,23/08/2022,30079856,4025,0,Contractor Payments,,Invoice,BACS,No,02/08/2022 00:00,2022,5,5777,N42068,"Kitchen, bathroom and electrical upgrades",1233,Contractor Payments,,,,,,,,
GUILDFORD BOROUGH COUNCIL,Modern Homes,1000554,Seville Developments,07/07/2022,30074664,1263.36,0,Contractor Payments,,Invoice,BACS,No,30/05/2022 00:00,2022,4,5713,N42068,"Kitchen, bathroom and electrical upgrades",1233,Contractor Payments,,,,,,,,
GUILDFORD BOROUGH COUNCIL,Renovations,1000554,Seville Developments,07/07/2022,30074664,1335.58,0,Contractor Payments,,Invoice,BACS,No,30/05/2022 00:00,2022,4,5713,N40287,Electrical testing and smoke detectors,1233,Contractor Payments,,,,,,,,
GUILDFORD BOROUGH COUNCIL,Renovations,1000554,Seville Developments,07/07/2022,30074664,1691.23,0,Contractor Payments,,Invoice,BACS,No,30/05/2022 00:00,2022,4,5713,N40287,Electrical testing and smoke detectors,1233,Contractor Payments,,,,,,,,
GUILDFORD BOROUGH COUNCIL,Renovations,1000554,Seville Developments,07/07/2022,30074664,1240.32,0,Contractor Payments,,Invoice,BACS,No,30/05/2022 00:00,2022,4,5713,N40287,Electrical testing and smoke detectors,1233,Contractor Payments,,,,,,,,
GUILDFORD BOROUGH COUNCIL,Renovations,1000554,Seville Developments,07/07/2022,30074664,1105.31,0,Contractor Payments,,Invoice,BACS,No,30/05/2022 00:00,2022,4,5713,N40287,Electrical testing and smoke detectors,1233,Contractor Payments,,,,,,,,
GUILDFORD BOROUGH COUNCIL,Renovations,1000554,Seville Developments,07/07/2022,30074664,697.07,0,Contractor Payments,,Invoice,BACS,No,30/05/2022 00:00,2022,4,5713,N40287,Electrical testing and smoke detectors,1233,Contractor Payments,,,,,,,,
GUILDFORD BOROUGH COUNCIL,Renovations,1000554,Seville Developments,07/07/2022,30074664,314.02,0,Contractor Payments,,Invoice,BACS,No,30/05/2022 00:00,2022,4,5713,N40287,Electrical testing and smoke detectors,1233,Contractor Payments,,,,,,,,
GUILDFORD BOROUGH COUNCIL,Renovations,1000554,Seville Developments,07/07/2022,30074664,598.24,0,Contractor Payments,,Invoice,BACS,No,30/05/2022 00:00,2022,4,5713,N40287,Electrical testing and smoke detectors,1233,Contractor Payments,,,,,,,,
GUILDFORD BOROUGH COUNCIL,Renovations,1000554,Seville Developments,07/07/2022,30074664,900.96,0,Contractor Payments,,Invoice,BACS,No,30/05/2022 00:00,2022,4,5713,N40287,Electrical testing and smoke detectors,1233,Contractor Payments,,,,,,,,
GUILDFORD BOROUGH COUNCIL,Renovations,1000554,Seville Developments,07/07/2022,30074664,571.32,0,Contractor Payments,,Invoice,BACS,No,30/05/2022 00:00,2022,4,5713,N40287,Electrical testing and smoke detectors,1233,Contractor Payments,,,,,,,,
GUILDFORD BOROUGH COUNCIL,Renovations,1000554,Seville Developments,07/07/2022,30074664,1318.98,0,Contractor Payments,,Invoice,BACS,No,30/05/2022 00:00,2022,4,5713,N40287,Electrical testing and smoke detectors,1233,Contractor Payments,,,,,,,,
GUILDFORD BOROUGH COUNCIL,Renovations,1000554,Seville Developments,07/07/2022,30074664,873.54,0,Contractor Payments,,Invoice,BACS,No,30/05/2022 00:00,2022,4,5713,N40287,Electrical testing and smoke detectors,1233,Contractor Payments,,,,,,,,
GUILDFORD BOROUGH COUNCIL,Renovations,1000554,Seville Developments,07/07/2022,30074664,1166.6,0,Contractor Payments,,Invoice,BACS,No,30/05/2022 00:00,2022,4,5713,N40287,Electrical testing and smoke detectors,1233,Contractor Payments,,,,,,,,
GUILDFORD BOROUGH COUNCIL,Renovations,1000554,Seville Developments,07/07/2022,30074664,1147.41,0,Contractor Payments,,Invoice,BACS,No,30/05/2022 00:00,2022,4,5713,N40287,Electrical testing and smoke detectors,1233,Contractor Payments,,,,,,,,
GUILDFORD BOROUGH COUNCIL,Renovations,1000554,Seville Developments,07/07/2022,30074664,1160.84,0,Contractor Payments,,Invoice,BACS,No,30/05/2022 00:00,2022,4,5713,N40287,Electrical testing and smoke detectors,1233,Contractor Payments,,,,,,,,
GUILDFORD BOROUGH COUNCIL,Renovations,1000554,Seville Developments,07/07/2022,30074664,1124.42,0,Contractor Payments,,Invoice,BACS,No,30/05/2022 00:00,2022,4,5713,N40287,Electrical testing and smoke detectors,1233,Contractor Payments,,,,,,,,
GUILDFORD BOROUGH COUNCIL,Renovations,1000554,Seville Developments,07/07/2022,30074664,1403.06,0,Contractor Payments,,Invoice,BACS,No,30/05/2022 00:00,2022,4,5713,N40287,Electrical testing and smoke detectors,1233,Contractor Payments,,,,,,,,
GUILDFORD BOROUGH COUNCIL,Renovations,1000554,Seville Developments,07/07/2022,30074664,1755.03,0,Contractor Payments,,Invoice,BACS,No,30/05/2022 00:00,2022,4,5713,N40287,Electrical testing and smoke detectors,1233,Contractor Payments,,,,,,,,
GUILDFORD BOROUGH COUNCIL,Renovations,1000554,Seville Developments,07/07/2022,30074664,691.02,0,Contractor Payments,,Invoice,BACS,No,30/05/2022 00:00,2022,4,5713,N40287,Electrical testing and smoke detectors,1233,Contractor Payments,,,,,,,,
GUILDFORD BOROUGH COUNCIL,Renovations,1000554,Seville Developments,07/07/2022,30074664,1029.16,0,Contractor Payments,,Invoice,BACS,No,30/05/2022 00:00,2022,4,5713,N40287,Electrical testing and smoke detectors,1233,Contractor Payments,,,,,,,,
GUILDFORD BOROUGH COUNCIL,Renovations,1000554,Seville Developments,07/07/2022,30074664,1149.47,0,Contractor Payments,,Invoice,BACS,No,30/05/2022 00:00,2022,4,5713,N40287,Electrical testing and smoke detectors,1233,Contractor Payments,,,,,,,,
GUILDFORD BOROUGH COUNCIL,Renovations,1000554,Seville Developments,07/07/2022,30074664,1070.89,0,Contractor Payments,,Invoice,BACS,No,30/05/2022 00:00,2022,4,5713,N40287,Electrical testing and smoke detectors,1233,Contractor Payments,,,,,,,,
GUILDFORD BOROUGH COUNCIL,Renovations,1000554,Seville Developments,07/07/2022,30074664,1395.1,0,Contractor Payments,,Invoice,BACS,No,30/05/2022 00:00,2022,4,5713,N40287,Electrical testing and smoke detectors,1233,Contractor Payments,,,,,,,,
GUILDFORD BOROUGH COUNCIL,Renovations,1000554,Seville Developments,07/07/2022,30074664,620.62,0,Contractor Payments,,Invoice,BACS,No,30/05/2022 00:00,2022,4,5713,N40287,Electrical testing and smoke detectors,1233,Contractor Payments,,,,,,,,
GUILDFORD BOROUGH COUNCIL,Renovations,1000554,Seville Developments,07/07/2022,30074664,1823.38,0,Contractor Payments,,Invoice,BACS,No,30/05/2022 00:00,2022,4,5713,N40287,Electrical testing and smoke detectors,1233,Contractor Payments,,,,,,,,
GUILDFORD BOROUGH COUNCIL,Renovations,1000554,Seville Developments,07/07/2022,30074664,305.96,0,Contractor Payments,,Invoice,BACS,No,30/05/2022 00:00,2022,4,5713,N40287,Electrical testing and smoke detectors,1233,Contractor Payments,,,,,,,,
GUILDFORD BOROUGH COUNCIL,Renovations,1000554,Seville Developments,07/07/2022,30074664,1646.73,0,Contractor Payments,,Invoice,BACS,No,30/05/2022 00:00,2022,4,5713,N40287,Electrical testing and smoke detectors,1233,Contractor Payments,,,,,,,,
GUILDFORD BOROUGH COUNCIL,Renovations,1000554,Seville Developments,07/07/2022,30074664,1428.98,0,Contractor Payments,,Invoice,BACS,No,30/05/2022 00:00,2022,4,5713,N40287,Electrical testing and smoke detectors,1233,Contractor Payments,,,,,,,,
GUILDFORD BOROUGH COUNCIL,Renovations,1000554,Seville Developments,07/07/2022,30074664,1554.14,0,Contractor Payments,,Invoice,BACS,No,30/05/2022 00:00,2022,4,5713,N40287,Electrical testing and smoke detectors,1233,Contractor Payments,,,,,,,,
GUILDFORD BOROUGH COUNCIL,Renovations,1000554,Seville Developments,07/07/2022,30074664,1018.98,0,Contractor Payments,,Invoice,BACS,No,30/05/2022 00:00,2022,4,5713,N40287,Electrical testing and smoke detectors,1233,Contractor Payments,,,,,,,,
GUILDFORD BOROUGH COUNCIL,Renovations,1000554,Seville Developments,07/07/2022,30074664,938.5,0,Contractor Payments,,Invoice,BACS,No,30/05/2022 00:00,2022,4,5713,N40287,Electrical testing and smoke detectors,1233,Contractor Payments,,,,,,,,
GUILDFORD BOROUGH COUNCIL,Renovations,1000554,Seville Developments,07/07/2022,30074664,1115.15,0,Contractor Payments,,Invoice,BACS,No,30/05/2022 00:00,2022,4,5713,N40287,Electrical testing and smoke detectors,1233,Contractor Payments,,,,,,,,
GUILDFORD BOROUGH COUNCIL,Renovations,1000554,Seville Developments,07/07/2022,30074664,1346.3,0,Contractor Payments,,Invoice,BACS,No,30/05/2022 00:00,2022,4,5713,N40287,Electrical testing and smoke detectors,1233,Contractor Payments,,,,,,,,
GUILDFORD BOROUGH COUNCIL,Renovations,1000554,Seville Developments,07/07/2022,30074664,1369.06,0,Contractor Payments,,Invoice,BACS,No,30/05/2022 00:00,2022,4,5713,N40287,Electrical testing and smoke detectors,1233,Contractor Payments,,,,,,,,
GUILDFORD BOROUGH COUNCIL,Renovations,1000554,Seville Developments,07/07/2022,30074664,1101.52,0,Contractor Payments,,Invoice,BACS,No,30/05/2022 00:00,2022,4,5713,N40287,Electrical testing and smoke detectors,1233,Contractor Payments,,,,,,,,
GUILDFORD BOROUGH COUNCIL,Renovations,1000554,Seville Developments,07/07/2022,30074664,657.72,0,Contractor Payments,,Invoice,BACS,No,30/05/2022 00:00,2022,4,5713,N40287,Electrical testing and smoke detectors,1233,Contractor Payments,,,,,,,,
GUILDFORD BOROUGH COUNCIL,Renovations,1000554,Seville Developments,07/07/2022,30074664,833.24,0,Contractor Payments,,Invoice,BACS,No,30/05/2022 00:00,2022,4,5713,N40287,Electrical testing and smoke detectors,1233,Contractor Payments,,,,,,,,
GUILDFORD BOROUGH COUNCIL,Modern Homes,1000554,Seville Developments,07/07/2022,30074664,851.31,0,Contractor Payments,,Invoice,BACS,No,30/05/2022 00:00,2022,4,5713,N42068,"Kitchen, bathroom and electrical upgrades",1233,Contractor Payments,,,,,,,,
GUILDFORD BOROUGH COUNCIL,Modern Homes,1000554,Seville Developments,07/07/2022,30074664,1311.97,0,Contractor Payments,,Invoice,BACS,No,30/05/2022 00:00,2022,4,5713,N42068,"Kitchen, bathroom and electrical upgrades",1233,Contractor Payments,,,,,,,,
GUILDFORD BOROUGH COUNCIL,Renovations,1000554,Seville Developments,07/07/2022,30074664,1349.4,0,Contractor Payments,,Invoice,BACS,No,30/05/2022 00:00,2022,4,5713,N40287,Electrical testing and smoke detectors,1233,Contractor Payments,,,,,,,,
GUILDFORD BOROUGH COUNCIL,Renovations,1000554,Seville Developments,07/07/2022,30074664,1096.82,0,Contractor Payments,,Invoice,BACS,No,30/05/2022 00:00,2022,4,5713,N40287,Electrical testing and smoke detectors,1233,Contractor Payments,,,,,,,,
GUILDFORD BOROUGH COUNCIL,Renovations,1000554,Seville Developments,07/07/2022,30074664,1016.06,0,Contractor Payments,,Invoice,BACS,No,30/05/2022 00:00,2022,4,5713,N40287,Electrical testing and smoke detectors,1233,Contractor Payments,,,,,,,,
GUILDFORD BOROUGH COUNCIL,Renovations,1000554,Seville Developments,07/07/2022,30074664,423.27,0,Contractor Payments,,Invoice,BACS,No,30/05/2022 00:00,2022,4,5713,N40287,Electrical testing and smoke detectors,1233,Contractor Payments,,,,,,,,
GUILDFORD BOROUGH COUNCIL,Renovations,1000554,Seville Developments,07/07/2022,30074664,638.86,0,Contractor Payments,,Invoice,BACS,No,30/05/2022 00:00,2022,4,5713,N40287,Electrical testing and smoke detectors,1233,Contractor Payments,,,,,,,,
GUILDFORD BOROUGH COUNCIL,Renovations,1000554,Seville Developments,07/07/2022,30074664,344.77,0,Contractor Payments,,Invoice,BACS,No,30/05/2022 00:00,2022,4,5713,N40287,Electrical testing and smoke detectors,1233,Contractor Payments,,,,,,,,
GUILDFORD BOROUGH COUNCIL,Renovations,1000554,Seville Developments,07/07/2022,30074664,1016.52,0,Contractor Payments,,Invoice,BACS,No,30/05/2022 00:00,2022,4,5713,N40287,Electrical testing and smoke detectors,1233,Contractor Payments,,,,,,,,
GUILDFORD BOROUGH COUNCIL,Renovations,1000554,Seville Developments,07/07/2022,30074664,542.69,0,Contractor Payments,,Invoice,BACS,No,30/05/2022 00:00,2022,4,5713,N40287,Electrical testing and smoke detectors,1233,Contractor Payments,,,,,,,,
GUILDFORD BOROUGH COUNCIL,Modern Homes,1000554,Seville Developments,07/07/2022,30074664,1043.22,0,Contractor Payments,,Invoice,BACS,No,30/05/2022 00:00,2022,4,5713,N42068,"Kitchen, bathroom and electrical upgrades",1233,Contractor Payments,,,,,,,,
GUILDFORD BOROUGH COUNCIL,Modern Homes,1000554,Seville Developments,07/07/2022,30074664,432.89,0,Contractor Payments,,Invoice,BACS,No,30/05/2022 00:00,2022,4,5713,N42068,"Kitchen, bathroom and electrical upgrades",1233,Contractor Payments,,,,,,,,
GUILDFORD BOROUGH COUNCIL,Modern Homes,1000554,Seville Developments,07/07/2022,30074664,1627.55,0,Contractor Payments,,Invoice,BACS,No,30/05/2022 00:00,2022,4,5713,N42068,"Kitchen, bathroom and electrical upgrades",1233,Contractor Payments,,,,,,,,
GUILDFORD BOROUGH COUNCIL,Renovations,1000554,Seville Developments,07/07/2022,30074664,1356.29,0,Contractor Payments,,Invoice,BACS,No,30/05/2022 00:00,2022,4,5713,N40287,Electrical testing and smoke detectors,1233,Contractor Payments,,,,,,,,
GUILDFORD BOROUGH COUNCIL,Renovations,1000554,Seville Developments,07/07/2022,30074664,1377.07,0,Contractor Payments,,Invoice,BACS,No,30/05/2022 00:00,2022,4,5713,N40287,Electrical testing and smoke detectors,1233,Contractor Payments,,,,,,,,
GUILDFORD BOROUGH COUNCIL,Renovations,1000554,Seville Developments,07/07/2022,30074664,1475.53,0,Contractor Payments,,Invoice,BACS,No,30/05/2022 00:00,2022,4,5713,N40287,Electrical testing and smoke detectors,1233,Contractor Payments,,,,,,,,
GUILDFORD BOROUGH COUNCIL,Renovations,1000554,Seville Developments,07/07/2022,30074664,1678.42,0,Contractor Payments,,Invoice,BACS,No,30/05/2022 00:00,2022,4,5713,N40287,Electrical testing and smoke detectors,1233,Contractor Payments,,,,,,,,
GUILDFORD BOROUGH COUNCIL,Renovations,1000554,Seville Developments,07/07/2022,30074664,1542.11,0,Contractor Payments,,Invoice,BACS,No,30/05/2022 00:00,2022,4,5713,N40287,Electrical testing and smoke detectors,1233,Contractor Payments,,,,,,,,
GUILDFORD BOROUGH COUNCIL,Renovations,1000554,Seville Developments,07/07/2022,30074664,943.64,0,Contractor Payments,,Invoice,BACS,No,30/05/2022 00:00,2022,4,5713,N40287,Electrical testing and smoke detectors,1233,Contractor Payments,,,,,,,,
GUILDFORD BOROUGH COUNCIL,Renovations,1000554,Seville Developments,07/07/2022,30074664,1935.01,0,Contractor Payments,,Invoice,BACS,No,30/05/2022 00:00,2022,4,5713,N40287,Electrical testing and smoke detectors,1233,Contractor Payments,,,,,,,,
GUILDFORD BOROUGH COUNCIL,Renovations,1000554,Seville Developments,07/07/2022,30074664,1459.86,0,Contractor Payments,,Invoice,BACS,No,30/05/2022 00:00,2022,4,5713,N40287,Electrical testing and smoke detectors,1233,Contractor Payments,,,,,,,,
GUILDFORD BOROUGH COUNCIL,Renovations,1000554,Seville Developments,07/07/2022,30074664,1489.91,0,Contractor Payments,,Invoice,BACS,No,30/05/2022 00:00,2022,4,5713,N40287,Electrical testing and smoke detectors,1233,Contractor Payments,,,,,,,,
GUILDFORD BOROUGH COUNCIL,Renovations,1000554,Seville Developments,07/07/2022,30074664,798.95,0,Contractor Payments,,Invoice,BACS,No,30/05/2022 00:00,2022,4,5713,N40287,Electrical testing and smoke detectors,1233,Contractor Payments,,,,,,,,
GUILDFORD BOROUGH COUNCIL,Renovations,1000554,Seville Developments,07/07/2022,30074664,1196.13,0,Contractor Payments,,Invoice,BACS,No,30/05/2022 00:00,2022,4,5713,N40287,Electrical testing and smoke detectors,1233,Contractor Payments,,,,,,,,
GUILDFORD BOROUGH COUNCIL,Renovations,1000554,Seville Developments,07/07/2022,30074664,1124.16,0,Contractor Payments,,Invoice,BACS,No,30/05/2022 00:00,2022,4,5713,N40287,Electrical testing and smoke detectors,1233,Contractor Payments,,,,,,,,
GUILDFORD BOROUGH COUNCIL,Renovations,1000554,Seville Developments,07/07/2022,30074664,875.54,0,Contractor Payments,,Invoice,BACS,No,30/05/2022 00:00,2022,4,5713,N40287,Electrical testing and smoke detectors,1233,Contractor Payments,,,,,,,,
GUILDFORD BOROUGH COUNCIL,Renovations,1000554,Seville Developments,07/07/2022,30074664,1051.79,0,Contractor Payments,,Invoice,BACS,No,30/05/2022 00:00,2022,4,5713,N40287,Electrical testing and smoke detectors,1233,Contractor Payments,,,,,,,,
GUILDFORD BOROUGH COUNCIL,Renovations,1000554,Seville Developments,07/07/2022,30074664,1050.09,0,Contractor Payments,,Invoice,BACS,No,30/05/2022 00:00,2022,4,5713,N40287,Electrical testing and smoke detectors,1233,Contractor Payments,,,,,,,,
GUILDFORD BOROUGH COUNCIL,Renovations,1000554,Seville Developments,07/07/2022,30074664,1055.63,0,Contractor Payments,,Invoice,BACS,No,30/05/2022 00:00,2022,4,5713,N40287,Electrical testing and smoke detectors,1233,Contractor Payments,,,,,,,,
GUILDFORD BOROUGH COUNCIL,Renovations,1000554,Seville Developments,07/07/2022,30074664,1116.64,0,Contractor Payments,,Invoice,BACS,No,30/05/2022 00:00,2022,4,5713,N40287,Electrical testing and smoke detectors,1233,Contractor Payments,,,,,,,,
GUILDFORD BOROUGH COUNCIL,Renovations,1000554,Seville Developments,07/07/2022,30074664,1042.34,0,Contractor Payments,,Invoice,BACS,No,30/05/2022 00:00,2022,4,5713,N40287,Electrical testing and smoke detectors,1233,Contractor Payments,,,,,,,,
GUILDFORD BOROUGH COUNCIL,Renovations,1000554,Seville Developments,07/07/2022,30074664,1162.75,0,Contractor Payments,,Invoice,BACS,No,30/05/2022 00:00,2022,4,5713,N40287,Electrical testing and smoke detectors,1233,Contractor Payments,,,,,,,,
GUILDFORD BOROUGH COUNCIL,Renovations,1000554,Seville Developments,07/07/2022,30074664,1164.58,0,Contractor Payments,,Invoice,BACS,No,30/05/2022 00:00,2022,4,5713,N40287,Electrical testing and smoke detectors,1233,Contractor Payments,,,,,,,,
GUILDFORD BOROUGH COUNCIL,Renovations,1000554,Seville Developments,07/07/2022,30074664,1068.1,0,Contractor Payments,,Invoice,BACS,No,30/05/2022 00:00,2022,4,5713,N40287,Electrical testing and smoke detectors,1233,Contractor Payments,,,,,,,,
GUILDFORD BOROUGH COUNCIL,Renovations,1000554,Seville Developments,07/07/2022,30074664,1363.52,0,Contractor Payments,,Invoice,BACS,No,30/05/2022 00:00,2022,4,5713,N40287,Electrical testing and smoke detectors,1233,Contractor Payments,,,,,,,,
GUILDFORD BOROUGH COUNCIL,Renovations,1000554,Seville Developments,07/07/2022,30074664,1744.26,0,Contractor Payments,,Invoice,BACS,No,30/05/2022 00:00,2022,4,5713,N40287,Electrical testing and smoke detectors,1233,Contractor Payments,,,,,,,,
GUILDFORD BOROUGH COUNCIL,Renovations,1000554,Seville Developments,07/07/2022,30074664,1547.3,0,Contractor Payments,,Invoice,BACS,No,30/05/2022 00:00,2022,4,5713,N40287,Electrical testing and smoke detectors,1233,Contractor Payments,,,,,,,,
GUILDFORD BOROUGH COUNCIL,Renovations,1000554,Seville Developments,07/07/2022,30074664,1125.02,0,Contractor Payments,,Invoice,BACS,No,30/05/2022 00:00,2022,4,5713,N40287,Electrical testing and smoke detectors,1233,Contractor Payments,,,,,,,,
GUILDFORD BOROUGH COUNCIL,Renovations,1000554,Seville Developments,07/07/2022,30074664,1127.16,0,Contractor Payments,,Invoice,BACS,No,30/05/2022 00:00,2022,4,5713,N40287,Electrical testing and smoke detectors,1233,Contractor Payments,,,,,,,,
GUILDFORD BOROUGH COUNCIL,Renovations,1000554,Seville Developments,07/07/2022,30074664,1846.41,0,Contractor Payments,,Invoice,BACS,No,30/05/2022 00:00,2022,4,5713,N40287,Electrical testing and smoke detectors,1233,Contractor Payments,,,,,,,,
GUILDFORD BOROUGH COUNCIL,Renovations,1000554,Seville Developments,07/07/2022,30074664,1152.34,0,Contractor Payments,,Invoice,BACS,No,30/05/2022 00:00,2022,4,5713,N40287,Electrical testing and smoke detectors,1233,Contractor Payments,,,,,,,,
GUILDFORD BOROUGH COUNCIL,Renovations,1000554,Seville Developments,07/07/2022,30074664,1369.39,0,Contractor Payments,,Invoice,BACS,No,30/05/2022 00:00,2022,4,5713,N40287,Electrical testing and smoke detectors,1233,Contractor Payments,,,,,,,,
GUILDFORD BOROUGH COUNCIL,Renovations,1000554,Seville Developments,07/07/2022,30074664,645.4,0,Contractor Payments,,Invoice,BACS,No,30/05/2022 00:00,2022,4,5713,N40287,Electrical testing and smoke detectors,1233,Contractor Payments,,,,,,,,
GUILDFORD BOROUGH COUNCIL,Renovations,1000554,Seville Developments,07/07/2022,30074664,1730.06,0,Contractor Payments,,Invoice,BACS,No,30/05/2022 00:00,2022,4,5713,N40287,Electrical testing and smoke detectors,1233,Contractor Payments,,,,,,,,
GUILDFORD BOROUGH COUNCIL,Renovations,1000554,Seville Developments,07/07/2022,30074664,1260.53,0,Contractor Payments,,Invoice,BACS,No,30/05/2022 00:00,2022,4,5713,N40287,Electrical testing and smoke detectors,1233,Contractor Payments,,,,,,,,
GUILDFORD BOROUGH COUNCIL,Renovations,1000554,Seville Developments,07/07/2022,30074664,1191.43,0,Contractor Payments,,Invoice,BACS,No,30/05/2022 00:00,2022,4,5713,N40287,Electrical testing and smoke detectors,1233,Contractor Payments,,,,,,,,
GUILDFORD BOROUGH COUNCIL,Renovations,1000554,Seville Developments,07/07/2022,30074664,1203.05,0,Contractor Payments,,Invoice,BACS,No,30/05/2022 00:00,2022,4,5713,N40287,Electrical testing and smoke detectors,1233,Contractor Payments,,,,,,,,
GUILDFORD BOROUGH COUNCIL,Modern Homes,1000554,Seville Developments,07/07/2022,30074665,7475,0,Contractor Payments,,Invoice,BACS,No,16/06/2022 00:00,2022,4,5688-2,N42068,"Kitchen, bathroom and electrical upgrades",1233,Contractor Payments,,,,,,,,
GUILDFORD BOROUGH COUNCIL,Modern Homes,1000554,Seville Developments,07/07/2022,30074665,7475,0,Contractor Payments,,Invoice,BACS,No,16/06/2022 00:00,2022,4,5688-2,N42068,"Kitchen, bathroom and electrical upgrades",1233,Contractor Payments,,,,,,,,
GUILDFORD BOROUGH COUNCIL,Renovations,1000554,Seville Developments,25/08/2022,30080105,38642.91,0,Contractor Payments,,Invoice,BACS,No,19/08/2022 00:00,2022,5,5848,N40292,Fire protection works,1233,Contractor Payments,,,,,,,,
GUILDFORD BOROUGH COUNCIL,Renovations,1000554,Seville Developments,25/08/2022,30080106,33761.7,0,Contractor Payments,,Invoice,BACS,No,19/08/2022 00:00,2022,5,5849,N40292,Fire protection works,1233,Contractor Payments,,,,,,,,
GUILDFORD BOROUGH COUNCIL,Modern Homes,1000554,Seville Developments,05/07/2022,30074448,11500,0,Contractor Payments,,Invoice,BACS,No,04/07/2022 00:00,2022,4,5721,N42068,"Kitchen, bathroom and electrical upgrades",1233,Contractor Payments,,,,,,,,
GUILDFORD BOROUGH COUNCIL,Renovations,1000554,Seville Developments,27/09/2022,30082667,78047,0,Contractor Payments,,Invoice,BACS,No,08/09/2022 00:00,2022,6,5939,N40287,Electrical testing and smoke detectors,1233,Contractor Payments,,,,,,,,
GUILDFORD BOROUGH COUNCIL,Renovations,1000554,Seville Developments,27/09/2022,30082667,43424,0,Contractor Payments,,Invoice,BACS,No,08/09/2022 00:00,2022,6,5939,N40287,Electrical testing and smoke detectors,1233,Contractor Payments,,,,,,,,
GUILDFORD BOROUGH COUNCIL,Renovations,1000554,Seville Developments,27/09/2022,30082668,6280,0,Contractor Payments,,Invoice,BACS,No,21/09/2022 00:00,2022,6,5964,N40292,Fire protection works,1233,Contractor Payments,,,,,,,,
GUILDFORD BOROUGH COUNCIL,Renovations,1000554,Seville Developments,27/09/2022,30082668,109674,0,Contractor Payments,,Invoice,BACS,No,21/09/2022 00:00,2022,6,5964,N40292,Fire protection works,1233,Contractor Payments,,,,,,,,
GUILDFORD BOROUGH COUNCIL,Renovations,1000554,Seville Developments,27/09/2022,30082668,63976.5,0,Contractor Payments,,Invoice,BACS,No,21/09/2022 00:00,2022,6,5964,N40292,Fire protection works,1233,Contractor Payments,,,,,,,,
GUILDFORD BOROUGH COUNCIL,Renovations,1000554,Seville Developments,27/09/2022,30082668,9139.5,0,Contractor Payments,,Invoice,BACS,No,21/09/2022 00:00,2022,6,5964,N40292,Fire protection works,1233,Contractor Payments,,,,,,,,
GUILDFORD BOROUGH COUNCIL,Renovations,1000554,Seville Developments,27/09/2022,30082669,1552.39,0,Contractor Payments,,Invoice,BACS,No,12/09/2022 00:00,2022,6,5965,N40287,Electrical testing and smoke detectors,1233,Contractor Payments,,,,,,,,
GUILDFORD BOROUGH COUNCIL,Renovations,1000554,Seville Developments,27/09/2022,30082669,1411.43,0,Contractor Payments,,Invoice,BACS,No,12/09/2022 00:00,2022,6,5965,N40287,Electrical testing and smoke detectors,1233,Contractor Payments,,,,,,,,
GUILDFORD BOROUGH COUNCIL,Renovations,1000554,Seville Developments,27/09/2022,30082669,902.42,0,Contractor Payments,,Invoice,BACS,No,12/09/2022 00:00,2022,6,5965,N40287,Electrical testing and smoke detectors,1233,Contractor Payments,,,,,,,,
GUILDFORD BOROUGH COUNCIL,Renovations,1000554,Seville Developments,27/09/2022,30082669,770.25,0,Contractor Payments,,Invoice,BACS,No,12/09/2022 00:00,2022,6,5965,N40287,Electrical testing and smoke detectors,1233,Contractor Payments,,,,,,,,
GUILDFORD BOROUGH COUNCIL,Renovations,1000554,Seville Developments,27/09/2022,30082669,1273.7,0,Contractor Payments,,Invoice,BACS,No,12/09/2022 00:00,2022,6,5965,N40287,Electrical testing and smoke detectors,1233,Contractor Payments,,,,,,,,
GUILDFORD BOROUGH COUNCIL,Renovations,1000554,Seville Developments,27/09/2022,30082669,276.2,0,Contractor Payments,,Invoice,BACS,No,12/09/2022 00:00,2022,6,5965,N40287,Electrical testing and smoke detectors,1233,Contractor Payments,,,,,,,,
GUILDFORD BOROUGH COUNCIL,Renovations,1000554,Seville Developments,27/09/2022,30082669,1798.12,0,Contractor Payments,,Invoice,BACS,No,12/09/2022 00:00,2022,6,5965,N40287,Electrical testing and smoke detectors,1233,Contractor Payments,,,,,,,,
GUILDFORD BOROUGH COUNCIL,Renovations,1000554,Seville Developments,27/09/2022,30082669,1080.47,0,Contractor Payments,,Invoice,BACS,No,12/09/2022 00:00,2022,6,5965,N40287,Electrical testing and smoke detectors,1233,Contractor Payments,,,,,,,,
GUILDFORD BOROUGH COUNCIL,Renovations,1000554,Seville Developments,27/09/2022,30082669,3608,0,Contractor Payments,,Invoice,BACS,No,12/09/2022 00:00,2022,6,5965,N40287,Electrical testing and smoke detectors,1233,Contractor Payments,,,,,,,,
GUILDFORD BOROUGH COUNCIL,Renovations,1000554,Seville Developments,27/09/2022,30082669,1103.16,0,Contractor Payments,,Invoice,BACS,No,12/09/2022 00:00,2022,6,5965,N40287,Electrical testing and smoke detectors,1233,Contractor Payments,,,,,,,,
GUILDFORD BOROUGH COUNCIL,Renovations,1000554,Seville Developments,27/09/2022,30082669,1043.74,0,Contractor Payments,,Invoice,BACS,No,12/09/2022 00:00,2022,6,5965,N40287,Electrical testing and smoke detectors,1233,Contractor Payments,,,,,,,,
GUILDFORD BOROUGH COUNCIL,Renovations,1000554,Seville Developments,27/09/2022,30082669,1102.77,0,Contractor Payments,,Invoice,BACS,No,12/09/2022 00:00,2022,6,5965,N40287,Electrical testing and smoke detectors,1233,Contractor Payments,,,,,,,,
GUILDFORD BOROUGH COUNCIL,Renovations,1000554,Seville Developments,27/09/2022,30082669,1704.84,0,Contractor Payments,,Invoice,BACS,No,12/09/2022 00:00,2022,6,5965,N40287,Electrical testing and smoke detectors,1233,Contractor Payments,,,,,,,,
GUILDFORD BOROUGH COUNCIL,Renovations,1000554,Seville Developments,27/09/2022,30082669,271.15,0,Contractor Payments,,Invoice,BACS,No,12/09/2022 00:00,2022,6,5965,N40287,Electrical testing and smoke detectors,1233,Contractor Payments,,,,,,,,
GUILDFORD BOROUGH COUNCIL,Renovations,1000554,Seville Developments,27/09/2022,30082669,640.37,0,Contractor Payments,,Invoice,BACS,No,12/09/2022 00:00,2022,6,5965,N40287,Electrical testing and smoke detectors,1233,Contractor Payments,,,,,,,,
GUILDFORD BOROUGH COUNCIL,Renovations,1000554,Seville Developments,27/09/2022,30082669,1225.36,0,Contractor Payments,,Invoice,BACS,No,12/09/2022 00:00,2022,6,5965,N40287,Electrical testing and smoke detectors,1233,Contractor Payments,,,,,,,,
GUILDFORD BOROUGH COUNCIL,Renovations,1000554,Seville Developments,27/09/2022,30082669,1688.16,0,Contractor Payments,,Invoice,BACS,No,12/09/2022 00:00,2022,6,5965,N40287,Electrical testing and smoke detectors,1233,Contractor Payments,,,,,,,,
GUILDFORD BOROUGH COUNCIL,Renovations,1000554,Seville Developments,27/09/2022,30082669,1797.58,0,Contractor Payments,,Invoice,BACS,No,12/09/2022 00:00,2022,6,5965,N40287,Electrical testing and smoke detectors,1233,Contractor Payments,,,,,,,,
GUILDFORD BOROUGH COUNCIL,Renovations,1000554,Seville Developments,27/09/2022,30082669,1860.68,0,Contractor Payments,,Invoice,BACS,No,12/09/2022 00:00,2022,6,5965,N40287,Electrical testing and smoke detectors,1233,Contractor Payments,,,,,,,,
GUILDFORD BOROUGH COUNCIL,Renovations,1000554,Seville Developments,27/09/2022,30082669,1899.54,0,Contractor Payments,,Invoice,BACS,No,12/09/2022 00:00,2022,6,5965,N40287,Electrical testing and smoke detectors,1233,Contractor Payments,,,,,,,,
GUILDFORD BOROUGH COUNCIL,Renovations,1000554,Seville Developments,27/09/2022,30082669,1460.5,0,Contractor Payments,,Invoice,BACS,No,12/09/2022 00:00,2022,6,5965,N40287,Electrical testing and smoke detectors,1233,Contractor Payments,,,,,,,,
GUILDFORD BOROUGH COUNCIL,Renovations,1000554,Seville Developments,27/09/2022,30082669,890.3,0,Contractor Payments,,Invoice,BACS,No,12/09/2022 00:00,2022,6,5965,N40287,Electrical testing and smoke detectors,1233,Contractor Payments,,,,,,,,
GUILDFORD BOROUGH COUNCIL,Renovations,1000554,Seville Developments,27/09/2022,30082669,1090.24,0,Contractor Payments,,Invoice,BACS,No,12/09/2022 00:00,2022,6,5965,N40287,Electrical testing and smoke detectors,1233,Contractor Payments,,,,,,,,
GUILDFORD BOROUGH COUNCIL,Renovations,1000554,Seville Developments,27/09/2022,30082669,843.01,0,Contractor Payments,,Invoice,BACS,No,12/09/2022 00:00,2022,6,5965,N40287,Electrical testing and smoke detectors,1233,Contractor Payments,,,,,,,,
GUILDFORD BOROUGH COUNCIL,Renovations,1000554,Seville Developments,27/09/2022,30082669,1300.14,0,Contractor Payments,,Invoice,BACS,No,12/09/2022 00:00,2022,6,5965,N40287,Electrical testing and smoke detectors,1233,Contractor Payments,,,,,,,,
GUILDFORD BOROUGH COUNCIL,Renovations,1000554,Seville Developments,27/09/2022,30082669,1330.7,0,Contractor Payments,,Invoice,BACS,No,12/09/2022 00:00,2022,6,5965,N40287,Electrical testing and smoke detectors,1233,Contractor Payments,,,,,,,,
GUILDFORD BOROUGH COUNCIL,Renovations,1000554,Seville Developments,27/09/2022,30082669,2166.36,0,Contractor Payments,,Invoice,BACS,No,12/09/2022 00:00,2022,6,5965,N40287,Electrical testing and smoke detectors,1233,Contractor Payments,,,,,,,,
GUILDFORD BOROUGH COUNCIL,Renovations,1000554,Seville Developments,27/09/2022,30082669,732.22,0,Contractor Payments,,Invoice,BACS,No,12/09/2022 00:00,2022,6,5965,N40287,Electrical testing and smoke detectors,1233,Contractor Payments,,,,,,,,
GUILDFORD BOROUGH COUNCIL,Renovations,1000554,Seville Developments,27/09/2022,30082669,1096.79,0,Contractor Payments,,Invoice,BACS,No,12/09/2022 00:00,2022,6,5965,N40287,Electrical testing and smoke detectors,1233,Contractor Payments,,,,,,,,
GUILDFORD BOROUGH COUNCIL,Renovations,1000554,Seville Developments,27/09/2022,30082669,1476.05,0,Contractor Payments,,Invoice,BACS,No,12/09/2022 00:00,2022,6,5965,N40287,Electrical testing and smoke detectors,1233,Contractor Payments,,,,,,,,
GUILDFORD BOROUGH COUNCIL,Renovations,1000554,Seville Developments,27/09/2022,30082669,1068.22,0,Contractor Payments,,Invoice,BACS,No,12/09/2022 00:00,2022,6,5965,N40287,Electrical testing and smoke detectors,1233,Contractor Payments,,,,,,,,
GUILDFORD BOROUGH COUNCIL,Renovations,1000554,Seville Developments,27/09/2022,30082669,347.22,0,Contractor Payments,,Invoice,BACS,No,12/09/2022 00:00,2022,6,5965,N40287,Electrical testing and smoke detectors,1233,Contractor Payments,,,,,,,,
GUILDFORD BOROUGH COUNCIL,Renovations,1000554,Seville Developments,27/09/2022,30082669,1055.17,0,Contractor Payments,,Invoice,BACS,No,12/09/2022 00:00,2022,6,5965,N40287,Electrical testing and smoke detectors,1233,Contractor Payments,,,,,,,,
GUILDFORD BOROUGH COUNCIL,Renovations,1000554,Seville Developments,27/09/2022,30082669,583.66,0,Contractor Payments,,Invoice,BACS,No,12/09/2022 00:00,2022,6,5965,N40287,Electrical testing and smoke detectors,1233,Contractor Payments,,,,,,,,
GUILDFORD BOROUGH COUNCIL,Renovations,1000554,Seville Developments,27/09/2022,30082669,691.1,0,Contractor Payments,,Invoice,BACS,No,12/09/2022 00:00,2022,6,5965,N40287,Electrical testing and smoke detectors,1233,Contractor Payments,,,,,,,,
GUILDFORD BOROUGH COUNCIL,Renovations,1000554,Seville Developments,27/09/2022,30082669,1258.2,0,Contractor Payments,,Invoice,BACS,No,12/09/2022 00:00,2022,6,5965,N40287,Electrical testing and smoke detectors,1233,Contractor Payments,,,,,,,,
GUILDFORD BOROUGH COUNCIL,Renovations,1000554,Seville Developments,27/09/2022,30082669,962.44,0,Contractor Payments,,Invoice,BACS,No,12/09/2022 00:00,2022,6,5965,N40287,Electrical testing and smoke detectors,1233,Contractor Payments,,,,,,,,
GUILDFORD BOROUGH COUNCIL,Renovations,1000554,Seville Developments,27/09/2022,30082669,297.04,0,Contractor Payments,,Invoice,BACS,No,12/09/2022 00:00,2022,6,5965,N40287,Electrical testing and smoke detectors,1233,Contractor Payments,,,,,,,,
GUILDFORD BOROUGH COUNCIL,Renovations,1000554,Seville Developments,27/09/2022,30082669,618.3,0,Contractor Payments,,Invoice,BACS,No,12/09/2022 00:00,2022,6,5965,N40287,Electrical testing and smoke detectors,1233,Contractor Payments,,,,,,,,
GUILDFORD BOROUGH COUNCIL,Renovations,1000554,Seville Developments,27/09/2022,30082669,619.87,0,Contractor Payments,,Invoice,BACS,No,12/09/2022 00:00,2022,6,5965,N40287,Electrical testing and smoke detectors,1233,Contractor Payments,,,,,,,,
GUILDFORD BOROUGH COUNCIL,Renovations,1000554,Seville Developments,27/09/2022,30082669,575.71,0,Contractor Payments,,Invoice,BACS,No,12/09/2022 00:00,2022,6,5965,N40287,Electrical testing and smoke detectors,1233,Contractor Payments,,,,,,,,
GUILDFORD BOROUGH COUNCIL,Renovations,1000554,Seville Developments,27/09/2022,30082669,1199.06,0,Contractor Payments,,Invoice,BACS,No,12/09/2022 00:00,2022,6,5965,N40287,Electrical testing and smoke detectors,1233,Contractor Payments,,,,,,,,
GUILDFORD BOROUGH COUNCIL,Renovations,1000554,Seville Developments,27/09/2022,30082669,1112.85,0,Contractor Payments,,Invoice,BACS,No,12/09/2022 00:00,2022,6,5965,N40287,Electrical testing and smoke detectors,1233,Contractor Payments,,,,,,,,
GUILDFORD BOROUGH COUNCIL,Renovations,1000554,Seville Developments,27/09/2022,30082669,1806.95,0,Contractor Payments,,Invoice,BACS,No,12/09/2022 00:00,2022,6,5965,N40287,Electrical testing and smoke detectors,1233,Contractor Payments,,,,,,,,
GUILDFORD BOROUGH COUNCIL,Renovations,1000554,Seville Developments,27/09/2022,30082669,968.6,0,Contractor Payments,,Invoice,BACS,No,12/09/2022 00:00,2022,6,5965,N40287,Electrical testing and smoke detectors,1233,Contractor Payments,,,,,,,,
GUILDFORD BOROUGH COUNCIL,Renovations,1000554,Seville Developments,27/09/2022,30082669,362.92,0,Contractor Payments,,Invoice,BACS,No,12/09/2022 00:00,2022,6,5965,N40287,Electrical testing and smoke detectors,1233,Contractor Payments,,,,,,,,
GUILDFORD BOROUGH COUNCIL,Renovations,1000554,Seville Developments,27/09/2022,30082669,1100.19,0,Contractor Payments,,Invoice,BACS,No,12/09/2022 00:00,2022,6,5965,N40287,Electrical testing and smoke detectors,1233,Contractor Payments,,,,,,,,
GUILDFORD BOROUGH COUNCIL,Renovations,1000554,Seville Developments,27/09/2022,30082669,1964.84,0,Contractor Payments,,Invoice,BACS,No,12/09/2022 00:00,2022,6,5965,N40287,Electrical testing and smoke detectors,1233,Contractor Payments,,,,,,,,
GUILDFORD BOROUGH COUNCIL,Renovations,1000554,Seville Developments,27/09/2022,30082669,655.59,0,Contractor Payments,,Invoice,BACS,No,12/09/2022 00:00,2022,6,5965,N40287,Electrical testing and smoke detectors,1233,Contractor Payments,,,,,,,,
GUILDFORD BOROUGH COUNCIL,Renovations,1000554,Seville Developments,27/09/2022,30082669,384.07,0,Contractor Payments,,Invoice,BACS,No,12/09/2022 00:00,2022,6,5965,N40287,Electrical testing and smoke detectors,1233,Contractor Payments,,,,,,,,
GUILDFORD BOROUGH COUNCIL,Renovations,1000554,Seville Developments,27/09/2022,30082669,1447.71,0,Contractor Payments,,Invoice,BACS,No,12/09/2022 00:00,2022,6,5965,N40287,Electrical testing and smoke detectors,1233,Contractor Payments,,,,,,,,
GUILDFORD BOROUGH COUNCIL,Renovations,1000554,Seville Developments,27/09/2022,30082669,732.22,0,Contractor Payments,,Invoice,BACS,No,12/09/2022 00:00,2022,6,5965,N40287,Electrical testing and smoke detectors,1233,Contractor Payments,,,,,,,,
GUILDFORD BOROUGH COUNCIL,Renovations,1000554,Seville Developments,27/09/2022,30082669,953.02,0,Contractor Payments,,Invoice,BACS,No,12/09/2022 00:00,2022,6,5965,N40287,Electrical testing and smoke detectors,1233,Contractor Payments,,,,,,,,
GUILDFORD BOROUGH COUNCIL,Renovations,1000554,Seville Developments,27/09/2022,30082669,363.44,0,Contractor Payments,,Invoice,BACS,No,12/09/2022 00:00,2022,6,5965,N40287,Electrical testing and smoke detectors,1233,Contractor Payments,,,,,,,,
GUILDFORD BOROUGH COUNCIL,Renovations,1000554,Seville Developments,27/09/2022,30082669,1031.27,0,Contractor Payments,,Invoice,BACS,No,12/09/2022 00:00,2022,6,5965,N40287,Electrical testing and smoke detectors,1233,Contractor Payments,,,,,,,,
GUILDFORD BOROUGH COUNCIL,Renovations,1000554,Seville Developments,27/09/2022,30082669,1719.29,0,Contractor Payments,,Invoice,BACS,No,12/09/2022 00:00,2022,6,5965,N40287,Electrical testing and smoke detectors,1233,Contractor Payments,,,,,,,,
GUILDFORD BOROUGH COUNCIL,Renovations,1000554,Seville Developments,27/09/2022,30082670,14900,0,Contractor Payments,,Invoice,BACS,No,22/09/2022 00:00,2022,6,5966,N40287,Electrical testing and smoke detectors,1233,Contractor Payments,,,,,,,,
GUILDFORD BOROUGH COUNCIL,Renovations,1000554,Seville Developments,30/08/2022,30080548,559.22,0,Contractor Payments,,Invoice,BACS,No,01/08/2022 00:00,2022,5,5795,N40287,Electrical testing and smoke detectors,1233,Contractor Payments,,,,,,,,
GUILDFORD BOROUGH COUNCIL,Renovations,1000554,Seville Developments,30/08/2022,30080548,877.11,0,Contractor Payments,,Invoice,BACS,No,01/08/2022 00:00,2022,5,5795,N40287,Electrical testing and smoke detectors,1233,Contractor Payments,,,,,,,,
GUILDFORD BOROUGH COUNCIL,Renovations,1000554,Seville Developments,30/08/2022,30080548,1002.02,0,Contractor Payments,,Invoice,BACS,No,01/08/2022 00:00,2022,5,5795,N40287,Electrical testing and smoke detectors,1233,Contractor Payments,,,,,,,,
GUILDFORD BOROUGH COUNCIL,Renovations,1000554,Seville Developments,30/08/2022,30080548,1402.18,0,Contractor Payments,,Invoice,BACS,No,01/08/2022 00:00,2022,5,5795,N40287,Electrical testing and smoke detectors,1233,Contractor Payments,,,,,,,,
GUILDFORD BOROUGH COUNCIL,Renovations,1000554,Seville Developments,30/08/2022,30080548,1329.7,0,Contractor Payments,,Invoice,BACS,No,01/08/2022 00:00,2022,5,5795,N40287,Electrical testing and smoke detectors,1233,Contractor Payments,,,,,,,,
GUILDFORD BOROUGH COUNCIL,Renovations,1000554,Seville Developments,30/08/2022,30080548,1641.56,0,Contractor Payments,,Invoice,BACS,No,01/08/2022 00:00,2022,5,5795,N40287,Electrical testing and smoke detectors,1233,Contractor Payments,,,,,,,,
GUILDFORD BOROUGH COUNCIL,Renovations,1000554,Seville Developments,30/08/2022,30080548,1075.41,0,Contractor Payments,,Invoice,BACS,No,01/08/2022 00:00,2022,5,5795,N40287,Electrical testing and smoke detectors,1233,Contractor Payments,,,,,,,,
GUILDFORD BOROUGH COUNCIL,Renovations,1000554,Seville Developments,30/08/2022,30080548,1050.1,0,Contractor Payments,,Invoice,BACS,No,01/08/2022 00:00,2022,5,5795,N40287,Electrical testing and smoke detectors,1233,Contractor Payments,,,,,,,,
GUILDFORD BOROUGH COUNCIL,Renovations,1000554,Seville Developments,30/08/2022,30080548,291.83,0,Contractor Payments,,Invoice,BACS,No,01/08/2022 00:00,2022,5,5795,N40287,Electrical testing and smoke detectors,1233,Contractor Payments,,,,,,,,
GUILDFORD BOROUGH COUNCIL,Renovations,1000554,Seville Developments,30/08/2022,30080548,1135.09,0,Contractor Payments,,Invoice,BACS,No,01/08/2022 00:00,2022,5,5795,N40287,Electrical testing and smoke detectors,1233,Contractor Payments,,,,,,,,
GUILDFORD BOROUGH COUNCIL,Renovations,1000554,Seville Developments,30/08/2022,30080548,559.23,0,Contractor Payments,,Invoice,BACS,No,01/08/2022 00:00,2022,5,5795,N40287,Electrical testing and smoke detectors,1233,Contractor Payments,,,,,,,,
GUILDFORD BOROUGH COUNCIL,Renovations,1000554,Seville Developments,30/08/2022,30080548,729.42,0,Contractor Payments,,Invoice,BACS,No,01/08/2022 00:00,2022,5,5795,N40287,Electrical testing and smoke detectors,1233,Contractor Payments,,,,,,,,
GUILDFORD BOROUGH COUNCIL,Renovations,1000554,Seville Developments,30/08/2022,30080548,1248.4,0,Contractor Payments,,Invoice,BACS,No,01/08/2022 00:00,2022,5,5795,N40287,Electrical testing and smoke detectors,1233,Contractor Payments,,,,,,,,
GUILDFORD BOROUGH COUNCIL,Renovations,1000554,Seville Developments,30/08/2022,30080548,1535.01,0,Contractor Payments,,Invoice,BACS,No,01/08/2022 00:00,2022,5,5795,N40287,Electrical testing and smoke detectors,1233,Contractor Payments,,,,,,,,
GUILDFORD BOROUGH COUNCIL,Renovations,1000554,Seville Developments,30/08/2022,30080548,1526.26,0,Contractor Payments,,Invoice,BACS,No,01/08/2022 00:00,2022,5,5795,N40287,Electrical testing and smoke detectors,1233,Contractor Payments,,,,,,,,
GUILDFORD BOROUGH COUNCIL,Renovations,1000554,Seville Developments,30/08/2022,30080548,1423.64,0,Contractor Payments,,Invoice,BACS,No,01/08/2022 00:00,2022,5,5795,N40287,Electrical testing and smoke detectors,1233,Contractor Payments,,,,,,,,
GUILDFORD BOROUGH COUNCIL,Renovations,1000554,Seville Developments,30/08/2022,30080548,1027.42,0,Contractor Payments,,Invoice,BACS,No,01/08/2022 00:00,2022,5,5795,N40287,Electrical testing and smoke detectors,1233,Contractor Payments,,,,,,,,
GUILDFORD BOROUGH COUNCIL,Renovations,1000554,Seville Developments,30/08/2022,30080548,1171.96,0,Contractor Payments,,Invoice,BACS,No,01/08/2022 00:00,2022,5,5795,N40287,Electrical testing and smoke detectors,1233,Contractor Payments,,,,,,,,
GUILDFORD BOROUGH COUNCIL,Renovations,1000554,Seville Developments,30/08/2022,30080548,533.07,0,Contractor Payments,,Invoice,BACS,No,01/08/2022 00:00,2022,5,5795,N40287,Electrical testing and smoke detectors,1233,Contractor Payments,,,,,,,,
GUILDFORD BOROUGH COUNCIL,Renovations,1000554,Seville Developments,30/08/2022,30080548,1064.93,0,Contractor Payments,,Invoice,BACS,No,01/08/2022 00:00,2022,5,5795,N40287,Electrical testing and smoke detectors,1233,Contractor Payments,,,,,,,,
GUILDFORD BOROUGH COUNCIL,Renovations,1000554,Seville Developments,30/08/2022,30080548,267.82,0,Contractor Payments,,Invoice,BACS,No,01/08/2022 00:00,2022,5,5795,N40287,Electrical testing and smoke detectors,1233,Contractor Payments,,,,,,,,
GUILDFORD BOROUGH COUNCIL,Renovations,1000554,Seville Developments,30/08/2022,30080548,1413.32,0,Contractor Payments,,Invoice,BACS,No,01/08/2022 00:00,2022,5,5795,N40287,Electrical testing and smoke detectors,1233,Contractor Payments,,,,,,,,
GUILDFORD BOROUGH COUNCIL,Renovations,1000554,Seville Developments,30/08/2022,30080548,1091.55,0,Contractor Payments,,Invoice,BACS,No,01/08/2022 00:00,2022,5,5795,N40287,Electrical testing and smoke detectors,1233,Contractor Payments,,,,,,,,
GUILDFORD BOROUGH COUNCIL,Renovations,1000554,Seville Developments,30/08/2022,30080548,1339.45,0,Contractor Payments,,Invoice,BACS,No,01/08/2022 00:00,2022,5,5795,N40287,Electrical testing and smoke detectors,1233,Contractor Payments,,,,,,,,
GUILDFORD BOROUGH COUNCIL,Renovations,1000554,Seville Developments,30/08/2022,30080548,732.23,0,Contractor Payments,,Invoice,BACS,No,01/08/2022 00:00,2022,5,5795,N40287,Electrical testing and smoke detectors,1233,Contractor Payments,,,,,,,,
GUILDFORD BOROUGH COUNCIL,Renovations,1000554,Seville Developments,30/08/2022,30080548,1547.05,0,Contractor Payments,,Invoice,BACS,No,01/08/2022 00:00,2022,5,5795,N40287,Electrical testing and smoke detectors,1233,Contractor Payments,,,,,,,,
GUILDFORD BOROUGH COUNCIL,Renovations,1000554,Seville Developments,30/08/2022,30080548,1050.1,0,Contractor Payments,,Invoice,BACS,No,01/08/2022 00:00,2022,5,5795,N40287,Electrical testing and smoke detectors,1233,Contractor Payments,,,,,,,,
GUILDFORD BOROUGH COUNCIL,Renovations,1000554,Seville Developments,30/08/2022,30080548,1628.1,0,Contractor Payments,,Invoice,BACS,No,01/08/2022 00:00,2022,5,5795,N40287,Electrical testing and smoke detectors,1233,Contractor Payments,,,,,,,,
GUILDFORD BOROUGH COUNCIL,Renovations,1000554,Seville Developments,30/08/2022,30080548,1256.83,0,Contractor Payments,,Invoice,BACS,No,01/08/2022 00:00,2022,5,5795,N40287,Electrical testing and smoke detectors,1233,Contractor Payments,,,,,,,,
GUILDFORD BOROUGH COUNCIL,Renovations,1000554,Seville Developments,30/08/2022,30080548,1584.13,0,Contractor Payments,,Invoice,BACS,No,01/08/2022 00:00,2022,5,5795,N40287,Electrical testing and smoke detectors,1233,Contractor Payments,,,,,,,,
GUILDFORD BOROUGH COUNCIL,Renovations,1000554,Seville Developments,30/08/2022,30080548,321.67,0,Contractor Payments,,Invoice,BACS,No,01/08/2022 00:00,2022,5,5795,N40287,Electrical testing and smoke detectors,1233,Contractor Payments,,,,,,,,
GUILDFORD BOROUGH COUNCIL,Renovations,1000554,Seville Developments,30/08/2022,30080548,2220.71,0,Contractor Payments,,Invoice,BACS,No,01/08/2022 00:00,2022,5,5795,N40287,Electrical testing and smoke detectors,1233,Contractor Payments,,,,,,,,
GUILDFORD BOROUGH COUNCIL,Renovations,1000554,Seville Developments,30/08/2022,30080548,694.04,0,Contractor Payments,,Invoice,BACS,No,01/08/2022 00:00,2022,5,5795,N40287,Electrical testing and smoke detectors,1233,Contractor Payments,,,,,,,,
GUILDFORD BOROUGH COUNCIL,Renovations,1000554,Seville Developments,30/08/2022,30080548,1216.73,0,Contractor Payments,,Invoice,BACS,No,01/08/2022 00:00,2022,5,5795,N40287,Electrical testing and smoke detectors,1233,Contractor Payments,,,,,,,,
GUILDFORD BOROUGH COUNCIL,Renovations,1000554,Seville Developments,30/08/2022,30080548,611.21,0,Contractor Payments,,Invoice,BACS,No,01/08/2022 00:00,2022,5,5795,N40287,Electrical testing and smoke detectors,1233,Contractor Payments,,,,,,,,
GUILDFORD BOROUGH COUNCIL,Renovations,1000554,Seville Developments,30/08/2022,30080548,1664.83,0,Contractor Payments,,Invoice,BACS,No,01/08/2022 00:00,2022,5,5795,N40287,Electrical testing and smoke detectors,1233,Contractor Payments,,,,,,,,
GUILDFORD BOROUGH COUNCIL,Renovations,1000554,Seville Developments,30/08/2022,30080548,1818.57,0,Contractor Payments,,Invoice,BACS,No,01/08/2022 00:00,2022,5,5795,N40287,Electrical testing and smoke detectors,1233,Contractor Payments,,,,,,,,
GUILDFORD BOROUGH COUNCIL,Renovations,1000554,Seville Developments,30/08/2022,30080548,1393.91,0,Contractor Payments,,Invoice,BACS,No,01/08/2022 00:00,2022,5,5795,N40287,Electrical testing and smoke detectors,1233,Contractor Payments,,,,,,,,
GUILDFORD BOROUGH COUNCIL,Renovations,1000554,Seville Developments,30/08/2022,30080548,1105.61,0,Contractor Payments,,Invoice,BACS,No,01/08/2022 00:00,2022,5,5795,N40287,Electrical testing and smoke detectors,1233,Contractor Payments,,,,,,,,
GUILDFORD BOROUGH COUNCIL,Renovations,1000554,Seville Developments,30/08/2022,30080548,902.4,0,Contractor Payments,,Invoice,BACS,No,01/08/2022 00:00,2022,5,5795,N40287,Electrical testing and smoke detectors,1233,Contractor Payments,,,,,,,,
GUILDFORD BOROUGH COUNCIL,Renovations,1000554,Seville Developments,30/08/2022,30080548,1247.29,0,Contractor Payments,,Invoice,BACS,No,01/08/2022 00:00,2022,5,5795,N40287,Electrical testing and smoke detectors,1233,Contractor Payments,,,,,,,,
GUILDFORD BOROUGH COUNCIL,Renovations,1000554,Seville Developments,30/08/2022,30080548,1007.48,0,Contractor Payments,,Invoice,BACS,No,01/08/2022 00:00,2022,5,5795,N40287,Electrical testing and smoke detectors,1233,Contractor Payments,,,,,,,,
GUILDFORD BOROUGH COUNCIL,Renovations,1000554,Seville Developments,30/08/2022,30080548,683.73,0,Contractor Payments,,Invoice,BACS,No,01/08/2022 00:00,2022,5,5795,N40287,Electrical testing and smoke detectors,1233,Contractor Payments,,,,,,,,
